Workbook

Sheet 第2編表紙
A2: 第２編 人 口
B16: 人口及び世帯年齢構成ピラミッド
K18: 年少人口
K22: 生産年齢人口
K34: 老齢人口

Sheet 人口の推移
A1: １．住民基本台帳人口
A3: １) 人口の推移（年次別）
D4: （各年9月末現在）
A5: 年 次 | B5: 世 帯 数 | C5: 人 口 | F5: 人口密度 | G5: 備 考
C6: 総数 | D6: 男 | E6: 女 | F6: (1k㎡当たり)
A7: 明治30年 | B7: 143 | C7: 572 | D7: 294 | E7: 278 | F7: 1.9 | G7: 戸町役場開設
A8: 44 | B8: 940 | C8: 5584 | D8: 2812 | E8: 2772 | F8: 18.9
A9: 昭和20年 | B9: 1925 | C9: 11235 | D9: 5443 | E9: 5792 | F9: 38.2
A10: 26 | B10: 2378 | C10: 13496 | D10: 6811 | E10: 6685 | F10: 45.9 | G10: 町制施行
A11: 27 | B11: 2767 | C11: =SUM(D11:E11) -> 14233 | D11: 7057 | E11: 7176 | F11: =C11/294.87 -> 48.26872859
A12: 28 | B12: 3221 | C12: =SUM(D12:E12) -> 16109 | D12: 7959 | E12: 8150 | F12: =C12/294.87 -> 54.63085427
A13: 29 | B13: 3619 | C13: 18175 | D13: 9010 | E13: 9165 | F13: 61.63733171
A14: 30 | B14: 4098 | C14: 19576 | D14: 9691 | E14: 9885 | F14: 66.38857802
A15: 31 | B15: 4535 | C15: 20972 | D15: 10424 | E15: 10548 | F15: 71.1228677
A16: 32 | B16: 4928 | C16: 22107 | D16: 11024 | E16: 11083 | F16: 74.97202157
A17: 33 | B17: 10016 | C17: 27966 | D17: 16431 | E17: 11535 | F17: 94.84179469
A18: 34 | B18: 10689 | C18: 28323 | D18: 16840 | E18: 11483 | F18: 96.05249771
A19: 35 | B19: 11175 | C19: 29614 | D19: 17564 | E19: 12050 | F19: 100.4306983
A20: 36 | B20: 10614 | C20: 28798 | D20: 16930 | E20: 11868 | F20: 97.66337708
A21: 37 | B21: 10082 | C21: 28346 | D21: 16439 | E21: 11907 | F21: 96.13049819
A22: 38 | B22: 9837 | C22: 29190 | D22: 16560 | E22: 12630 | F22: 98.99277648
A23: 39 | B23: 10265 | C23: 30327 | D23: 17058 | E23: 13269 | F23: 102.848713
A24: 40 | B24: 10051 | C24: 31085 | D24: 17111 | E24: 13974 | F24: 105.5
A25: 41 | B25: 10065 | C25: =SUM(D25:E25) -> 31621 | D25: 17190 | E25: 14431 | F25: =C25/294.87 -> 107.2370875
A26: 42 | B26: 10100 | C26: =SUM(D26:E26) -> 32369 | D26: 17383 | E26: 14986 | F26: =C26/294.87 -> 109.7737986
A27: 43 | B27: 17563 | C27: =SUM(D27:E27) -> 32965 | D27: 17563 | E27: 15402 | F27: =C27/294.87 -> 111.7950283
A28: 44 | B28: 10428 | C28: =SUM(D28:E28) -> 33566 | D28: 17793 | E28: 15773 | F28: =C28/294.87 -> 113.8332146
A29: 45 | B29: 10756 | C29: 34619 | D29: 18200 | E29: 16419 | F29: 117.5
A30: 46 | B30: 11237 | C30: 35668 | D30: 18775 | E30: 16893 | F30: 121 | G30: 市制施行
A31: 47 | B31: 11592 | C31: =SUM(D31:E31) -> 36645 | D31: 19191 | E31: 17454 | F31: =C31/294.87 -> 124.2751043
A32: 48 | B32: 11941 | C32: =SUM(D32:E32) -> 37798 | D32: 19753 | E32: 18045 | F32: =C32/294.87 -> 128.185302
A33: 49 | B33: 12366 | C33: =SUM(D33:E33) -> 38876 | D33: 20310 | E33: 18566 | F33: =C33/294.87 -> 131.8411503
A34: 50 | B34: 12829 | C34: 39805 | D34: 20822 | E34: 18983 | F34: 135.1
A35: 51 | B35: 13146 | C35: =SUM(D35:E35) -> 40664 | D35: 21179 | E35: 19485 | F35: =C35/294.87 -> 137.9048394
A36: 52 | B36: 13447 | C36: =SUM(D36:E36) -> 41694 | D36: 21649 | E36: 20045 | F36: =C36/294.87 -> 141.3979042
A37: 53 | B37: 13679 | C37: =SUM(D37:E37) -> 42169 | D37: 21834 | E37: 20335 | F37: =C37/294.87 -> 143.0087835
A38: 54 | B38: 14048 | C38: =SUM(D38:E38) -> 42922 | D38: 22215 | E38: 20707 | F38: =C38/294.87 -> 145.5624512
A39: 55 | B39: 14343 | C39: 43465 | D39: 22481 | E39: 20984 | F39: 157.5
A40: 56 | B40: 14722 | C40: =SUM(D40:E40) -> 44256 | D40: 22860 | E40: 21396 | F40: =C40/294.87 -> 150.0864788
A41: 57 | B41: 15150 | C41: =SUM(D41:E41) -> 45510 | D41: 23433 | E41: 22077 | F41: =C41/294.87 -> 154.3392003
A42: 58 | B42: 15677 | C42: =SUM(D42:E42) -> 46748 | D42: 23955 | E42: 22793 | F42: =C42/294.87 -> 158.5376607
A43: 59 | B43: 16714 | C43: =SUM(D43:E43) -> 47817 | D43: 24439 | E43: 23378 | F43: =C43/294.87 -> 162.1629871
A44: 60 | B44: 16578 | C44: 48724 | D44: 24786 | E44: 23938 | F44: 165.3
A45: 61 | B45: 17144 | C45: =SUM(D45:E45) -> 49574 | D45: 25199 | E45: 24375 | F45: =C45/294.87 -> 168.1215451
A46: 62 | B46: 17757 | C46: =SUM(D46:E46) -> 50785 | D46: 25750 | E46: 25035 | F46: =C46/294.87 -> 172.2284397
A47: 63 | B47: 18423 | C47: =SUM(D47:E47) -> 52213 | D47: 26413 | E47: 25800 | F47: =C47/294.87 -> 177.0712517
A48: 平成元年 | B48: 19248 | C48: 53962 | D48: 27335 | E48: 26627 | F48: 183
A49: 2 | B49: 20145 | C49: 55813 | D49: 28262 | E49: 27551 | F49: 189.3
A50: 3 | B50: 21016 | C50: =SUM(D50:E50) -> 57443 | D50: 29016 | E50: 28427 | F50: =C50/294.87 -> 194.8078814
A51: 4 | B51: 21799 | C51: =SUM(D51:E51) -> 58978 | D51: 29775 | E51: 29203 | F51: =C51/294.87 -> 200.0135653
A52: 5 | B52: 22777 | C52: =SUM(D52:E52) -> 60484 | D52: 30750 | E52: 29734 | F52: =C52/294.87 -> 205.1209007
A53: 6 | B53: 23094 | C53: =SUM(D53:E53) -> 61356 | D53: 30988 | E53: 30368 | F53: =C53/294.87 -> 208.0781361
A54: 7 | B54: 23723 | C54: 62372 | D54: 31531 | E54: 30841 | F54: 211.5
A55: 8 | B55: 24356 | C55: 63275 | D55: 31952 | E55: 31323 | F55: 214.6
A56: 9 | B56: 24899 | C56: 64011 | D56: 32284 | E56: 31727 | F56: 217.1
A57: 10 | B57: 25356 | C57: 64485 | D57: 32462 | E57: 32023 | F57: 218.7
A58: 11 | B58: 25719 | C58: 64897 | D58: 32590 | E58: 32307 | F58: 220.1
A59: 12 | B59: 26092 | C59: 65310 | D59: 32697 | E59: 32613 | F59: 221.5
A60: 13 | B60: 26388 | C60: 65590 | D60: 32785 | E60: 32805 | F60: 222.4
A61: 14 | B61: 26893 | C61: 66172 | D61: 33055 | E61: 33117 | F61: 224.4
A62: 15 | B62: 27378 | C62: 66718 | D62: 33278 | E62: 33440 | F62: 226.3
A63: 16 | B63: 27461 | C63: 67191 | D63: 33391 | E63: 33800 | F63: 227.9
A64: 17 | B64: 28205 | C64: 67598 | D64: 33584 | E64: 34014 | F64: =C64/294.87 -> 229.2467867
A65: 18 | B65: 28725 | C65: 67942 | D65: 33688 | E65: 34254 | F65: 230.4134025
A66: 19 | B66: 29188 | C66: 68417 | D66: 33763 | E66: 34654 | F66: 232.0242819
A67: 20 | B67: 29731 | C67: 68685 | D67: 33867 | E67: 34818 | F67: 232.933157
A68: 21 | B68: 29958 | C68: 68608 | D68: 33773 | E68: 35835 | F68: 232.7
A69: 22 | B69: 30316 | C69: 68809 | D69: 33870 | E69: 34939 | F69: 233.4
A70: 23 | B70: 30575 | C70: 68938 | D70: 33833 | E70: 35105 | F70: 233.8
A71: 24 | B71: 30909 | C71: 69126 | D71: 33806 | E71: 35320 | F71: =69126/294.87 -> 234.4287313
A72: 25 | B72: 31053 | C72: 68876 | D72: 33648 | E72: 35228 | F72: 233.5809001
A73: 26 | B73: 31338 | C73: 68950 | D73: 33610 | E73: 35340 | F73: 233.8318581
A74: 27 | B74: 31688 | C74: 68974 | D74: 33589 | E74: 35385 | F74: 233.9
A75: 28 | B75: 32266 | C75: 69212 | D75: 33646 | E75: 35566 | F75: 234.7
A76: 〈資料〉生活環境部市民課 | G76: （単位：人）
A77: 注) 調査月日…明治は不明、昭和20年は11月1日
A78: 住民基本台帳法が改正され、平成24年7月より外国人住民が適用対象となった。

Sheet 地域の人口
A1: ２）地域の人口 | AA1: (各年9月末日)
A2: 地 区 | B2: 27年 | F2: 28年 | J2: 地 区 | K2: 27年 | O2: 28年 | S2: 地 区 | T2: 27年 | X2: 28年
B3: 人 口 | E3: 世 帯 | F3: 人 口 | I3: 世 帯 | K3: 人 口 | N3: 世 帯 | O3: 人 口 | R3: 世 帯 | T3: 人 口 | W3: 世 帯 | X3: 人 口 | AA3: 世 帯
B4: 計 | C4: 男 | D4: 女 | F4: 計 | G4: 男 | H4: 女 | K4: 計 | L4: 男 | M4: 女 | O4: 計 | P4: 男 | Q4: 女 | T4: 計 | U4: 男 | V4: 女 | X4: 計 | Y4: 男 | Z4: 女
A5: 漁太 | B5: 153 | C5: 73 | D5: 80 | E5: 68 | F5: =SUM(G5:H5) -> 149 | G5: 72 | H5: 77 | I5: 68 | J5: 漁町 | K5: 1093 | L5: 559 | M5: 534 | N5: 594 | O5: =SUM(P5:Q5) -> 1075 | P5: 540 | Q5: 535 | R5: 584 | S5: 美咲野5丁目 | T5: 246 | U5: 117 | V5: 129 | W5: 97 | X5: =SUM(Y5:Z5) -> 243 | Y5: 116 | Z5: 127 | AA5: 95
A6: 林田 | B6: 39 | C6: 18 | D6: 21 | E6: 21 | F6: =SUM(G6:H6) -> 37 | G6: 18 | H6: 19 | I6: 21 | J6: 福住町1丁目 | K6: 746 | L6: 369 | M6: 377 | N6: 370 | O6: =SUM(P6:Q6) -> 729 | P6: 358 | Q6: 371 | R6: 367 | S6: 美咲野6丁目 | T6: 391 | U6: 189 | V6: 202 | W6: 140 | X6: =SUM(Y6:Z6) -> 391 | Y6: 190 | Z6: 201 | AA6: 140
A7: 春日 | B7: 130 | C7: 68 | D7: 62 | E7: 56 | F7: =SUM(G7:H7) -> 130 | G7: 67 | H7: 63 | I7: 59 | J7: 福住町2丁目 | K7: 368 | L7: 171 | M7: 197 | N7: 185 | O7: =SUM(P7:Q7) -> 377 | P7: 177 | Q7: 200 | R7: 189 | S7: 恵み野東1丁目 | T7: 303 | U7: 139 | V7: 164 | W7: 125 | X7: =SUM(Y7:Z7) -> 306 | Y7: 140 | Z7: 166 | AA7: 125
A8: 中央 | B8: 226 | C8: 115 | D8: 111 | E8: 86 | F8: 247 | G8: 128 | H8: 119 | I8: 93 | J8: 福住町3丁目 | K8: 572 | L8: 259 | M8: 313 | N8: 277 | O8: 567 | P8: 264 | Q8: 303 | R8: 274 | S8: 恵み野東2丁目 | T8: 537 | U8: 254 | V8: 283 | W8: 222 | X8: 540 | Y8: 257 | Z8: 283 | AA8: 225
A9: 上山口 | B9: 203 | C9: 97 | D9: 106 | E9: 85 | F9: 206 | G9: 99 | H9: 107 | I9: 87 | J9: 新町 | K9: 77 | L9: 36 | M9: 41 | N9: 30 | O9: 78 | P9: 37 | Q9: 41 | R9: 30 | S9: 恵み野東3丁目 | T9: 395 | U9: 191 | V9: 204 | W9: 165 | X9: 405 | Y9: 194 | Z9: 211 | AA9: 173
A10: 戸磯 | B10: 156 | C10: 70 | D10: 86 | E10: 77 | F10: 149 | G10: 68 | H10: 81 | I10: 74 | J10: 本町 | K10: 493 | L10: 240 | M10: 253 | N10: 244 | O10: 481 | P10: 230 | Q10: 251 | R10: 237 | S10: 恵み野東4丁目 | T10: 720 | U10: 351 | V10: 369 | W10: 253 | X10: 840 | Y10: 419 | Z10: 421 | AA10: 286
A11: 恵南 | B11: 784 | C11: 496 | D11: 288 | E11: 467 | F11: 805 | G11: 516 | H11: 289 | I11: 491 | J11: 有明町1丁目 | K11: 422 | L11: 218 | M11: 204 | N11: 241 | O11: 417 | P11: 209 | Q11: 208 | R11: 240 | S11: 恵み野東5丁目 | T11: 571 | U11: 280 | V11: 291 | W11: 251 | X11: 581 | Y11: 284 | Z11: 297 | AA11: 260
A12: 和光町1丁目 | B12: 458 | C12: 222 | D12: 236 | E12: 222 | F12: 454 | G12: 222 | H12: 232 | I12: 224 | J12: 有明町2丁目 | K12: 508 | L12: 256 | M12: 252 | N12: 234 | O12: 506 | P12: 253 | Q12: 253 | R12: 243 | S12: 恵み野東6丁目 | T12: 472 | U12: 231 | V12: 241 | W12: 189 | X12: 472 | Y12: 226 | Z12: 246 | AA12: 189
A13: 和光町2丁目 | B13: 575 | C13: 290 | D13: 285 | E13: 238 | F13: 596 | G13: 297 | H13: 299 | I13: 246 | J13: 有明町3丁目 | K13: 279 | L13: 125 | M13: 154 | N13: 134 | O13: 284 | P13: 128 | Q13: 156 | R13: 140 | S13: 恵み野東7丁目 | T13: 548 | U13: 272 | V13: 276 | W13: 206 | X13: 543 | Y13: 263 | Z13: 280 | AA13: 211
A14: 和光町3丁目 | B14: 575 | C14: 285 | D14: 290 | E14: 261 | F14: 595 | G14: 304 | H14: 291 | I14: 276 | J14: 有明町4丁目 | K14: 295 | L14: 146 | M14: 149 | N14: 136 | O14: 301 | P14: 152 | Q14: 149 | R14: 143 | S14: 恵み野西1丁目 | T14: 706 | U14: 315 | V14: 391 | W14: 324 | X14: 697 | Y14: 316 | Z14: 381 | AA14: 325
A15: 和光町4丁目 | B15: 453 | C15: 222 | D15: 231 | E15: 209 | F15: 456 | G15: 226 | H15: 230 | I15: 213 | J15: 有明町5丁目 | K15: 287 | L15: 139 | M15: 148 | N15: 122 | O15: 300 | P15: 148 | Q15: 152 | R15: 131 | S15: 恵み野西2丁目 | T15: 223 | U15: 97 | V15: 126 | W15: 104 | X15: 224 | Y15: 98 | Z15: 126 | AA15: 106
A16: 和光町5丁目 | B16: 860 | C16: 461 | D16: 399 | E16: 442 | F16: 868 | G16: 461 | H16: 407 | I16: 447 | J16: 有明町6丁目 | K16: 403 | L16: 205 | M16: 198 | N16: 203 | O16: 391 | P16: 201 | Q16: 190 | R16: 202 | S16: 恵み野西3丁目 | T16: 342 | U16: 166 | V16: 176 | W16: 158 | X16: 343 | Y16: 167 | Z16: 176 | AA16: 160
A17: 駒場町1丁目 | B17: 665 | C17: 330 | D17: 335 | E17: 330 | F17: 660 | G17: 335 | H17: 325 | I17: 340 | J17: 大町1丁目 | K17: 206 | L17: 102 | M17: 104 | N17: 102 | O17: 212 | P17: 102 | Q17: 110 | R17: 103 | S17: 恵み野西4丁目 | T17: 481 | U17: 229 | V17: 252 | W17: 209 | X17: 472 | Y17: 226 | Z17: 246 | AA17: 210
A18: 駒場町2丁目 | B18: 388 | C18: 183 | D18: 205 | E18: 157 | F18: 393 | G18: 182 | H18: 211 | I18: 163 | J18: 大町2丁目 | K18: 166 | L18: 90 | M18: 76 | N18: 90 | O18: 168 | P18: 90 | Q18: 78 | R18: 92 | S18: 恵み野西5丁目 | T18: 276 | U18: 120 | V18: 156 | W18: 145 | X18: 282 | Y18: 122 | Z18: 160 | AA18: 152
A19: 駒場町3丁目 | B19: 295 | C19: 139 | D19: 156 | E19: 135 | F19: 293 | G19: 137 | H19: 156 | I19: 139 | J19: 大町3丁目 | K19: 244 | L19: 124 | M19: 120 | N19: 115 | O19: 259 | P19: 130 | Q19: 129 | R19: 125 | S19: 恵み野西6丁目 | T19: 860 | U19: 398 | V19: 462 | W19: 378 | X19: 842 | Y19: 394 | Z19: 448 | AA19: 375
A20: 駒場町4丁目 | B20: 363 | C20: 178 | D20: 185 | E20: 172 | F20: 365 | G20: 181 | H20: 184 | I20: 171 | J20: 大町4丁目 | K20: 173 | L20: 87 | M20: 86 | N20: 92 | O20: 184 | P20: 95 | Q20: 89 | R20: 94 | S20: 恵み野南1丁目 | T20: 282 | U20: 127 | V20: 155 | W20: 145 | X20: 264 | Y20: 108 | Z20: 156 | AA20: 140
A21: 駒場町5丁目 | B21: 221 | C21: 112 | D21: 109 | E21: 105 | F21: 217 | G21: 107 | H21: 110 | I21: 102 | J21: 文京町1丁目 | K21: 579 | L21: 276 | M21: 303 | N21: 248 | O21: 576 | P21: 269 | Q21: 307 | R21: 247 | S21: 恵み野南2丁目 | T21: 538 | U21: 248 | V21: 290 | W21: 236 | X21: 519 | Y21: 238 | Z21: 281 | AA21: 236
A22: 駒場町6丁目 | B22: 288 | C22: 142 | D22: 146 | E22: 140 | F22: 314 | G22: 156 | H22: 158 | I22: 168 | J22: 文京町2丁目 | K22: 493 | L22: 230 | M22: 263 | N22: 198 | O22: 473 | P22: 225 | Q22: 248 | R22: 197 | S22: 恵み野南3丁目 | T22: 626 | U22: 286 | V22: 340 | W22: 274 | X22: 622 | Y22: 281 | Z22: 341 | AA22: 278
A23: 白樺町1丁目 | B23: 375 | C23: 183 | D23: 192 | E23: 168 | F23: 373 | G23: 182 | H23: 191 | I23: 169 | J23: 文京町3丁目 | K23: 157 | L23: 77 | M23: 80 | N23: 78 | O23: 153 | P23: 74 | Q23: 79 | R23: 78 | S23: 恵み野南4丁目 | T23: 733 | U23: 339 | V23: 394 | W23: 323 | X23: 724 | Y23: 334 | Z23: 390 | AA23: 324
A24: 白樺町2丁目 | B24: 341 | C24: 180 | D24: 161 | E24: 164 | F24: 331 | G24: 176 | H24: 155 | I24: 165 | J24: 文京町4丁目 | K24: 660 | L24: 331 | M24: 329 | N24: 277 | O24: 643 | P24: 318 | Q24: 325 | R24: 278 | S24: 恵み野北1丁目 | T24: 483 | U24: 230 | V24: 253 | W24: 209 | X24: 469 | Y24: 223 | Z24: 246 | AA24: 206
A25: 白樺町3丁目 | B25: 668 | C25: 324 | D25: 344 | E25: 253 | F25: 631 | G25: 306 | H25: 325 | I25: 252 | J25: 牧場 | K25: 305 | L25: 151 | M25: 154 | N25: 177 | O25: 294 | P25: 146 | Q25: 148 | R25: 172 | S25: 恵み野北2丁目 | T25: 506 | U25: 233 | V25: 273 | W25: 216 | X25: 491 | Y25: 228 | Z25: 263 | AA25: 217
A26: 白樺町4丁目 | B26: 30 | C26: 21 | D26: 9 | E26: 17 | F26: 26 | G26: 17 | H26: 9 | I26: 15 | J26: 盤尻 | K26: 15 | L26: 8 | M26: 7 | N26: 10 | O26: 19 | P26: 10 | Q26: 9 | R26: 11 | S26: 恵み野北3丁目 | T26: 286 | U26: 128 | V26: 158 | W26: 145 | X26: 293 | Y26: 133 | Z26: 160 | AA26: 152
A27: 黄金北1丁目 | B27: 593 | C27: 295 | D27: 298 | E27: 277 | F27: 575 | G27: 283 | H27: 292 | I27: 276 | J27: 桜森 | K27: - | L27: - | M27: - | N27: - | O27: - | P27: - | Q27: - | R27: - | S27: 恵み野北4丁目 | T27: 323 | U27: 157 | V27: 166 | W27: 135 | X27: 310 | Y27: 147 | Z27: 163 | AA27: 132
A28: 黄金北2丁目 | B28: 564 | C28: 262 | D28: 302 | E28: 258 | F28: 577 | G28: 265 | H28: 312 | I28: 259 | J28: 中島町1丁目 | K28: 631 | L28: 318 | M28: 313 | N28: 278 | O28: 639 | P28: 319 | Q28: 320 | R28: 282 | S28: 恵み野北5丁目 | T28: 332 | U28: 157 | V28: 175 | W28: 145 | X28: 341 | Y28: 165 | Z28: 176 | AA28: 150
A29: 黄金北3丁目 | B29: 797 | C29: 393 | D29: 404 | E29: 364 | F29: 789 | G29: 377 | H29: 412 | I29: 377 | J29: 中島町2丁目 | K29: 486 | L29: 225 | M29: 261 | N29: 223 | O29: 473 | P29: 221 | Q29: 252 | R29: 219 | S29: 恵み野北6丁目 | T29: 646 | U29: 310 | V29: 336 | W29: 254 | X29: 639 | Y29: 302 | Z29: 337 | AA29: 256
A30: 黄金北4丁目 | B30: 711 | C30: 340 | D30: 371 | E30: 314 | F30: 713 | G30: 339 | H30: 374 | I30: 318 | J30: 中島町3丁目 | K30: 216 | L30: 106 | M30: 110 | N30: 84 | O30: 209 | P30: 104 | Q30: 105 | R30: 83 | S30: 恵み野北7丁目 | T30: 831 | U30: 392 | V30: 439 | W30: 289 | X30: 804 | Y30: 376 | Z30: 428 | AA30: 294
A31: 黄金中央１丁目 | B31: 468 | C31: 210 | D31: 258 | E31: 245 | F31: 549 | G31: 238 | H31: 311 | I31: 309 | J31: 中島町4丁目 | K31: 998 | L31: 483 | M31: 515 | N31: 462 | O31: 987 | P31: 476 | Q31: 511 | R31: 463 | S31: 恵み野里美1丁目 | T31: 50 | U31: 21 | V31: 29 | W31: 35 | X31: 105 | Y31: 41 | Z31: 64 | AA31: 76
A32: 黄金中央２丁目 | B32: 311 | C32: 131 | D32: 180 | E32: 172 | F32: 295 | G32: 127 | H32: 168 | I32: 161 | J32: 中島町5丁目 | K32: 489 | L32: 245 | M32: 244 | N32: 263 | O32: 485 | P32: 253 | Q32: 232 | R32: 254 | S32: 恵み野里美2丁目 | T32: 379 | U32: 191 | V32: 188 | W32: 125 | X32: 438 | Y32: 218 | Z32: 220 | AA32: 143
A33: 黄金中央３丁目 | B33: 602 | C33: 302 | D33: 300 | E33: 299 | F33: 613 | G33: 301 | H33: 312 | I33: 303 | J33: 中島町6丁目 | K33: 688 | L33: 325 | M33: 363 | N33: 369 | O33: 708 | P33: 329 | Q33: 379 | R33: 377 | S33: 島松寿町1丁目 | T33: 629 | U33: 294 | V33: 335 | W33: 347 | X33: 640 | Y33: 297 | Z33: 343 | AA33: 350
A34: 黄金中央４丁目 | B34: 394 | C34: 188 | D34: 206 | E34: 204 | F34: 409 | G34: 202 | H34: 207 | I34: 207 | J34: 恵央町 | K34: 719 | L34: 299 | M34: 420 | N34: 383 | O34: 727 | P34: 304 | Q34: 423 | R34: 392 | S34: 島松寿町2丁目 | T34: 1023 | U34: 479 | V34: 544 | W34: 499 | X34: 978 | Y34: 458 | Z34: 520 | AA34: 488
A35: 黄金中央５丁目 | B35: - | C35: - | D35: - | E35: - | F35: - | G35: - | H35: - | I35: - | J35: 幸町1丁目 | K35: 246 | L35: 118 | M35: 128 | N35: 106 | O35: 236 | P35: 111 | Q35: 125 | R35: 105 | S35: 島松仲町1丁目 | T35: 267 | U35: 129 | V35: 138 | W35: 143 | X35: 264 | Y35: 136 | Z35: 128 | AA35: 144
A36: 黄金南１丁目 | B36: 928 | C36: 450 | D36: 478 | E36: 350 | F36: 956 | G36: 463 | H36: 493 | I36: 368 | J36: 幸町2丁目 | K36: 382 | L36: 173 | M36: 209 | N36: 177 | O36: 380 | P36: 176 | Q36: 204 | R36: 177 | S36: 島松仲町2丁目 | T36: 219 | U36: 101 | V36: 118 | W36: 115 | X36: 224 | Y36: 101 | Z36: 123 | AA36: 121
A37: 黄金南２丁目 | B37: 682 | C37: 330 | D37: 352 | E37: 275 | F37: 684 | G37: 334 | H37: 350 | I37: 288 | J37: 幸町3丁目 | K37: 417 | L37: 201 | M37: 216 | N37: 186 | O37: 424 | P37: 205 | Q37: 219 | R37: 192 | S37: 島松仲町3丁目 | T37: 160 | U37: 72 | V37: 88 | W37: 77 | X37: 161 | Y37: 73 | Z37: 88 | AA37: 76
A38: 黄金南３丁目 | B38: 877 | C38: 417 | D38: 460 | E38: 303 | F38: 894 | G38: 433 | H38: 461 | I38: 313 | J38: 幸町4丁目 | K38: 5 | L38: 2 | M38: 3 | N38: 2 | O38: 5 | P38: 2 | Q38: 3 | R38: 2 | S38: 島松東町1丁目 | T38: 287 | U38: 135 | V38: 152 | W38: 121 | X38: 277 | Y38: 133 | Z38: 144 | AA38: 118
A39: 黄金南４丁目 | B39: 896 | C39: 459 | D39: 437 | E39: 306 | F39: 934 | G39: 474 | H39: 460 | I39: 317 | J39: 柏陽町1丁目 | K39: 743 | L39: 358 | M39: 385 | N39: 365 | O39: 734 | P39: 351 | Q39: 383 | R39: 362 | S39: 島松東町2丁目 | T39: 356 | U39: 162 | V39: 194 | W39: 170 | X39: 348 | Y39: 162 | Z39: 186 | AA39: 168
A40: 黄金南５丁目 | B40: 255 | C40: 128 | D40: 127 | E40: 86 | F40: 260 | G40: 132 | H40: 128 | I40: 91 | J40: 柏陽町3丁目 | K40: 1606 | L40: 795 | M40: 811 | N40: 674 | O40: 1626 | P40: 805 | Q40: 821 | R40: 687 | S40: 島松東町3丁目 | T40: 338 | U40: 173 | V40: 165 | W40: 159 | X40: 333 | Y40: 172 | Z40: 161 | AA40: 161
A41: 黄金南６丁目 | B41: 308 | C41: 152 | D41: 156 | E41: 103 | F41: 316 | G41: 158 | H41: 158 | I41: 109 | J41: 柏陽町4丁目 | K41: 577 | L41: 263 | M41: 314 | N41: 324 | O41: 560 | P41: 253 | Q41: 307 | R41: 325 | S41: 島松東町4丁目 | T41: 209 | U41: 101 | V41: 108 | W41: 93 | X41: 206 | Y41: 97 | Z41: 109 | AA41: 95
A42: 黄金南７丁目 | B42: 818 | C42: 400 | D42: 418 | E42: 287 | F42: 828 | G42: 405 | H42: 423 | I42: 297 | J42: 柏木町 | K42: 1271 | L42: 697 | M42: 574 | N42: 697 | O42: 296 | P42: 200 | Q42: 96 | R42: 246 | S42: 島松本町1丁目 | T42: 496 | U42: 233 | V42: 263 | W42: 213 | X42: 490 | Y42: 227 | Z42: 263 | AA42: 220
A43: 相生町 | B43: 1820 | C43: 888 | D43: 932 | E43: 968 | F43: 1821 | G43: 884 | H43: 937 | I43: 1009 | J43: 柏木町1丁目 | K43: 421 | L43: 220 | M43: 201 | N43: 198 | O43: 432 | P43: 225 | Q43: 207 | R43: 208 | S43: 島松本町2丁目 | T43: 601 | U43: 292 | V43: 309 | W43: 267 | X43: 584 | Y43: 276 | Z43: 308 | AA43: 270
A44: 緑町1丁目 | B44: 158 | C44: 73 | D44: 85 | E44: 93 | F44: 161 | G44: 81 | H44: 80 | I44: 100 | J44: 柏木町2丁目 | K44: 266 | L44: 133 | M44: 133 | N44: 121 | O44: 261 | P44: 130 | Q44: 131 | R44: 117 | S44: 島松本町3丁目 | T44: 726 | U44: 339 | V44: 387 | W44: 323 | X44: 729 | Y44: 337 | Z44: 392 | AA44: 328
A45: 緑町2丁目 | B45: 672 | C45: 294 | D45: 378 | E45: 323 | F45: 656 | G45: 289 | H45: 367 | I45: 322 | J45: 柏木町3丁目 | K45: 589 | L45: 287 | M45: 302 | N45: 287 | O45: 603 | P45: 292 | Q45: 311 | R45: 297 | S45: 島松本町4丁目 | T45: 515 | U45: 249 | V45: 266 | W45: 218 | X45: 505 | Y45: 242 | Z45: 263 | AA45: 221
A46: 住吉町1丁目 | B46: 243 | C46: 125 | D46: 118 | E46: 117 | F46: 261 | G46: 132 | H46: 129 | I46: 130 | J46: 柏木町4丁目 | K46: - | L46: - | M46: - | N46: - | O46: =SUM(P46:Q46) -> 390 | P46: 204 | Q46: 186 | R46: 209 | S46: 島松旭町1丁目 | T46: 318 | U46: 149 | V46: 169 | W46: 132 | X46: 330 | Y46: 148 | Z46: 182 | AA46: 135
A47: 住吉町2丁目 | B47: 508 | C47: 239 | D47: 269 | E47: 272 | F47: 499 | G47: 232 | H47: 267 | I47: 264 | J47: 柏木町5丁目 | K47: - | L47: - | M47: - | N47: - | O47: =SUM(P47:Q47) -> 586 | P47: 302 | Q47: 284 | R47: 259 | S47: 島松旭町2丁目 | T47: 339 | U47: 166 | V47: 173 | W47: 139 | X47: 363 | Y47: 181 | Z47: 182 | AA47: 152
A48: 住吉町3丁目 | B48: 554 | C48: 276 | D48: 278 | E48: 261 | F48: 545 | G48: 264 | H48: 281 | I48: 253 | J48: 北柏木町1丁目 | K48: 796 | L48: 384 | M48: 412 | N48: 328 | O48: 770 | P48: 376 | Q48: 394 | R48: 324 | S48: 島松旭町3丁目 | T48: 331 | U48: 163 | V48: 168 | W48: 109 | X48: 311 | Y48: 148 | Z48: 163 | AA48: 104
A49: 住吉町4丁目 | B49: 406 | C49: 175 | D49: 231 | E49: 185 | F49: 422 | G49: 194 | H49: 228 | I49: 195 | J49: 北柏木町2丁目 | K49: 561 | L49: 278 | M49: 283 | N49: 256 | O49: 570 | P49: 279 | Q49: 291 | R49: 258 | S49: 島松旭町4丁目 | T49: 392 | U49: 178 | V49: 214 | W49: 168 | X49: 379 | Y49: 175 | Z49: 204 | AA49: 164
A50: 末広町 | B50: 625 | C50: 296 | D50: 329 | E50: 304 | F50: 627 | G50: 296 | H50: 331 | I50: 315 | J50: 北柏木町3丁目 | K50: 26 | L50: 14 | M50: 12 | N50: 12 | O50: 30 | P50: 15 | Q50: 15 | R50: 14 | S50: 西島松 | T50: 677 | U50: 411 | V50: 266 | W50: 466 | X50: 706 | Y50: 423 | Z50: 283 | AA50: 486
A51: 栄恵町 | B51: 183 | C51: 102 | D51: 81 | E51: 124 | F51: 186 | G51: 96 | H51: 90 | I51: 123 | J51: 北柏木町4丁目 | K51: 8 | L51: 4 | M51: 4 | N51: 3 | O51: 8 | P51: 4 | Q51: 4 | R51: 3 | S51: 南島松 | T51: 237 | U51: 101 | V51: 136 | W51: 130 | X51: 228 | Y51: 90 | Z51: 138 | AA51: 125
A52: 泉 町 | B52: 609 | C52: 325 | D52: 284 | E52: 367 | F52: 633 | G52: 335 | H52: 298 | I52: 375 | J52: 北柏木町5丁目 | K52: 3 | L52: 2 | M52: 1 | N52: 2 | O52: 1 | P52: - | Q52: 1 | R52: 1 | S52: 中島松 | T52: 160 | U52: 75 | V52: 85 | W52: 62 | X52: 157 | Y52: 73 | Z52: 84 | AA52: 62
A53: 桜町1丁目 | B53: 260 | C53: 143 | D53: 117 | E53: 132 | F53: 241 | G53: 133 | H53: 108 | I53: 121 | J53: 島松沢 | K53: 14 | L53: 8 | M53: 6 | N53: 8 | O53: 14 | P53: 8 | Q53: 6 | R53: 8 | S53: 下島松 | T53: 305 | U53: 155 | V53: 150 | W53: 159 | X53: 301 | Y53: 148 | Z53: 153 | AA53: 157
A54: 桜町2丁目 | B54: 788 | C54: 360 | D54: 428 | E54: 377 | F54: 780 | G54: 352 | H54: 428 | I54: 378 | J54: 美咲野1丁目 | K54: 605 | L54: 289 | M54: 316 | N54: 201 | O54: 602 | P54: 286 | Q54: 316 | R54: 203 | S54: 穂栄 | T54: 102 | U54: 50 | V54: 52 | W54: 51 | X54: 104 | Y54: 53 | Z54: 51 | AA54: 50
A55: 桜町3丁目 | B55: 320 | C55: 160 | D55: 160 | E55: 135 | F55: 324 | G55: 162 | H55: 162 | I55: 137 | J55: 美咲野2丁目 | K55: 373 | L55: 185 | M55: 188 | N55: 126 | O55: 371 | P55: 181 | Q55: 190 | R55: 126 | S55: 北島 | T55: 93 | U55: 49 | V55: 44 | W55: 40 | X55: 87 | Y55: 45 | Z55: 42 | AA55: 39
A56: 桜町4丁目 | B56: 1 | C56: 1 | D56: - | E56: 1 | F56: 1 | G56: 1 | H56: - | I56: 1 | J56: 美咲野3丁目 | K56: 376 | L56: 199 | M56: 177 | N56: 135 | O56: =SUM(P56:Q56) -> 384 | P56: 205 | Q56: 179 | R56: 139
A57: 京町 | B57: 164 | C57: 83 | D57: 81 | E57: 85 | F57: =SUM(G57:H57) -> 165 | G57: 85 | H57: 80 | I57: 84 | J57: 美咲野4丁目 | K57: 294 | L57: 149 | M57: 145 | N57: 103 | O57: =SUM(P57:Q57) -> 300 | P57: 149 | Q57: 151 | R57: 104 | S57: 合計 | T57: =SUM(B5:B57)+SUM(K5:K57)+SUM(T5:T55) -> 68974 | U57: 33589 | V57: 35385 | W57: 31688 | X57: =SUM(F5:F57)+SUM(O5:O57)+SUM(X5:X55) -> 69212 | Y57: =SUM(G5:G57)+SUM(P5:P57)+SUM(Y5:Y55) -> 33646 | Z57: =SUM(H5:H57)+SUM(Q5:Q57)+SUM(Z5:Z55) -> 35566 | AA57: 32266
A58: 〈資料〉生活環境部市民課
A59: 注）住民基本台帳法が改正され、平成24年7月より外国人住民が適用対象となった。

Sheet 年齢別人口（５歳階級）
A1: ３）年齢別人口(5歳階級)
Q2: （各年9月末日）
A3: 年 齢 | B3: 24年 | E3: 25年 | H3: 26年 | K3: 27年 | N3: 28年 | Q3: 年 齢
B4: 男 | C4: 女 | D4: 計 | E4: 男 | F4: 女 | G4: 計 | H4: 男 | I4: 女 | J4: 計 | K4: 男 | L4: 女 | M4: 計 | N4: 男 | O4: 女 | P4: 計
A5: 総数 | B5: 33806 | C5: 35320 | D5: 69126 | E5: =SUM(E8+E15+E29) -> 33648 | F5: 35228 | G5: 68876 | H5: 33610 | I5: 35340 | J5: 68950 | K5: 33589 | L5: 35385 | M5: 68974 | N5: 33646 | O5: 35566 | P5: 69212 | Q5: 総数
D6: (100%) | G6: (100%) | J6: (100%) | M6: (100%) | P6: (100%)
A7: 年少人口 | Q7: 年少人口
A8: 0歳～14歳 | B8: 4846 | C8: 4685 | D8: 9531 | E8: 4759 | F8: 4549 | G8: 9308 | H8: 4713 | I8: 4590 | J8: 9303 | K8: 4640 | L8: 4591 | M8: 9231 | N8: =SUM(N10:N12) -> 4625 | O8: =SUM(O10:O12) -> 4511 | P8: =SUM(N8:O8) -> 9136 | Q8: 0歳～14歳
C9: (13.8%) | D9: (13.8%) | G9: (13.5%) | J9: (13.5%) | M9: (13.4%) | P9: (13.2%)
A10: 0歳～4歳 | B10: 1466 | C10: 1383 | D10: 2849 | E10: 1392 | F10: 1323 | G10: 2715 | H10: 1374 | I10: 1350 | J10: 2724 | K10: 1332 | L10: 1355 | M10: 2687 | N10: 1333 | O10: 1349 | P10: =SUM(N10:O10) -> 2682 | Q10: 0歳～4歳
A11: 5～9 | B11: 1592 | C11: 1594 | D11: 3186 | E11: 1612 | F11: 1549 | G11: 3161 | H11: 1615 | I11: 1540 | J11: 3155 | K11: 1598 | L11: 1541 | M11: 3139 | N11: 1609 | O11: 1535 | P11: =SUM(N11:O11) -> 3144 | Q11: 5～9
A12: 10～14 | B12: 1788 | C12: 1708 | D12: 3496 | E12: 1755 | F12: 1677 | G12: 3432 | H12: 1724 | I12: 1700 | J12: 3424 | K12: 1710 | L12: 1695 | M12: 3405 | N12: 1683 | O12: 1627 | P12: 3310 | Q12: 10～14
A14: 生産年齢人口 | Q14: 生産年齢人口
A15: 15歳～64歳 | B15: 22245 | C15: 22251 | D15: 44496 | E15: 21883 | F15: 21879 | G15: 43762 | H15: 21538 | I15: 21504 | J15: 43042 | K15: 21314 | L15: 21191 | M15: 42505 | N15: =SUM(N17:N26) -> 21179 | O15: =SUM(O17:O26) -> 21086 | P15: =SUM(P17:P26) -> 42265 | Q15: 15歳～64歳
D16: (64.4%) | G16: (63.5%) | J16: (62.4%) | M16: (61.6%) | P16: (61.1%)
A17: 15歳～19歳 | B17: 1924 | C17: 1856 | D17: 3780 | E17: 1886 | F17: 1889 | G17: 3775 | H17: 1905 | I17: 1834 | J17: 3739 | K17: 1885 | L17: 1812 | M17: 3697 | N17: 1895 | O17: 1821 | P17: =SUM(N17:O17) -> 3716 | Q17: 15歳～19歳
A18: 20～24 | B18: 1955 | C18: 1812 | D18: 3767 | E18: 1900 | F18: 1771 | G18: 3671 | H18: 1857 | I18: 1737 | J18: 3594 | K18: 1850 | L18: 1706 | M18: 3556 | N18: 1831 | O18: 1725 | P18: 3556 | Q18: 20～24
A19: 25～29 | B19: 1808 | C19: 1804 | D19: 3612 | E19: 1723 | F19: 1724 | G19: 3447 | H19: 1693 | I19: 1675 | J19: 3368 | K19: 1702 | L19: 1562 | M19: 3264 | N19: 1677 | O19: 1554 | P19: 3231 | Q19: 25～29
A20: 30～34 | B20: 2091 | C20: 2089 | D20: 4180 | E20: 2040 | F20: 1968 | G20: 4008 | H20: 1913 | I20: 1943 | J20: 3856 | K20: 1870 | L20: 1935 | M20: 3805 | N20: 1877 | O20: 1918 | P20: 3795 | Q20: 30～34
A21: 35～39 | B21: 2640 | C21: 2600 | D21: 5240 | E21: 2548 | F21: 2469 | G21: 5017 | H21: 2465 | I21: 2358 | J21: 4823 | K21: 2358 | L21: 2286 | M21: 4644 | N21: 2256 | O21: 2206 | P21: 4462 | Q21: 35～39
A22: 40～44 | B22: 2501 | C22: 2423 | D22: 4924 | E22: 2542 | F22: 2532 | G22: 5074 | H22: 2591 | I22: 2567 | J22: 5158 | K22: 2597 | L22: 2618 | M22: 5215 | N22: 2581 | O22: 2629 | P22: 5210 | Q22: 40～44
A23: 45～49 | B23: 2176 | C23: 2258 | D23: 4434 | E23: 2239 | F23: 2296 | G23: 4535 | H23: 2324 | I23: 2357 | J23: 4681 | K23: 2372 | L23: 2353 | M23: 4725 | N23: 2510 | O23: 2456 | P23: 4966 | Q23: 45～49
A24: 50～54 | B24: 2120 | C24: 2113 | D24: 4233 | E24: 2115 | F24: 2169 | G24: 4284 | H24: 2134 | I24: 2204 | J24: 4338 | K24: 2175 | L24: 2245 | M24: 4420 | N24: 2130 | O24: 2211 | P24: 4341 | Q24: 50～54
A25: 55～59 | B25: 2225 | C25: 2372 | D25: 4597 | E25: 2142 | F25: 2209 | G25: 4351 | H25: 2105 | I25: 2126 | J25: 4231 | K25: 2074 | L25: 2103 | M25: 4177 | N25: 2075 | O25: 2077 | P25: 4152 | Q25: 55～59
A26: 60～64 | B26: 2805 | C26: 2924 | D26: 5729 | E26: 2748 | F26: 2852 | G26: 5600 | H26: 2551 | I26: 2703 | J26: 5254 | K26: 2431 | L26: 2571 | M26: 5002 | N26: 2347 | O26: 2489 | P26: 4836 | Q26: 60～64
A28: 老年人口 | Q28: 老年人口
A29: 65歳以上 | B29: 6715 | C29: 8384 | D29: 15099 | E29: 7006 | F29: 8800 | G29: 15806 | H29: 7359 | I29: 9246 | J29: 16605 | K29: 7635 | L29: 9603 | M29: 17238 | N29: =SUM(N31:N37) -> 7842 | O29: =SUM(O31:O37) -> 9969 | P29: =SUM(P31:P37) -> 17811 | Q29: 65歳以上
D30: (21.8%) | G30: (23.0%) | J30: (24.1%) | M30: (25%) | P30: (25.7%)
A31: 65歳～69歳 | B31: 1930 | C31: 2155 | D31: 4085 | E31: 2114 | F31: 2338 | G31: 4452 | H31: 2332 | I31: 2530 | J31: 4862 | K31: 2524 | L31: 2716 | M31: 5240 | N31: 2628 | O31: 2846 | P31: =SUM(N31:O31) -> 5474 | Q31: 65歳～69歳
A32: 70～74 | B32: 1676 | C32: 2075 | D32: 3751 | E32: 1676 | F32: 2086 | G32: 3762 | H32: 1721 | I32: 2136 | J32: 3857 | K32: 1736 | L32: 2116 | M32: 3852 | N32: 1747 | O32: 2078 | P32: 3825 | Q32: 70～74
A33: 75～79 | B33: 1484 | C33: 1758 | D33: 3242 | E33: 1494 | F33: 1815 | G33: 3309 | H33: 1493 | I33: 1870 | J33: 3363 | K33: 1461 | L33: 1853 | M33: 3314 | N33: 1465 | O33: 1906 | P33: 3371 | Q33: 75～79
A34: 80～84 | B34: 1026 | C34: 1191 | D34: 2217 | E34: 1065 | F34: 1272 | G34: 2337 | H34: 1066 | I34: 1338 | J34: 2404 | K34: 1124 | L34: 1435 | M34: 2559 | N34: 1168 | O34: 1541 | P34: 2709 | Q34: 80～84
A35: 85～89 | B35: 428 | C35: 755 | D35: 1183 | E35: 499 | F35: 783 | G35: 1282 | H35: 576 | I35: 840 | J35: 1416 | K35: 609 | L35: 907 | M35: 1516 | N35: 636 | O35: 960 | P35: 1596 | Q35: 85～89
A36: 90～94 | B36: 131 | C36: 344 | D36: 475 | E36: 122 | F36: 387 | G36: 509 | H36: 133 | I36: 406 | J36: 539 | K36: 150 | L36: 438 | M36: 588 | N36: 170 | O36: 482 | P36: 652 | Q36: 90～94
A37: 95歳以上 | B37: 40 | C37: 106 | D37: 146 | E37: 36 | F37: 119 | G37: 155 | H37: 38 | I37: 126 | J37: 164 | K37: 31 | L37: 138 | M37: 169 | N37: 28 | O37: =143+11+2 -> 156 | P37: =SUM(N37:O37) -> 184 | Q37: 95歳以上
A38: 〈資料〉生活環境部市民課、住民基本台帳

Sheet 町内別年齢別人口①
A1: ４）町内別年齢別人口(５歳階級)
X2: 平成28年9月末現在
A3: 町 名 | B3: 総数 | C3: 0歳～ 4歳 | D3: 5歳～ 9歳 | E3: 10歳～ 14歳 | F3: 15歳～ 19歳 | G3: 20歳～ 24歳 | H3: 25歳～ 29歳 | I3: 30歳～ 34歳 | J3: 35歳～ 39歳 | K3: 40歳～ 44歳 | L3: 45歳～ 49歳 | M3: 50歳～ 54歳 | N3: 55歳～59歳 | O3: 60歳～64歳 | P3: 65歳～69歳 | Q3: 70歳～74歳 | R3: 75歳～79歳 | S3: 80歳～84歳 | T3: 85歳～89歳 | U3: 90歳～94歳 | V3: 95歳～99歳 | W3: 100歳以上 | X3: 町 名
A4: 漁太 | B4: =SUM(C4:W4) -> 149 | C4: 5 | D4: 2 | E4: 2 | F4: 2 | G4: 2 | H4: 4 | I4: 3 | J4: 9 | K4: 8 | L4: 11 | M4: 8 | N4: 16 | O4: 11 | P4: 13 | Q4: 16 | R4: 20 | S4: 10 | T4: 4 | U4: 2 | V4: 1 | W4: - | X4: 漁太
A5: 林田 | B5: =SUM(C5:W5) -> 37 | C5: - | D5: 1 | E5: - | F5: - | G5: - | H5: 1 | I5: - | J5: 2 | K5: 2 | L5: - | M5: 2 | N5: 4 | O5: 4 | P5: 6 | Q5: 4 | R5: 3 | S5: 5 | T5: 1 | U5: 2 | V5: - | W5: - | X5: 林田
A6: 春日 | B6: =SUM(C6:W6) -> 130 | C6: 1 | D6: 5 | E6: 3 | F6: 2 | G6: 4 | H6: 5 | I6: 6 | J6: 5 | K6: 4 | L6: 10 | M6: 10 | N6: 9 | O6: 10 | P6: 11 | Q6: 13 | R6: 13 | S6: 8 | T6: 8 | U6: 1 | V6: 2 | W6: - | X6: 春日
A7: 中央 | B7: 247 | C7: 16 | D7: 19 | E7: 8 | F7: 6 | G7: 5 | H7: 8 | I7: 21 | J7: 16 | K7: 10 | L7: 12 | M7: 15 | N7: 15 | O7: 29 | P7: 14 | Q7: 14 | R7: 12 | S7: 13 | T7: 11 | U7: 3 | V7: - | W7: - | X7: 中央
A8: 上山口 | B8: 206 | C8: 8 | D8: 5 | E8: 3 | F8: 7 | G8: 8 | H8: 4 | I8: 10 | J8: 11 | K8: 12 | L8: 14 | M8: 6 | N8: 13 | O8: 22 | P8: 19 | Q8: 20 | R8: 14 | S8: 13 | T8: 8 | U8: 4 | V8: 5 | W8: - | X8: 上山口
A9: 戸磯 | B9: 149 | C9: 8 | D9: 2 | E9: 2 | F9: 2 | G9: 5 | H9: 9 | I9: 8 | J9: 9 | K9: 5 | L9: 6 | M9: 15 | N9: 8 | O9: 21 | P9: 19 | Q9: 5 | R9: 6 | S9: 8 | T9: 5 | U9: 5 | V9: 1 | W9: - | X9: 戸磯
A10: 恵南 | B10: =SUM(C10:W10) -> 805 | C10: 11 | D10: 23 | E10: 15 | F10: 55 | G10: 138 | H10: 77 | I10: 39 | J10: 42 | K10: 53 | L10: 43 | M10: 45 | N10: 48 | O10: 53 | P10: 53 | Q10: 44 | R10: 35 | S10: 17 | T10: 9 | U10: 4 | V10: 1 | W10: - | X10: 恵南
A11: 和光町１ 丁目 | B11: 454 | C11: 17 | D11: 22 | E11: 19 | F11: 16 | G11: 25 | H11: 23 | I11: 20 | J11: 31 | K11: 41 | L11: 32 | M11: 22 | N11: 26 | O11: 26 | P11: 44 | Q11: 31 | R11: 33 | S11: 15 | T11: 8 | U11: 3 | V11: - | W11: - | X11: 和光町１ 丁目
A12: 和光町２ 丁目 | B12: 596 | C12: 22 | D12: 30 | E12: 51 | F12: 42 | G12: 24 | H12: 19 | I12: 30 | J12: 44 | K12: 57 | L12: 56 | M12: 50 | N12: 28 | O12: 30 | P12: 34 | Q12: 33 | R12: 15 | S12: 18 | T12: 9 | U12: 4 | V12: - | W12: - | X12: 和光町２ 丁目
A13: 和光町３ 丁目 | B13: 595 | C13: 27 | D13: 38 | E13: 33 | F13: 30 | G13: 35 | H13: 46 | I13: 36 | J13: 46 | K13: 44 | L13: 44 | M13: 24 | N13: 30 | O13: 34 | P13: 31 | Q13: 34 | R13: 25 | S13: 20 | T13: 11 | U13: 7 | V13: - | W13: - | X13: 和光町３ 丁目
A14: 和光町４ 丁目 | B14: 456 | C14: 17 | D14: 20 | E14: 26 | F14: 25 | G14: 27 | H14: 30 | I14: 18 | J14: 33 | K14: 39 | L14: 35 | M14: 34 | N14: 18 | O14: 32 | P14: 31 | Q14: 32 | R14: 17 | S14: 10 | T14: 8 | U14: 3 | V14: 1 | W14: - | X14: 和光町４ 丁目
A15: 和光町５ 丁目 | B15: 868 | C15: 46 | D15: 63 | E15: 45 | F15: 70 | G15: 75 | H15: 55 | I15: 55 | J15: 72 | K15: 89 | L15: 54 | M15: 50 | N15: 36 | O15: 27 | P15: 38 | Q15: 31 | R15: 16 | S15: 25 | T15: 19 | U15: 2 | V15: - | W15: - | X15: 和光町５ 丁目
A16: 駒場町１ 丁目 | B16: 660 | C16: 27 | D16: 23 | E16: 15 | F16: 35 | G16: 40 | H16: 37 | I16: 41 | J16: 45 | K16: 47 | L16: 61 | M16: 52 | N16: 49 | O16: 36 | P16: 44 | Q16: 36 | R16: 28 | S16: 26 | T16: 13 | U16: 3 | V16: 2 | W16: - | X16: 駒場町１ 丁目
A17: 駒場町２ 丁目 | B17: 393 | C17: 30 | D17: 27 | E17: 16 | F17: 19 | G17: 15 | H17: 15 | I17: 30 | J17: 41 | K17: 27 | L17: 24 | M17: 18 | N17: 11 | O17: 24 | P17: 24 | Q17: 26 | R17: 23 | S17: 9 | T17: 10 | U17: 2 | V17: 1 | W17: 1 | X17: 駒場町２ 丁目
A18: 駒場町３ 丁目 | B18: 293 | C18: 12 | D18: 7 | E18: 6 | F18: 13 | G18: 17 | H18: 13 | I18: 15 | J18: 16 | K18: 21 | L18: 22 | M18: 23 | N18: 25 | O18: 27 | P18: 17 | Q18: 14 | R18: 21 | S18: 16 | T18: 7 | U18: 1 | V18: - | W18: - | X18: 駒場町３ 丁目
A19: 駒場町４ 丁目 | B19: 365 | C19: 13 | D19: 11 | E19: 12 | F19: 18 | G19: 16 | H19: 20 | I19: 17 | J19: 18 | K19: 28 | L19: 23 | M19: 17 | N19: 29 | O19: 33 | P19: 31 | Q19: 32 | R19: 25 | S19: 12 | T19: 6 | U19: 4 | V19: - | W19: - | X19: 駒場町４ 丁目
A20: 駒場町５ 丁目 | B20: 217 | C20: 5 | D20: 14 | E20: 9 | F20: 11 | G20: 5 | H20: 5 | I20: 18 | J20: 10 | K20: 14 | L20: 10 | M20: 16 | N20: 10 | O20: 18 | P20: 19 | Q20: 17 | R20: 15 | S20: 12 | T20: 5 | U20: 3 | V20: 1 | W20: - | X20: 駒場町５ 丁目
A21: 駒場町６ 丁目 | B21: 314 | C21: 8 | D21: 15 | E21: 12 | F21: 20 | G21: 17 | H21: 23 | I21: 21 | J21: 21 | K21: 29 | L21: 27 | M21: 18 | N21: 14 | O21: 13 | P21: 15 | Q21: 28 | R21: 13 | S21: 10 | T21: 8 | U21: 2 | V21: - | W21: - | X21: 駒場町６ 丁目
A22: 白樺町１ 丁目 | B22: 373 | C22: 13 | D22: 13 | E22: 22 | F22: 21 | G22: 21 | H22: 14 | I22: 23 | J22: 33 | K22: 29 | L22: 24 | M22: 40 | N22: 39 | O22: 20 | P22: 17 | Q22: 10 | R22: 14 | S22: 10 | T22: 6 | U22: 3 | V22: 1 | W22: - | X22: 白樺町１ 丁目
A23: 白樺町２ 丁目 | B23: 331 | C23: 8 | D23: 5 | E23: 10 | F23: 21 | G23: 19 | H23: 9 | I23: 9 | J23: 13 | K23: 31 | L23: 20 | M23: 15 | N23: 29 | O23: 29 | P23: 40 | Q23: 26 | R23: 22 | S23: 14 | T23: 9 | U23: 1 | V23: 1 | W23: - | X23: 白樺町２ 丁目
A24: 白樺町３ 丁目 | B24: 631 | C24: 10 | D24: 23 | E24: 44 | F24: 52 | G24: 39 | H24: 21 | I24: 17 | J24: 35 | K24: 47 | L24: 57 | M24: 78 | N24: 59 | O24: 40 | P24: 43 | Q24: 22 | R24: 25 | S24: 16 | T24: 1 | U24: 2 | V24: - | W24: - | X24: 白樺町３ 丁目
A25: 白樺町４ 丁目 | B25: 26 | C25: 1 | D25: - | E25: 4 | F25: 4 | G25: 2 | H25: - | I25: - | J25: 2 | K25: 3 | L25: 1 | M25: 6 | N25: 3 | O25: - | P25: - | Q25: - | R25: - | S25: - | T25: - | U25: - | V25: - | W25: - | X25: 白樺町４ 丁目
A26: 黄金北１丁目 | B26: 575 | C26: 35 | D26: 28 | E26: 27 | F26: 41 | G26: 36 | H26: 35 | I26: 46 | J26: 35 | K26: 44 | L26: 39 | M26: 39 | N26: 43 | O26: 34 | P26: 37 | Q26: 19 | R26: 17 | S26: 12 | T26: 2 | U26: 4 | V26: 2 | W26: - | X26: 黄金北１丁目
A27: 黄金北２丁目 | B27: 577 | C27: 18 | D27: 29 | E27: 29 | F27: 45 | G27: 34 | H27: 26 | I27: 28 | J27: 40 | K27: 48 | L27: 41 | M27: 39 | N27: 28 | O27: 31 | P27: 37 | Q27: 31 | R27: 27 | S27: 17 | T27: 22 | U27: 7 | V27: - | W27: - | X27: 黄金北２丁目
A28: 黄金北３丁目 | B28: 789 | C28: 14 | D28: 32 | E28: 32 | F28: 54 | G28: 76 | H28: 32 | I28: 42 | J28: 38 | K28: 58 | L28: 58 | M28: 39 | N28: 54 | O28: 62 | P28: 69 | Q28: 48 | R28: 36 | S28: 25 | T28: 13 | U28: 6 | V28: - | W28: 1 | X28: 黄金北３丁目
A29: 黄金北４丁目 | B29: 713 | C29: 24 | D29: 29 | E29: 33 | F29: 48 | G29: 61 | H29: 36 | I29: 44 | J29: 47 | K29: 55 | L29: 45 | M29: 54 | N29: 65 | O29: 64 | P29: 38 | Q29: 31 | R29: 16 | S29: 11 | T29: 8 | U29: 4 | V29: - | W29: - | X29: 黄金北４丁目
A30: 黄金中央１ 丁目 | B30: 549 | C30: 27 | D30: 28 | E30: 17 | F30: 22 | G30: 41 | H30: 54 | I30: 51 | J30: 49 | K30: 35 | L30: 46 | M30: 15 | N30: 11 | O30: 21 | P30: 17 | Q30: 28 | R30: 20 | S30: 32 | T30: 26 | U30: 8 | V30: 1 | W30: - | X30: 黄金中央１ 丁目
A31: 黄金中央２ 丁目 | B31: 295 | C31: 6 | D31: 12 | E31: 9 | F31: 19 | G31: 43 | H31: 22 | I31: 19 | J31: 19 | K31: 17 | L31: 16 | M31: 18 | N31: 15 | O31: 19 | P31: 13 | Q31: 14 | R31: 13 | S31: 14 | T31: 4 | U31: 3 | V31: - | W31: - | X31: 黄金中央２ 丁目
A32: 黄金中央３ 丁目 | B32: 613 | C32: 32 | D32: 31 | E32: 41 | F32: 43 | G32: 61 | H32: 46 | I32: 46 | J32: 64 | K32: 57 | L32: 57 | M32: 25 | N32: 10 | O32: 16 | P32: 35 | Q32: 23 | R32: 11 | S32: 8 | T32: 4 | U32: 3 | V32: - | W32: - | X32: 黄金中央３ 丁目
A33: 黄金中央４ 丁目 | B33: 409 | C33: 12 | D33: 17 | E33: 11 | F33: 35 | G33: 41 | H33: 28 | I33: 28 | J33: 25 | K33: 27 | L33: 27 | M33: 22 | N33: 32 | O33: 43 | P33: 31 | Q33: 12 | R33: 3 | S33: 7 | T33: 4 | U33: 4 | V33: - | W33: - | X33: 黄金中央４ 丁目
A34: 黄金中央５ 丁目 | B34: - | C34: - | D34: - | E34: - | F34: - | G34: - | H34: - | I34: - | J34: - | K34: - | L34: - | M34: - | N34: - | O34: - | P34: - | Q34: - | R34: - | S34: - | T34: - | U34: - | V34: - | W34: - | X34: 黄金中央５ 丁目
A35: 黄金南１丁目 | B35: 956 | C35: 59 | D35: 102 | E35: 81 | F35: 38 | G35: 32 | H35: 38 | I35: 58 | J35: 117 | K35: 127 | L35: 66 | M35: 49 | N35: 39 | O35: 31 | P35: 42 | Q35: 26 | R35: 22 | S35: 18 | T35: 6 | U35: 4 | V35: 1 | W35: - | X35: 黄金南１丁目
A36: 黄金南２丁目 | B36: 684 | C36: 27 | D36: 46 | E36: 55 | F36: 38 | G36: 26 | H36: 19 | I36: 32 | J36: 53 | K36: 80 | L36: 50 | M36: 43 | N36: 25 | O36: 46 | P36: 47 | Q36: 25 | R36: 25 | S36: 16 | T36: 18 | U36: 9 | V36: 4 | W36: - | X36: 黄金南２丁目
A37: 黄金南３丁目 | B37: 894 | C37: 48 | D37: 81 | E37: 97 | F37: 84 | G37: 37 | H37: 27 | I37: 40 | J37: 80 | K37: 121 | L37: 95 | M37: 67 | N37: 35 | O37: 23 | P37: 17 | Q37: 15 | R37: 10 | S37: 10 | T37: 6 | U37: 1 | W37: - | X37: 黄金南３丁目
A38: 黄金南４丁目 | B38: 934 | C38: 46 | D38: 89 | E38: 111 | F38: 80 | G38: 30 | H38: 14 | I38: 35 | J38: 98 | K38: 130 | L38: 111 | M38: 45 | N38: 29 | O38: 26 | P38: 29 | Q38: 16 | R38: 21 | S38: 12 | T38: 6 | U38: 5 | V38: 1 | W38: - | X38: 黄金南４丁目
A39: 黄金南５丁目 | B39: 260 | C39: 22 | D39: 40 | E39: 26 | F39: 6 | G39: 7 | H39: 2 | I39: 16 | J39: 40 | K39: 35 | L39: 23 | M39: 10 | N39: 4 | O39: 6 | P39: 12 | Q39: 8 | R39: 2 | S39: - | T39: 1 | U39: - | V39: - | W39: - | X39: 黄金南５丁目
A40: 黄金南６丁目 | B40: 316 | C40: 9 | D40: 26 | E40: 47 | F40: 26 | G40: 9 | H40: 10 | I40: 8 | J40: 35 | K40: 53 | L40: 43 | M40: 16 | N40: 3 | O40: 5 | P40: 6 | Q40: 10 | R40: 7 | S40: 3 | T40: - | U40: - | V40: - | W40: - | X40: 黄金南６丁目
A41: 黄金南７丁目 | B41: 828 | C41: 48 | D41: 77 | E41: 115 | F41: 58 | G41: 29 | H41: 21 | I41: 41 | J41: 105 | K41: 101 | L41: 98 | M41: 46 | N41: 19 | O41: 26 | P41: 19 | Q41: 14 | R41: 4 | S41: 5 | T41: 1 | U41: 1 | V41: - | W41: - | X41: 黄金南７丁目
A42: 相生町 | B42: 1821 | C42: 65 | D42: 56 | E42: 55 | F42: 66 | G42: 116 | H42: 165 | I42: 131 | J42: 106 | K42: 131 | L42: 137 | M42: 128 | N42: 119 | O42: 115 | P42: 122 | Q42: 84 | R42: 91 | S42: 74 | T42: 38 | U42: 17 | V42: 5 | W42: - | X42: 相生町
A43: 緑町1丁目 | B43: 161 | C43: 8 | D43: 2 | E43: 7 | F43: 5 | G43: 13 | H43: 11 | I43: 15 | J43: 12 | K43: 17 | L43: 10 | M43: 12 | N43: 5 | O43: 8 | P43: 7 | Q43: 6 | R43: 9 | S43: 10 | T43: - | U43: 3 | V43: 1 | W43: - | X43: 緑町1丁目
A44: 緑町2丁目 | B44: 656 | C44: 16 | D44: 30 | E44: 34 | F44: 39 | G44: 24 | H44: 33 | I44: 32 | J44: 46 | K44: 52 | L44: 39 | M44: 41 | N44: 34 | O44: 39 | P44: 59 | Q44: 48 | R44: 44 | S44: 34 | T44: 9 | U44: 2 | V44: 1 | W44: - | X44: 緑町2丁目
A45: 住吉町１ 丁目 | B45: 261 | C45: 8 | D45: 11 | E45: 6 | F45: 14 | G45: 14 | H45: 22 | I45: 17 | J45: 16 | K45: 14 | L45: 19 | M45: 16 | N45: 18 | O45: 17 | P45: 17 | Q45: 8 | R45: 20 | S45: 19 | T45: 3 | U45: 1 | V45: 1 | W45: - | X45: 住吉町１ 丁目
A46: 住吉町２ 丁目 | B46: 499 | C46: 20 | D46: 26 | E46: 22 | F46: 18 | G46: 19 | H46: 35 | I46: 27 | J46: 46 | K46: 33 | L46: 37 | M46: 35 | N46: 27 | O46: 30 | P46: 40 | Q46: 27 | R46: 25 | S46: 18 | T46: 13 | U46: 1 | V46: - | W46: - | X46: 住吉町２ 丁目
A47: 住吉町３ 丁目 | B47: 545 | C47: 40 | D47: 27 | E47: 22 | F47: 28 | G47: 20 | H47: 22 | I47: 38 | J47: 58 | K47: 57 | L47: 39 | M47: 31 | N47: 26 | O47: 36 | P47: 39 | Q47: 16 | R47: 21 | S47: 13 | T47: 8 | U47: 3 | V47: 1 | W47: - | X47: 住吉町３ 丁目
A48: 住吉町４ 丁目 | B48: 422 | C48: 21 | D48: 18 | E48: 23 | F48: 23 | G48: 19 | H48: 36 | I48: 32 | J48: 39 | K48: 24 | L48: 19 | M48: 10 | N48: 28 | O48: 33 | P48: 25 | Q48: 26 | R48: 22 | S48: 11 | T48: 11 | U48: 2 | V48: - | W48: - | X48: 住吉町４ 丁目
A49: 末広町 | B49: 627 | C49: 40 | D49: 31 | E49: 27 | F49: 19 | G49: 31 | H49: 43 | I49: 54 | J49: 44 | K49: 47 | L49: 38 | M49: 45 | N49: 35 | O49: 33 | P49: 33 | Q49: 23 | R49: 34 | S49: 28 | T49: 20 | U49: 1 | V49: 1 | W49: - | X49: 末広町
A50: 栄恵町 | B50: 186 | C50: 4 | D50: 7 | E50: 2 | F50: 2 | G50: 14 | H50: 14 | I50: 9 | J50: 4 | K50: 11 | L50: 19 | M50: 10 | N50: 17 | O50: 14 | P50: 17 | Q50: 11 | R50: 13 | S50: 14 | T50: 2 | U50: 1 | V50: 1 | W50: - | X50: 栄恵町
A51: 泉町 | B51: 633 | C51: 26 | D51: 13 | E51: 12 | F51: 30 | G51: 45 | H51: 61 | I51: 45 | J51: 39 | K51: 52 | L51: 55 | M51: 31 | N51: 42 | O51: 37 | P51: 48 | Q51: 32 | R51: 22 | S51: 26 | T51: 8 | U51: 9 | V51: - | W51: - | X51: 泉町
A52: 桜町１ 丁目 | B52: 241 | C52: 11 | D52: 13 | E52: 15 | F52: 3 | G52: 5 | H52: 13 | I52: 20 | J52: 20 | K52: 20 | L52: 23 | M52: 14 | N52: 18 | O52: 16 | P52: 16 | Q52: 8 | R52: 10 | S52: 12 | T52: 3 | U52: 1 | V52: - | W52: - | X52: 桜町１ 丁目
A53: 桜町２ 丁目 | B53: 780 | C53: 38 | D53: 29 | E53: 52 | F53: 47 | G53: 30 | H53: 44 | I53: 33 | J53: 63 | K53: 54 | L53: 48 | M53: 36 | N53: 39 | O53: 49 | P53: 55 | Q53: 37 | R53: 59 | S53: 39 | T53: 17 | U53: 11 | V53: - | W53: - | X53: 桜町２ 丁目
A54: 桜町３ 丁目 | B54: 324 | C54: 16 | D54: 21 | E54: 10 | F54: 17 | G54: 9 | H54: 17 | I54: 20 | J54: 25 | K54: 27 | L54: 25 | M54: 17 | N54: 11 | O54: 11 | P54: 18 | Q54: 20 | R54: 38 | S54: 17 | T54: 4 | U54: 1 | V54: - | W54: - | X54: 桜町３ 丁目
A55: 桜町４ 丁目 | B55: 1 | C55: - | D55: - | E55: - | F55: - | G55: - | H55: - | I55: - | J55: - | K55: - | L55: - | M55: - | N55: 1 | O55: - | P55: - | Q55: - | R55: - | S55: - | T55: - | U55: - | V55: - | W55: - | X55: 桜町４ 丁目
A56: 京町 | B56: =SUM(C56:W56) -> 165 | C56: 13 | D56: 4 | E56: 2 | F56: 7 | G56: 5 | H56: 16 | I56: 10 | J56: 16 | K56: 20 | L56: 11 | M56: 7 | N56: 12 | O56: 5 | P56: 13 | Q56: 11 | R56: 4 | S56: 4 | T56: 4 | U56: 1 | V56: - | W56: - | X56: 京町
A57: 〈資料〉生活環境部市民課

Sheet 町内別年齢別人口②
X2: 平成28年9月末現在
A3: 町 名 | B3: 総数 | C3: 0歳～ 4歳 | D3: 5歳～ 9歳 | E3: 10歳～ 14歳 | F3: 15歳～ 19歳 | G3: 20歳～ 24歳 | H3: 25歳～ 29歳 | I3: 30歳～ 34歳 | J3: 35歳～ 39歳 | K3: 40歳～ 44歳 | L3: 45歳～ 49歳 | M3: 50歳～ 54歳 | N3: 55歳～59歳 | O3: 60歳～64歳 | P3: 65歳～69歳 | Q3: 70歳～74歳 | R3: 75歳～79歳 | S3: 80歳～84歳 | T3: 85歳～89歳 | U3: 90歳～94歳 | V3: 95歳～99歳 | W3: 100歳以上 | X3: 町 名
A4: 漁町 | B4: =SUM(C4:W4) -> 1075 | C4: 53 | D4: 56 | E4: 27 | F4: 27 | G4: 56 | H4: 66 | I4: 94 | J4: 94 | K4: 90 | L4: 78 | M4: 47 | N4: 46 | O4: 58 | P4: 88 | Q4: 66 | R4: 61 | S4: 37 | T4: 18 | U4: 10 | V4: 3 | W4: - | X4: 漁町
A5: 福住町１ 丁目 | B5: =SUM(C5:W5) -> 729 | C5: 33 | D5: 47 | E5: 36 | F5: 23 | G5: 19 | H5: 30 | I5: 59 | J5: 57 | K5: 60 | L5: 43 | M5: 31 | N5: 28 | O5: 52 | P5: 43 | Q5: 36 | R5: 49 | S5: 50 | T5: 26 | U5: 4 | V5: 3 | W5: - | X5: 福住町１ 丁目
A6: 福住町２ 丁目 | B6: =SUM(C6:W6) -> 377 | C6: 11 | D6: 19 | E6: 29 | F6: 12 | G6: 14 | H6: 19 | I6: 26 | J6: 26 | K6: 34 | L6: 22 | M6: 26 | N6: 19 | O6: 17 | P6: 21 | Q6: 19 | R6: 18 | S6: 31 | T6: 10 | U6: 3 | V6: 1 | W6: - | X6: 福住町２ 丁目
A7: 福住町３ 丁目 | B7: 567 | C7: 29 | D7: 28 | E7: 18 | F7: 21 | G7: 24 | H7: 34 | I7: 31 | J7: 35 | K7: 43 | L7: 40 | M7: 32 | N7: 30 | O7: 32 | P7: 35 | Q7: 33 | R7: 39 | S7: 35 | T7: 14 | U7: 8 | V7: 6 | W7: - | X7: 福住町３ 丁目
A8: 新町 | B8: 78 | C8: 2 | D8: 5 | E8: 5 | F8: 8 | G8: 3 | H8: 1 | I8: 4 | J8: 6 | K8: 6 | L8: 6 | M8: 4 | N8: 7 | O8: 2 | P8: 8 | Q8: 3 | R8: 3 | T8: 2 | U8: 2 | V8: 1 | W8: - | X8: 新町
A9: 本町 | B9: 481 | C9: 20 | D9: 15 | E9: 25 | F9: 24 | G9: 22 | H9: 14 | I9: 22 | J9: 39 | K9: 35 | L9: 36 | M9: 34 | N9: 28 | O9: 31 | P9: 41 | Q9: 25 | R9: 33 | S9: 17 | T9: 16 | U9: 3 | V9: 1 | W9: - | X9: 本町
A10: 有明町１丁目 | B10: =SUM(C10:W10) -> 417 | C10: 8 | D10: 17 | E10: 17 | F10: 9 | G10: 18 | H10: 25 | I10: 15 | J10: 18 | K10: 34 | L10: 34 | M10: 34 | N10: 32 | O10: 22 | P10: 39 | Q10: 18 | R10: 33 | S10: 32 | T10: 10 | U10: 1 | V10: 1 | W10: - | X10: 有明町１丁目
A11: 有明町２ 丁目 | B11: 506 | C11: 19 | D11: 25 | E11: 22 | F11: 28 | G11: 25 | H11: 9 | I11: 25 | J11: 34 | K11: 34 | L11: 42 | M11: 34 | N11: 26 | O11: 31 | P11: 51 | Q11: 34 | R11: 33 | S11: 17 | T11: 12 | U11: 3 | V11: 2 | W11: - | X11: 有明町２ 丁目
A12: 有明町３ 丁目 | B12: 284 | C12: 6 | D12: 11 | E12: 14 | F12: 8 | G12: 11 | H12: 7 | I12: 8 | J12: 13 | K12: 18 | L12: 22 | M12: 9 | N12: 13 | O12: 26 | P12: 26 | Q12: 32 | R12: 31 | S12: 14 | T12: 10 | U12: 5 | V12: - | W12: - | X12: 有明町３ 丁目
A13: 有明町４ 丁目 | B13: 301 | C13: 12 | D13: 14 | E13: 18 | F13: 8 | G13: 9 | H13: 12 | I13: 23 | J13: 14 | K13: 26 | L13: 29 | M13: 16 | N13: 11 | O13: 19 | P13: 27 | Q13: 23 | R13: 17 | S13: 18 | T13: 3 | U13: 1 | V13: 1 | W13: - | X13: 有明町４ 丁目
A14: 有明町５ 丁目 | B14: 300 | C14: 19 | D14: 21 | E14: 17 | F14: 13 | G14: 18 | H14: 15 | I14: 14 | J14: 31 | K14: 24 | L14: 18 | M14: 20 | N14: 11 | O14: 16 | P14: 17 | Q14: 16 | R14: 13 | S14: 11 | T14: 5 | U14: 1 | V14: - | W14: - | X14: 有明町５ 丁目
A15: 有明町６ 丁目 | B15: 391 | C15: 12 | D15: 8 | E15: 10 | F15: 13 | G15: 12 | H15: 22 | I15: 23 | J15: 23 | K15: 27 | L15: 28 | M15: 28 | N15: 31 | O15: 32 | P15: 28 | Q15: 22 | R15: 32 | S15: 30 | T15: 7 | U15: 2 | V15: 1 | W15: - | X15: 有明町６ 丁目
A16: 大町１ 丁目 | B16: 212 | C16: 12 | D16: 9 | E16: 21 | F16: 6 | G16: 5 | H16: 11 | I16: 8 | J16: 22 | K16: 17 | L16: 12 | M16: 6 | N16: 9 | O16: 13 | P16: 16 | Q16: 21 | R16: 11 | S16: 9 | T16: 3 | U16: - | V16: 1 | W16: - | X16: 大町１ 丁目
A17: 大町２ 丁目 | B17: 168 | C17: 4 | D17: 8 | E17: 9 | F17: 4 | G17: 6 | H17: 6 | I17: 8 | J17: 6 | K17: 15 | L17: 10 | M17: 17 | N17: 9 | O17: 10 | P17: 7 | Q17: 10 | R17: 20 | S17: 12 | T17: 7 | U17: - | V17: - | W17: - | X17: 大町２ 丁目
A18: 大町３ 丁目 | B18: 259 | C18: 17 | D18: 11 | E18: 8 | F18: 9 | G18: 17 | H18: 14 | I18: 16 | J18: 19 | K18: 22 | L18: 18 | M18: 14 | N18: 16 | O18: 13 | P18: 17 | Q18: 16 | R18: 14 | S18: 7 | T18: 7 | U18: 4 | V18: - | W18: - | X18: 大町３ 丁目
A19: 大町４ 丁目 | B19: 184 | C19: 9 | D19: 2 | E19: 7 | F19: 8 | G19: 8 | H19: 7 | I19: 13 | J19: 9 | K19: 12 | L19: 11 | M19: 11 | N19: 16 | O19: 16 | P19: 14 | Q19: 11 | R19: 7 | S19: 10 | T19: 6 | U19: 5 | V19: 2 | W19: - | X19: 大町４ 丁目
A20: 文京町１ 丁目 | B20: 576 | C20: 23 | D20: 26 | E20: 33 | F20: 37 | G20: 22 | H20: 23 | I20: 23 | J20: 28 | K20: 42 | L20: 38 | M20: 48 | N20: 22 | O20: 47 | P20: 53 | Q20: 30 | R20: 32 | S20: 27 | T20: 9 | U20: 11 | V20: 2 | W20: - | X20: 文京町１ 丁目
A21: 文京町２ 丁目 | B21: 473 | C21: 19 | D21: 24 | E21: 30 | F21: 33 | G21: 26 | H21: 20 | I21: 24 | J21: 24 | K21: 40 | L21: 46 | M21: 40 | N21: 29 | O21: 16 | P21: 40 | Q21: 17 | R21: 25 | S21: 11 | T21: 7 | U21: 2 | V21: - | W21: - | X21: 文京町２ 丁目
A22: 文京町３ 丁目 | B22: 153 | C22: 8 | D22: 7 | E22: 20 | F22: 8 | G22: 6 | H22: 5 | I22: 5 | J22: 19 | K22: 12 | L22: 16 | M22: 5 | N22: 7 | O22: 7 | P22: 8 | Q22: 8 | R22: 7 | S22: 2 | T22: 2 | U22: - | V22: 1 | W22: - | X22: 文京町３ 丁目
A23: 文京町４ 丁目 | B23: 643 | C23: 17 | D23: 29 | E23: 29 | F23: 54 | G23: 27 | H23: 21 | I23: 36 | J23: 30 | K23: 57 | L23: 44 | M23: 55 | N23: 46 | O23: 41 | P23: 54 | Q23: 29 | R23: 26 | S23: 21 | T23: 18 | U23: 7 | V23: 2 | W23: - | X23: 文京町４ 丁目
A24: 牧場 | B24: 294 | C24: 8 | D24: 8 | E24: 8 | F24: 11 | G24: 10 | H24: 15 | I24: 8 | J24: 18 | K24: 19 | L24: 26 | M24: 23 | N24: 12 | O24: 24 | P24: 32 | Q24: 15 | R24: 19 | S24: 22 | T24: 8 | U24: 6 | V24: 2 | W24: - | X24: 牧場
A25: 盤尻 | B25: 19 | C25: 1 | D25: 3 | E25: - | F25: 1 | G25: - | H25: - | I25: - | J25: - | K25: 2 | L25: 1 | M25: 1 | N25: - | O25: 3 | P25: 2 | Q25: 1 | R25: 2 | S25: 2 | T25: - | U25: - | V25: - | W25: - | X25: 盤尻
A26: 桜森 | B26: - | C26: - | D26: - | E26: - | F26: - | G26: - | H26: - | I26: - | J26: - | K26: - | L26: - | M26: - | N26: - | O26: - | P26: - | Q26: - | R26: - | S26: - | T26: - | U26: - | V26: - | W26: - | X26: 桜森
A27: 中島町１ 丁目 | B27: 639 | C27: 35 | D27: 29 | E27: 34 | F27: 45 | G27: 37 | H27: 35 | I27: 46 | J27: 57 | K27: 48 | L27: 48 | M27: 42 | N27: 36 | O27: 23 | P27: 44 | Q27: 30 | R27: 21 | S27: 15 | T27: 10 | U27: 2 | V27: 2 | W27: - | X27: 中島町１ 丁目
A28: 中島町２ 丁目 | B28: 473 | C28: 10 | D28: 15 | E28: 18 | F28: 22 | G28: 34 | H28: 21 | I28: 32 | J28: 18 | K28: 24 | L28: 24 | M28: 35 | N28: 38 | O28: 51 | P28: 56 | Q28: 27 | R28: 15 | S28: 12 | T28: 17 | U28: 2 | V28: 2 | W28: - | X28: 中島町２ 丁目
A29: 中島町３ 丁目 | B29: 209 | C29: 7 | D29: 14 | E29: 8 | F29: 9 | G29: 12 | H29: 10 | I29: 13 | J29: 17 | K29: 16 | L29: 15 | M29: 19 | N29: 16 | O29: 17 | P29: 15 | Q29: 8 | R29: 4 | S29: 5 | T29: 3 | U29: 1 | V29: - | W29: - | X29: 中島町３ 丁目
A30: 中島町４ 丁目 | B30: 987 | C30: 20 | D30: 36 | E30: 48 | F30: 54 | G30: 71 | H30: 58 | I30: 66 | J30: 55 | K30: 61 | L30: 71 | M30: 57 | N30: 88 | O30: 110 | P30: 93 | Q30: 34 | R30: 28 | S30: 18 | T30: 12 | U30: 7 | V30: - | W30: - | X30: 中島町４ 丁目
A31: 中島町５ 丁目 | B31: 485 | C31: 22 | D31: 35 | E31: 25 | F31: 29 | G31: 50 | H31: 43 | I31: 39 | J31: 36 | K31: 43 | L31: 32 | M31: 22 | N31: 23 | O31: 19 | P31: 18 | Q31: 19 | R31: 14 | S31: 12 | T31: 3 | U31: 1 | V31: - | W31: - | X31: 中島町５ 丁目
A32: 中島町６ 丁目 | B32: 708 | C32: 42 | D32: 18 | E32: 17 | F32: 35 | G32: 39 | H32: 54 | I32: 53 | J32: 52 | K32: 40 | L32: 34 | M32: 35 | N32: 36 | O32: 61 | P32: 67 | Q32: 29 | R32: 21 | S32: 27 | T32: 29 | U32: 19 | V32: - | W32: - | X32: 中島町６ 丁目
A33: 恵央町 | B33: 727 | C33: 33 | D33: 41 | E33: 24 | F33: 22 | G33: 29 | H33: 35 | I33: 40 | J33: 43 | K33: 44 | L33: 40 | M33: 42 | N33: 31 | O33: 46 | P33: 62 | Q33: 58 | R33: 59 | S33: 42 | T33: 22 | U33: 12 | V33: 1 | W33: 1 | X33: 恵央町
A34: 幸町1丁目 | B34: 236 | C34: 8 | D34: 16 | E34: 7 | F34: 9 | G34: 9 | H34: 7 | I34: 3 | J34: 18 | K34: 12 | L34: 17 | M34: 21 | N34: 10 | O34: 9 | P34: 17 | Q34: 21 | R34: 29 | S34: 13 | T34: 7 | U34: 2 | V34: 1 | W34: - | X34: 幸町1丁目
A35: 幸町2丁目 | B35: 380 | C35: 11 | D35: 10 | E35: 14 | F35: 18 | G35: 18 | H35: 14 | I35: 17 | J35: 17 | K35: 24 | L35: 32 | M35: 34 | N35: 19 | O35: 29 | P35: 23 | Q35: 24 | R35: 29 | S35: 29 | T35: 12 | U35: 6 | V35: - | W35: - | X35: 幸町2丁目
A36: 幸町3丁目 | B36: 424 | C36: 16 | D36: 11 | E36: 16 | F36: 18 | G36: 20 | H36: 28 | I36: 19 | J36: 19 | K36: 16 | L36: 28 | M36: 30 | N36: 33 | O36: 37 | P36: 43 | Q36: 25 | R36: 29 | S36: 23 | T36: 9 | U36: 3 | V36: 1 | W36: - | X36: 幸町3丁目
A37: 幸町4丁目 | B37: 5 | C37: - | D37: - | E37: - | F37: - | G37: - | H37: - | I37: - | J37: - | K37: - | L37: 1 | M37: - | N37: - | O37: - | P37: 1 | Q37: 2 | R37: 1 | S37: - | T37: - | U37: - | V37: - | W37: - | X37: 幸町4丁目
A38: 柏陽町１ 丁目 | B38: 734 | C38: 26 | D38: 16 | E38: 26 | F38: 32 | G38: 19 | H38: 13 | I38: 29 | J38: 30 | K38: 44 | L38: 48 | M38: 36 | N38: 25 | O38: 59 | P38: 101 | Q38: 70 | R38: 64 | S38: 47 | T38: 29 | U38: 16 | V38: 3 | W38: 1 | X38: 柏陽町１ 丁目
A39: 柏陽町３ 丁目 | B39: 1626 | C39: 129 | D39: 157 | E39: 81 | F39: 47 | G39: 45 | H39: 58 | I39: 163 | J39: 146 | K39: 155 | L39: 92 | M39: 72 | N39: 74 | O39: 115 | P39: 132 | Q39: 68 | R39: 38 | S39: 31 | T39: 13 | U39: 8 | V39: 2 | W39: - | X39: 柏陽町３ 丁目
A40: 柏陽町４ 丁目 | B40: 560 | C40: 5 | D40: 7 | E40: 17 | F40: 18 | G40: 21 | H40: 14 | I40: 13 | J40: 20 | K40: 27 | L40: 32 | M40: 24 | N40: 26 | O40: 49 | P40: 80 | Q40: 60 | R40: 67 | S40: 45 | T40: 21 | U40: 11 | V40: 3 | W40: - | X40: 柏陽町４ 丁目
A41: 柏木町 | B41: 296 | C41: 1 | D41: 2 | E41: 3 | F41: 16 | G41: 70 | H41: 42 | I41: 22 | J41: 12 | K41: 8 | L41: 6 | M41: 4 | N41: 9 | O41: 12 | P41: 15 | Q41: 12 | R41: 8 | S41: 16 | T41: 11 | U41: 18 | V41: 9 | W41: - | X41: 柏木町
A42: 柏木町１ 丁目 | B42: 432 | C42: 15 | D42: 13 | E42: 9 | F42: 19 | G42: 19 | H42: 18 | I42: 24 | J42: 31 | K42: 39 | L42: 29 | M42: 35 | N42: 30 | O42: 33 | P42: 30 | Q42: 31 | R42: 25 | S42: 17 | T42: 8 | U42: 7 | V42: - | W42: - | X42: 柏木町１ 丁目
A43: 柏木町２ 丁目 | B43: 261 | C43: 22 | D43: 14 | E43: 12 | F43: 10 | G43: 17 | H43: 18 | I43: 20 | J43: 15 | K43: 13 | L43: 18 | M43: 15 | N43: 14 | O43: 18 | P43: 13 | Q43: 18 | R43: 13 | S43: 7 | T43: 4 | U43: - | V43: - | W43: - | X43: 柏木町２ 丁目
A44: 柏木町３ 丁目 | B44: 603 | C44: 23 | D44: 32 | E44: 17 | F44: 21 | G44: 26 | H44: 31 | I44: 38 | J44: 43 | K44: 45 | L44: 61 | M44: 30 | N44: 48 | O44: 44 | P44: 37 | Q44: 29 | R44: 37 | S44: 22 | T44: 12 | U44: 6 | V44: 1 | W44: - | X44: 柏木町３ 丁目
A45: 柏木町４ 丁目 | B45: 390 | C45: 18 | D45: 9 | E45: 10 | F45: 11 | G45: 24 | H45: 26 | I45: 28 | J45: 28 | K45: 24 | L45: 30 | M45: 23 | N45: 16 | O45: 20 | P45: 44 | Q45: 26 | R45: 23 | S45: 14 | T45: 9 | U45: 4 | V45: 3 | W45: - | X45: 柏木町４ 丁目
A46: 柏木町５ 丁目 | B46: 586 | C46: 28 | D46: 35 | E46: 27 | F46: 30 | G46: 26 | H46: 30 | I46: 32 | J46: 33 | K46: 56 | L46: 61 | M46: 34 | N46: 41 | O46: 41 | P46: 34 | Q46: 27 | R46: 18 | S46: 28 | T46: 4 | U46: 1 | V46: - | W46: - | X46: 柏木町５ 丁目
A47: 北柏木町１ 丁目 | B47: 770 | C47: 38 | D47: 29 | E47: 24 | F47: 39 | G47: 56 | H47: 29 | I47: 42 | J47: 50 | K47: 47 | L47: 50 | M47: 55 | N47: 62 | O47: 85 | P47: 53 | Q47: 33 | R47: 32 | S47: 15 | T47: 21 | U47: 8 | V47: 2 | W47: - | X47: 北柏木町１ 丁目
A48: 北柏木町２ 丁目 | B48: 570 | C48: 19 | D48: 17 | E48: 17 | F48: 24 | G48: 36 | H48: 24 | I48: 25 | J48: 32 | K48: 36 | L48: 47 | M48: 29 | N48: 28 | O48: 50 | P48: 74 | Q48: 47 | R48: 27 | S48: 22 | T48: 9 | U48: 4 | V48: 3 | W48: - | X48: 北柏木町２ 丁目
A49: 北柏木町３ 丁目 | B49: 30 | C49: 1 | D49: 2 | E49: 1 | F49: - | G49: 1 | H49: 1 | I49: - | J49: 2 | K49: 2 | L49: 1 | M49: 1 | N49: 1 | O49: 4 | P49: 2 | Q49: 5 | R49: 3 | S49: 2 | T49: 1 | U49: - | V49: - | W49: - | X49: 北柏木町３ 丁目
A50: 北柏木町４ 丁目 | B50: 8 | C50: 1 | D50: 2 | E50: - | F50: - | G50: - | H50: - | I50: - | J50: 1 | K50: 2 | L50: - | M50: - | N50: - | O50: - | P50: 1 | Q50: 1 | R50: - | S50: - | T50: - | U50: - | V50: - | W50: - | X50: 北柏木町４ 丁目
A51: 北柏木町５ 丁目 | B51: 1 | C51: - | D51: - | E51: - | F51: - | G51: - | H51: - | I51: - | J51: - | K51: - | L51: - | M51: - | N51: - | O51: - | P51: - | Q51: 1 | R51: - | S51: - | T51: - | U51: - | V51: - | W51: - | X51: 北柏木町５ 丁目
A52: 島松沢 | B52: 14 | C52: - | D52: - | E52: - | F52: - | G52: - | H52: 1 | I52: - | J52: 1 | K52: - | L52: - | M52: 1 | N52: 3 | O52: 1 | P52: 1 | Q52: 2 | R52: 2 | S52: - | T52: 2 | U52: - | V52: - | W52: - | X52: 島松沢
A53: 美咲野１ 丁目 | B53: 602 | C53: 14 | D53: 22 | E53: 33 | F53: 78 | G53: 52 | H53: 32 | I53: 12 | J53: 20 | K53: 44 | L53: 99 | M53: 87 | N53: 44 | O53: 15 | P53: 18 | Q53: 12 | R53: 10 | S53: 4 | T53: 5 | U53: - | V53: 1 | W53: - | X53: 美咲野１ 丁目
A54: 美咲野２ 丁目 | B54: 371 | C54: 4 | D54: 13 | E54: 38 | F54: 65 | G54: 23 | H54: 5 | I54: 6 | J54: 11 | K54: 49 | L54: 72 | M54: 31 | N54: 13 | O54: 11 | P54: 10 | Q54: 7 | R54: 3 | S54: 5 | T54: 3 | U54: 1 | V54: 1 | W54: - | X54: 美咲野２ 丁目
A55: 美咲野３ 丁目 | B55: 384 | C55: 9 | D55: 13 | E55: 27 | F55: 46 | G55: 26 | H55: 21 | I55: 15 | J55: 19 | K55: 26 | L55: 60 | M55: 54 | N55: 29 | O55: 12 | P55: 7 | Q55: 2 | R55: 10 | S55: 4 | T55: 3 | U55: 1 | V55: - | W55: - | X55: 美咲野３ 丁目
A56: 美咲野４ 丁目 | B56: =SUM(C56:W56) -> 300 | C56: 4 | D56: 14 | E56: 29 | F56: 49 | G56: 17 | H56: 6 | I56: 5 | J56: 6 | K56: 44 | L56: 39 | M56: 35 | N56: 10 | O56: 10 | P56: 6 | Q56: 5 | R56: 5 | S56: 7 | T56: 7 | U56: 2 | V56: - | W56: - | X56: 美咲野４ 丁目
A57: 〈資料〉生活環境部市民課

Sheet 町内別年齢別人口③
X2: 平成28年9月末現在
A3: 町 名 | B3: 総数 | C3: 0歳～ 4歳 | D3: 5歳～ 9歳 | E3: 10歳～ 14歳 | F3: 15歳～ 19歳 | G3: 20歳～ 24歳 | H3: 25歳～ 29歳 | I3: 30歳～ 34歳 | J3: 35歳～ 39歳 | K3: 40歳～ 44歳 | L3: 45歳～ 49歳 | M3: 50歳～ 54歳 | N3: 55歳～59歳 | O3: 60歳～64歳 | P3: 65歳～69歳 | Q3: 70歳～74歳 | R3: 75歳～79歳 | S3: 80歳～84歳 | T3: 85歳～89歳 | U3: 90歳～94歳 | V3: 95歳～99歳 | W3: 100歳以上 | X3: 町 名
A4: 美咲野５ 丁目 | B4: =SUM(C4:W4) -> 243 | C4: 8 | D4: 11 | E4: 25 | F4: 19 | G4: 9 | H4: 4 | I4: 5 | J4: 15 | K4: 20 | L4: 21 | M4: 16 | N4: 18 | O4: 15 | P4: 15 | Q4: 7 | R4: 18 | S4: 8 | T4: 6 | U4: 2 | V4: 1 | W4: - | X4: 美咲野５ 丁目
A5: 美咲野６ 丁目 | B5: =SUM(C5:W5) -> 391 | C5: 16 | D5: 30 | E5: 41 | F5: 38 | G5: 14 | H5: 3 | I5: 7 | J5: 20 | K5: 55 | L5: 54 | M5: 19 | N5: 27 | O5: 8 | P5: 10 | Q5: 21 | R5: 12 | S5: 7 | T5: 2 | U5: 5 | V5: 2 | W5: - | X5: 美咲野６ 丁目
A6: 恵み野東１ 丁目 | B6: =SUM(C6:W6) -> 306 | C6: 10 | D6: 15 | E6: 12 | F6: 14 | G6: 4 | H6: 9 | I6: 15 | J6: 13 | K6: 8 | L6: 11 | M6: 17 | N6: 26 | O6: 45 | P6: 45 | Q6: 22 | R6: 10 | S6: 18 | T6: 6 | U6: 6 | V6: - | W6: - | X6: 恵み野東１ 丁目
A7: 恵み野東２ 丁目 | B7: 540 | C7: 16 | D7: 20 | E7: 21 | F7: 32 | G7: 21 | H7: 18 | I7: 22 | J7: 27 | K7: 27 | L7: 29 | M7: 33 | N7: 51 | O7: 75 | P7: 65 | Q7: 27 | R7: 18 | S7: 18 | T7: 14 | U7: 5 | V7: 1 | W7: - | X7: 恵み野東２ 丁目
A8: 恵み野東３ 丁目 | B8: 405 | C8: 11 | D8: 14 | E8: 15 | F8: 22 | G8: 13 | H8: 17 | I8: 17 | J8: 20 | K8: 23 | L8: 30 | M8: 22 | N8: 23 | O8: 61 | P8: 46 | Q8: 19 | R8: 19 | S8: 18 | T8: 10 | U8: 1 | V8: 4 | W8: - | X8: 恵み野東３ 丁目
A9: 恵み野東４ 丁目 | B9: 840 | C9: 119 | D9: 81 | E9: 36 | F9: 24 | G9: 12 | H9: 51 | I9: 100 | J9: 104 | K9: 63 | L9: 19 | M9: 30 | N9: 47 | O9: 65 | P9: 31 | Q9: 15 | R9: 18 | S9: 9 | T9: 10 | U9: 6 | V9: - | W9: - | X9: 恵み野東４ 丁目
A10: 恵み野東５ 丁目 | B10: 581 | C10: 21 | D10: 25 | E10: 24 | F10: 27 | G10: 20 | H10: 20 | I10: 29 | J10: 36 | K10: 33 | L10: 37 | M10: 34 | N10: 58 | O10: 73 | P10: 58 | Q10: 26 | R10: 25 | S10: 22 | T10: 6 | U10: 5 | V10: 2 | W10: - | X10: 恵み野東５ 丁目
A11: 恵み野東６ 丁目 | B11: 472 | C11: 11 | D11: 16 | E11: 22 | F11: 19 | G11: 17 | H11: 20 | I11: 25 | J11: 25 | K11: 23 | L11: 29 | M11: 36 | N11: 40 | O11: 68 | P11: 48 | Q11: 22 | R11: 20 | S11: 21 | T11: 5 | U11: 3 | V11: 1 | W11: 1 | X11: 恵み野東６ 丁目
A12: 恵み野東７ 丁目 | B12: 543 | C12: 19 | D12: 21 | E12: 19 | F12: 37 | G12: 46 | H12: 24 | I12: 19 | J12: 23 | K12: 37 | L12: 34 | M12: 64 | N12: 60 | O12: 52 | P12: 28 | Q12: 16 | R12: 16 | S12: 15 | T12: 6 | U12: 3 | V12: 3 | W12: 1 | X12: 恵み野東７ 丁目
A13: 恵み野西１ 丁目 | B13: 697 | C13: 16 | D13: 27 | E13: 33 | F13: 21 | G13: 24 | H13: 22 | I13: 27 | J13: 36 | K13: 41 | L13: 40 | M13: 31 | N13: 31 | O13: 60 | P13: 95 | Q13: 59 | R13: 39 | S13: 45 | T13: 31 | U13: 16 | V13: 2 | W13: 1 | X13: 恵み野西１ 丁目
A14: 恵み野西２ 丁目 | B14: 224 | C14: 5 | D14: 6 | E14: 2 | F14: 15 | G14: 12 | H14: 8 | I14: 10 | J14: 11 | K14: 16 | L14: 15 | M14: 13 | N14: 13 | O14: 21 | P14: 27 | Q14: 15 | R14: 11 | S14: 10 | T14: 9 | U14: 3 | V14: 2 | W14: - | X14: 恵み野西２ 丁目
A15: 恵み野西３ 丁目 | B15: 343 | C15: 6 | D15: 6 | E15: 11 | F15: 8 | G15: 5 | H15: 10 | I15: 15 | J15: 9 | K15: 15 | L15: 18 | M15: 18 | N15: 22 | O15: 33 | P15: 54 | Q15: 37 | R15: 24 | S15: 18 | T15: 21 | U15: 10 | V15: 2 | W15: 1 | X15: 恵み野西３ 丁目
A16: 恵み野西４ 丁目 | B16: 472 | C16: 4 | D16: 19 | E16: 21 | F16: 16 | G16: 10 | H16: 10 | I16: 12 | J16: 25 | K16: 25 | L16: 22 | M16: 20 | N16: 28 | O16: 42 | P16: 97 | Q16: 51 | R16: 28 | S16: 22 | T16: 14 | U16: 5 | V16: 1 | W16: - | X16: 恵み野西４ 丁目
A17: 恵み野西５ 丁目 | B17: 282 | C17: 2 | D17: 4 | E17: 10 | F17: 13 | G17: 5 | H17: 4 | I17: 9 | J17: 13 | K17: 5 | L17: 14 | M17: 11 | N17: 16 | O17: 35 | P17: 42 | Q17: 19 | R17: 14 | S17: 18 | T17: 21 | U17: 23 | V17: 4 | W17: - | X17: 恵み野西５ 丁目
A18: 恵み野西６ 丁目 | B18: 842 | C18: 14 | D18: 23 | E18: 28 | F18: 42 | G18: 39 | H18: 32 | I18: 35 | J18: 30 | K18: 34 | L18: 35 | M18: 48 | N18: 71 | O18: 92 | P18: 113 | Q18: 65 | R18: 44 | S18: 55 | T18: 26 | U18: 12 | V18: 4 | W18: - | X18: 恵み野西６ 丁目
A19: 恵み野南１ 丁目 | B19: 264 | C19: 5 | D19: 12 | E19: 17 | F19: 21 | G19: 9 | H19: 7 | I19: 8 | J19: 9 | K19: 28 | L19: 20 | M19: 22 | N19: 8 | O19: 9 | P19: 19 | Q19: 24 | R19: 24 | S19: 12 | T19: 8 | U19: 2 | V19: - | W19: - | X19: 恵み野南１ 丁目
A20: 恵み野南２ 丁目 | B20: 519 | C20: 5 | D20: 14 | E20: 19 | F20: 27 | G20: 21 | H20: 11 | I20: 20 | J20: 27 | K20: 33 | L20: 29 | M20: 17 | N20: 25 | O20: 42 | P20: 81 | Q20: 86 | R20: 33 | S20: 17 | T20: 9 | U20: 1 | V20: 2 | W20: - | X20: 恵み野南２ 丁目
A21: 恵み野南３ 丁目 | B21: 622 | C21: 11 | D21: 16 | E21: 23 | F21: 25 | G21: 21 | H21: 13 | I21: 14 | J21: 37 | K21: 42 | L21: 40 | M21: 16 | N21: 29 | O21: 70 | P21: 102 | Q21: 64 | R21: 41 | S21: 26 | T21: 18 | U21: 8 | V21: 3 | W21: 3 | X21: 恵み野南３ 丁目
A22: 恵み野南４ 丁目 | B22: 724 | C22: 11 | D22: 17 | E22: 46 | F22: 28 | G22: 15 | H22: 13 | I22: 21 | J22: 46 | K22: 38 | L22: 41 | M22: 37 | N22: 40 | O22: 81 | P22: 110 | Q22: 67 | R22: 36 | S22: 35 | T22: 31 | U22: 9 | V22: 2 | W22: - | X22: 恵み野南４ 丁目
A23: 恵み野北１ 丁目 | B23: 469 | C23: 5 | D23: 8 | E23: 13 | F23: 18 | G23: 17 | H23: 12 | I23: 18 | J23: 22 | K23: 16 | L23: 11 | M23: 34 | N23: 53 | O23: 59 | P23: 68 | Q23: 35 | R23: 30 | S23: 19 | T23: 26 | U23: 4 | V23: 1 | W23: - | X23: 恵み野北１ 丁目
A24: 恵み野北２ 丁目 | B24: 491 | C24: 6 | D24: 22 | E24: 16 | F24: 16 | G24: 14 | H24: 12 | I24: 25 | J24: 17 | K24: 18 | L24: 27 | M24: 31 | N24: 49 | O24: 65 | P24: 53 | Q24: 38 | R24: 24 | S24: 30 | T24: 21 | U24: 7 | V24: - | W24: - | X24: 恵み野北２ 丁目
A25: 恵み野北３ 丁目 | B25: 293 | C25: 4 | D25: 10 | E25: 12 | F25: 28 | G25: 15 | H25: 11 | I25: 9 | J25: 16 | K25: 14 | L25: 11 | M25: 13 | N25: 18 | O25: 33 | P25: 43 | Q25: 20 | R25: 14 | S25: 9 | T25: 9 | U25: 4 | V25: - | W25: - | X25: 恵み野北３ 丁目
A26: 恵み野北４ 丁目 | B26: 310 | C26: 8 | D26: 15 | E26: 15 | F26: 17 | G26: 15 | H26: 11 | I26: 17 | J26: 11 | K26: 18 | L26: 16 | M26: 22 | N26: 22 | O26: 36 | P26: 33 | Q26: 26 | R26: 14 | S26: 6 | T26: 5 | U26: 3 | V26: - | W26: - | X26: 恵み野北４ 丁目
A27: 恵み野北５ 丁目 | B27: 341 | C27: 12 | D27: 13 | E27: 17 | F27: 13 | G27: 15 | H27: 9 | I27: 15 | J27: 14 | K27: 17 | L27: 18 | M27: 15 | N27: 30 | O27: 34 | P27: 48 | Q27: 29 | R27: 12 | S27: 15 | T27: 8 | U27: 5 | V27: 1 | W27: 1 | X27: 恵み野北５ 丁目
A28: 恵み野北６ 丁目 | B28: 639 | C28: 20 | D28: 26 | E28: 35 | F28: 65 | G28: 53 | H28: 30 | I28: 25 | J28: 22 | K28: 45 | L28: 54 | M28: 76 | N28: 53 | O28: 42 | P28: 35 | Q28: 16 | R28: 16 | S28: 17 | T28: 5 | U28: 2 | V28: 2 | W28: - | X28: 恵み野北６ 丁目
A29: 恵み野北７ 丁目 | B29: 804 | C29: 7 | D29: 27 | E29: 56 | F29: 87 | G29: 61 | H29: 26 | I29: 18 | J29: 25 | K29: 52 | L29: 87 | M29: 110 | N29: 103 | O29: 48 | P29: 43 | Q29: 22 | R29: 9 | S29: 11 | T29: 10 | U29: 1 | V29: 1 | W29: - | X29: 恵み野北７ 丁目
A30: 恵み野里美１丁目 | B30: 105 | C30: 4 | D30: - | E30: 2 | F30: 7 | G30: 5 | H30: 12 | I30: 8 | J30: 5 | K30: 2 | L30: 4 | M30: 3 | N30: 2 | O30: 3 | P30: 2 | Q30: 7 | R30: 9 | S30: 15 | T30: 12 | U30: 2 | V30: - | W30: 1 | X30: 恵み野里美１丁目
A31: 恵み野里美２丁目 | B31: 438 | C31: 110 | D31: 41 | E31: 16 | F31: 6 | G31: 2 | H31: 24 | I31: 96 | J31: 49 | K31: 40 | L31: 20 | M31: 10 | N31: 3 | O31: 8 | P31: 9 | Q31: - | R31: - | S31: 1 | T31: 2 | U31: 1 | V31: - | W31: - | X31: 恵み野里美２丁目
A32: 島松寿町１ 丁目 | B32: 640 | C32: 15 | D32: 16 | E32: 18 | F32: 25 | G32: 20 | H32: 25 | I32: 26 | J32: 35 | K32: 37 | L32: 50 | M32: 36 | N32: 39 | O32: 39 | P32: 69 | Q32: 37 | R32: 55 | S32: 55 | T32: 32 | U32: 9 | V32: 2 | W32: - | X32: 島松寿町１ 丁目
A33: 島松寿町２ 丁目 | B33: 978 | C33: 31 | D33: 15 | E33: 35 | F33: 44 | G33: 34 | H33: 28 | I33: 40 | J33: 42 | K33: 67 | L33: 59 | M33: 67 | N33: 65 | O33: 66 | P33: 94 | Q33: 90 | R33: 86 | S33: 66 | T33: 31 | U33: 16 | V33: 1 | W33: 1 | X33: 島松寿町２ 丁目
A34: 島松仲町１ 丁目 | B34: 264 | C34: 4 | D34: 7 | E34: 6 | F34: 16 | G34: 13 | H34: 15 | I34: 10 | J34: 14 | K34: 17 | L34: 14 | M34: 15 | N34: 24 | O34: 25 | P34: 25 | Q34: 13 | R34: 15 | S34: 14 | T34: 15 | U34: 2 | V34: - | W34: - | X34: 島松仲町１ 丁目
A35: 島松仲町２ 丁目 | B35: 224 | C35: 9 | D35: 5 | E35: 1 | F35: 7 | G35: 9 | H35: 10 | I35: 9 | J35: 2 | K35: 11 | L35: 9 | M35: 22 | N35: 17 | O35: 12 | P35: 18 | Q35: 19 | R35: 19 | S35: 21 | T35: 19 | U35: 2 | V35: 3 | W35: - | X35: 島松仲町２ 丁目
A36: 島松仲町３ 丁目 | B36: 161 | C36: 4 | D36: 5 | E36: 5 | F36: 4 | G36: 8 | H36: 5 | I36: 7 | J36: 4 | K36: 9 | L36: 15 | M36: 10 | N36: 12 | O36: 10 | P36: 15 | Q36: 10 | R36: 17 | S36: 11 | T36: 9 | U36: 1 | V36: - | W36: - | X36: 島松仲町３ 丁目
A37: 島松東町１ 丁目 | B37: 277 | C37: 13 | D37: 9 | E37: 11 | F37: 10 | G37: 11 | H37: 6 | I37: 18 | J37: 10 | K37: 20 | L37: 25 | M37: 15 | N37: 16 | O37: 20 | P37: 21 | Q37: 18 | R37: 20 | S37: 16 | T37: 14 | U37: 2 | V37: 1 | W37: 1 | X37: 島松東町１ 丁目
A38: 島松東町２ 丁目 | B38: 348 | C38: 8 | D38: 15 | E38: 9 | F38: 11 | G38: 9 | H38: 15 | I38: 14 | J38: 12 | K38: 21 | L38: 22 | M38: 16 | N38: 35 | O38: 33 | P38: 34 | Q38: 31 | R38: 24 | S38: 23 | T38: 11 | U38: 3 | V38: 2 | W38: - | X38: 島松東町２ 丁目
A39: 島松東町３ 丁目 | B39: 333 | C39: 7 | D39: 11 | E39: 19 | F39: 16 | G39: 18 | H39: 5 | I39: 11 | J39: 11 | K39: 31 | L39: 19 | M39: 31 | N39: 19 | O39: 20 | P39: 27 | Q39: 18 | R39: 36 | S39: 18 | T39: 14 | U39: 2 | V39: - | W39: - | X39: 島松東町３ 丁目
A40: 島松東町４ 丁目 | B40: 206 | C40: 2 | D40: 11 | E40: 10 | F40: 9 | G40: 7 | H40: 7 | I40: 7 | J40: 13 | K40: 15 | L40: 9 | M40: 15 | N40: 10 | O40: 20 | P40: 26 | Q40: 19 | R40: 12 | S40: 9 | T40: 5 | U40: - | V40: - | W40: - | X40: 島松東町４ 丁目
A41: 島松本町１ 丁目 | B41: 490 | C41: 12 | D41: 8 | E41: 19 | F41: 38 | G41: 23 | H41: 25 | I41: 21 | J41: 16 | K41: 31 | L41: 25 | M41: 46 | N41: 51 | O41: 35 | P41: 33 | Q41: 29 | R41: 22 | S41: 26 | T41: 23 | U41: 6 | V41: 1 | W41: - | X41: 島松本町１ 丁目
A42: 島松本町２ 丁目 | B42: 584 | C42: 23 | D42: 19 | E42: 29 | F42: 33 | G42: 24 | H42: 28 | I42: 31 | J42: 39 | K42: 35 | L42: 37 | M42: 41 | N42: 37 | O42: 43 | P42: 35 | Q42: 25 | R42: 35 | S42: 36 | T42: 26 | U42: 6 | V42: 2 | W42: - | X42: 島松本町２ 丁目
A43: 島松本町３ 丁目 | B43: 729 | C43: 25 | D43: 29 | E43: 25 | F43: 36 | G43: 27 | H43: 38 | I43: 56 | J43: 42 | K43: 54 | L43: 50 | M43: 38 | N43: 45 | O43: 50 | P43: 60 | Q43: 52 | R43: 45 | S43: 31 | T43: 18 | U43: 5 | V43: 3 | W43: - | X43: 島松本町３ 丁目
A44: 島松本町４ 丁目 | B44: 505 | C44: 11 | D44: 12 | E44: 30 | F44: 30 | G44: 11 | H44: 10 | I44: 13 | J44: 32 | K44: 35 | L44: 42 | M44: 28 | N44: 32 | O44: 31 | P44: 60 | Q44: 47 | R44: 37 | S44: 22 | T44: 16 | U44: 5 | V44: 1 | W44: - | X44: 島松本町４ 丁目
A45: 島松旭町１ 丁目 | B45: 330 | C45: 11 | D45: 14 | E45: 10 | F45: 18 | G45: 21 | H45: 9 | I45: 15 | J45: 20 | K45: 13 | L45: 17 | M45: 32 | N45: 35 | O45: 27 | P45: 33 | Q45: 20 | R45: 13 | S45: 15 | T45: 4 | U45: 3 | V45: - | W45: - | X45: 島松旭町１ 丁目
A46: 島松旭町２ 丁目 | B46: 363 | C46: 12 | D46: 19 | E46: 19 | F46: 19 | G46: 15 | H46: 17 | I46: 17 | J46: 22 | K46: 25 | L46: 29 | M46: 20 | N46: 19 | O46: 39 | P46: 31 | Q46: 16 | R46: 17 | S46: 16 | T46: 9 | U46: 2 | V46: - | W46: - | X46: 島松旭町２ 丁目
A47: 島松旭町３ 丁目 | B47: 311 | C47: 9 | D47: 18 | E47: 31 | F47: 45 | G47: 16 | H47: 7 | I47: 9 | J47: 21 | K47: 38 | L47: 41 | M47: 29 | N47: 14 | O47: 9 | P47: 15 | Q47: 4 | R47: 3 | S47: 1 | T47: 1 | U47: - | V47: - | W47: - | X47: 島松旭町３ 丁目
A48: 島松旭町４ 丁目 | B48: 379 | C48: 8 | D48: 10 | E48: 18 | F48: 20 | G48: 13 | H48: 13 | I48: 23 | J48: 23 | K48: 18 | L48: 17 | M48: 27 | N48: 18 | O48: 26 | P48: 40 | Q48: 37 | R48: 40 | S48: 15 | T48: 8 | U48: 4 | V48: 1 | W48: - | X48: 島松旭町４ 丁目
A49: 西島松 | B49: 706 | C49: 19 | D49: 24 | E49: 15 | F49: 46 | G49: 108 | H49: 75 | I49: 56 | J49: 37 | K49: 55 | L49: 33 | M49: 25 | N49: 20 | O49: 26 | P49: 41 | Q49: 43 | R49: 32 | S49: 26 | T49: 14 | U49: 9 | V49: 1 | W49: 1 | X49: 西島松
A50: 南島松 | B50: 228 | C50: 3 | D50: 2 | E50: 5 | F50: 4 | G50: 5 | H50: 4 | I50: 10 | J50: 7 | K50: 12 | L50: 5 | M50: 10 | N50: 20 | O50: 24 | P50: 25 | Q50: 6 | R50: 13 | S50: 21 | T50: 34 | U50: 12 | V50: 6 | W50: - | X50: 南島松
A51: 中島松 | B51: 157 | C51: 3 | D51: 4 | E51: 3 | F51: 6 | G51: 8 | H51: 7 | I51: 4 | J51: 7 | K51: 7 | L51: 6 | M51: 7 | N51: 13 | O51: 18 | P51: 22 | Q51: 11 | R51: 9 | S51: 11 | T51: 8 | U51: 3 | V51: - | W51: - | X51: 中島松
A52: 下 島 松 | B52: 301 | C52: 3 | D52: 5 | E52: 11 | F52: 12 | G52: 15 | H52: 6 | I52: 10 | J52: 7 | K52: 14 | L52: 19 | M52: 21 | N52: 21 | O52: 29 | P52: 33 | Q52: 22 | R52: 19 | S52: 31 | T52: 18 | U52: 5 | V52: - | W52: - | X52: 下 島 松
A53: 穂 栄 | B53: 104 | C53: 3 | D53: 6 | E53: 3 | F53: 1 | G53: 2 | H53: 2 | I53: 4 | J53: 7 | K53: 6 | L53: 8 | M53: 1 | N53: 2 | O53: 8 | P53: 7 | Q53: 16 | R53: 15 | S53: 7 | T53: 1 | U53: 4 | V53: 1 | W53: - | X53: 穂 栄
A54: 北 島 | B54: 87 | C54: - | D54: 3 | E54: 9 | F54: 4 | G54: 4 | H54: 1 | I54: 2 | J54: 2 | K54: 6 | L54: 2 | M54: 9 | N54: 8 | O54: 7 | P54: 5 | Q54: 4 | R54: 8 | S54: 8 | T54: 2 | U54: 3 | V54: - | W54: - | X54: 北 島
A55: 合計 | B55: =SUM([3]町内別年齢別人口①!B4:B56,[3]町内別年齢別人口②!B4:B56,B4:B54) -> 69212 | C55: =SUM([3]町内別年齢別人口①!C4:C56,[3]町内別年齢別人口②!C4:C56,C4:C54) -> 2682 | D55: =SUM([3]町内別年齢別人口①!D4:D56,[3]町内別年齢別人口②!D4:D56,D4:D54) -> 3144 | E55: =SUM([3]町内別年齢別人口①!E4:E56,[3]町内別年齢別人口②!E4:E56,E4:E54) -> 3310 | F55: =SUM([3]町内別年齢別人口①!F4:F56,[3]町内別年齢別人口②!F4:F56,F4:F54) -> 3716 | G55: =SUM([3]町内別年齢別人口①!G4:G56,[3]町内別年齢別人口②!G4:G56,G4:G54) -> 3556 | H55: =SUM([3]町内別年齢別人口①!H4:H56,[3]町内別年齢別人口②!H4:H56,H4:H54) -> 3231 | I55: =SUM([3]町内別年齢別人口①!I4:I56,[3]町内別年齢別人口②!I4:I56,I4:I54) -> 3795 | J55: =SUM([3]町内別年齢別人口①!J4:J56,[3]町内別年齢別人口②!J4:J56,J4:J54) -> 4462 | K55: =SUM([3]町内別年齢別人口①!K4:K56,[3]町内別年齢別人口②!K4:K56,K4:K54) -> 5210 | L55: =SUM([3]町内別年齢別人口①!L4:L56,[3]町内別年齢別人口②!L4:L56,L4:L54) -> 4966 | M55: =SUM([3]町内別年齢別人口①!M4:M56,[3]町内別年齢別人口②!M4:M56,M4:M54) -> 4341 | N55: =SUM([3]町内別年齢別人口①!N4:N56,[3]町内別年齢別人口②!N4:N56,N4:N54) -> 4152 | O55: =SUM([3]町内別年齢別人口①!O4:O56,[3]町内別年齢別人口②!O4:O56,O4:O54) -> 4836 | P55: =SUM([3]町内別年齢別人口①!P4:P56,[3]町内別年齢別人口②!P4:P56,P4:P54) -> 5474 | Q55: =SUM([3]町内別年齢別人口①!Q4:Q56,[3]町内別年齢別人口②!Q4:Q56,Q4:Q54) -> 3825 | R55: =SUM([3]町内別年齢別人口①!R4:R56,[3]町内別年齢別人口②!R4:R56,R4:R54) -> 3371 | S55: =SUM([3]町内別年齢別人口①!S4:S56,[3]町内別年齢別人口②!S4:S56,S4:S54) -> 2709 | T55: =SUM([3]町内別年齢別人口①!T4:T56,[3]町内別年齢別人口②!T4:T56,T4:T54) -> 1596 | U55: =SUM([3]町内別年齢別人口①!U4:U56,[3]町内別年齢別人口②!U4:U56,U4:U54) -> 652 | V55: =SUM([3]町内別年齢別人口①!V4:V56,[3]町内別年齢別人口②!V4:V56,V4:V54) -> 168 | W55: =SUM([3]町内別年齢別人口①!W4:W56,[3]町内別年齢別人口②!W4:W56,W4:W54) -> 16 | X55: 合 計
A56: 〈資料〉生活環境部市民課

Sheet 人口動態、外国人登録人口
A1: ５）人口動態(届出数)
K2: (各年･月中)
A3: 年 月 | B3: 増 減 | C3: 自 然 動 態 | F3: 社 会 動 態 | I3: 職権による | L3: 婚 姻 | M3: 離 婚
B4: 人 口 | C4: 出 生 | D4: 死 亡 | E4: 増 減 | F4: 転 入 | G4: 転 出 | H4: 増 減 | I4: 増 加 | J4: 減 少 | K4: 増 減
A5: 18年 | B5: 396 | C5: 568 | D5: 434 | E5: 134 | F5: 3718 | G5: 3463 | H5: 247 | I5: 29 | J5: 14 | K5: 15 | L5: 777 | M5: 226
A6: 19年 | B6: 473 | C6: 618 | D6: 490 | E6: 128 | F6: 3575 | G6: 3257 | H6: 318 | I6: 35 | J6: 8 | K6: 27 | L6: 740 | M6: 225
A7: 20年 | B7: 167 | C7: 576 | D7: 496 | E7: 80 | F7: 3481 | G7: 3417 | H7: 64 | I7: 32 | J7: 9 | K7: 23 | L7: 813 | M7: 230
A8: 21年 | B8: △ 31 | C8: 552 | D8: 501 | E8: 51 | F8: 3178 | G8: 3278 | H8: △ 100 | I8: 28 | J8: 10 | K8: 18 | L8: 773 | M8: 227
A9: 22年 | B9: 143 | C9: 551 | D9: 499 | E9: 52 | F9: 3046 | G9: 2976 | H9: 70 | I9: 23 | J9: 2 | K9: 21 | L9: 843 | M9: 245
A10: 23年 | B10: 64 | C10: 523 | D10: 500 | E10: 23 | F10: 3012 | G10: 2996 | H10: 16 | I10: 29 | J10: 4 | K10: 25 | L10: 744 | M10: 213
A11: 24年 | B11: 242 | C11: 508 | D11: 590 | E11: -82 | F11: 2945 | G11: 2871 | H11: 74 | I11: 264 | J11: 14 | K11: 250 | L11: 775 | M11: 224
A12: 25年 | B12: -294 | C12: 510 | D12: 583 | E12: -73 | F12: 2956 | G12: 3159 | H12: -203 | I12: 17 | J12: 35 | K12: -18 | L12: 744 | M12: 203
A13: 26年 | B13: 63 | C13: 498 | D13: 607 | E13: -109 | F13: 3194 | G13: 3014 | H13: 180 | I13: 19 | J13: 27 | K13: -8 | L13: 698 | M13: 205
A14: 27年 | B14: 117 | C14: 495 | D14: 667 | E14: -172 | F14: 3286 | G14: 2990 | H14: 296 | I14: 26 | J14: 33 | K14: -7 | L14: 698 | M14: 203
A15: 28年 | B15: =SUM(B16:B27) -> 154 | C15: 462 | D15: 630 | E15: -168 | F15: 3393 | G15: 3072 | H15: 321 | I15: 27 | J15: 26 | K15: 1 | L15: 731 | M15: 187
A16: 1月 | B16: -25 | C16: 39 | D16: 66 | E16: =C16-D16 -> -27 | F16: 153 | G16: 151 | H16: =F16-G16 -> 2 | I16: - | J16: - | K16: - | L16: 60 | M16: 13
A17: 2月 | B17: =E17+H17+K17 -> -6 | C17: 36 | D17: 57 | E17: =C17-D17 -> -21 | F17: 213 | G17: 197 | H17: =F17-G17 -> 16 | I17: 3 | J17: 4 | K17: =I17-J17 -> -1 | L17: 57 | M17: 14
A18: 3月 | B18: =E18+H18+K18 -> -108 | C18: 47 | D18: 52 | E18: =C18-D18 -> -5 | F18: 746 | G18: 852 | H18: =F18-G18 -> -106 | I18: 6 | J18: 3 | K18: =I18-J18 -> 3 | L18: 86 | M18: 29
A19: 4月 | B19: 56 | C19: 35 | D19: 39 | E19: -4 | F19: 480 | G19: 423 | H19: 57 | I19: 5 | J19: 2 | K19: 3 | L19: 40 | M19: 14
A20: 5月 | B20: 20 | C20: 35 | D20: 43 | E20: -8 | F20: 173 | G20: 146 | H20: 27 | I20: 3 | J20: 2 | K20: 1 | L20: 70 | M20: 16
A21: 6月 | B21: 34 | C21: 41 | D21: 57 | E21: -16 | F21: 189 | G21: 139 | H21: 50 | I21: 1 | J21: 1 | K21: 0 | L21: 58 | M21: 14
A22: 7月 | B22: 98 | C22: 39 | D22: 44 | E22: -5 | F22: 293 | G22: 188 | H22: 105 | I22: 1 | J22: 3 | K22: -2 | L22: 75 | M22: 11
A23: 8月 | B23: 58 | C23: 42 | D23: 70 | E23: -28 | F23: 307 | G23: 219 | H23: 88 | I23: - | J23: 2 | K23: -2 | L23: 63 | M23: 12
A24: 9月 | B24: 12 | C24: 44 | D24: 46 | E24: -2 | F24: 212 | G24: 199 | H24: 13 | I24: 2 | J24: 1 | K24: 1 | L24: 50 | M24: 21
A25: 10月 | B25: -19 | C25: 40 | D25: 50 | E25: -10 | F25: 204 | G25: 212 | H25: -8 | I25: 1 | J25: 2 | K25: -1 | L25: 36 | M25: 19
A26: 11月 | B26: 28 | C26: 39 | D26: 58 | E26: -19 | F26: 232 | G26: 182 | H26: 50 | I26: 2 | J26: 5 | K26: -3 | L26: 82 | M26: 10
A27: 12月 | B27: 6 | C27: 25 | D27: 48 | E27: -23 | F27: 191 | G27: 164 | H27: 27 | I27: 3 | J27: 1 | K27: 2 | L27: 54 | M27: 14
A28: 〈資料〉生活環境部市民課
A29: 注) 婚姻､離婚の件数は､恵庭市で受理した分と他市町村で受理して恵庭市に送付された分との 合算である。
A33: ６）外国人住民の人口
I34: (各年度３月)
A35: 区 分 | C35: 平成23年度 | F35: 平成24年度 | I35: 平成25年度
C36: 計 | D36: 男 | E36: 女 | F36: 計 | G36: 男 | H36: 女 | I36: 計 | J36: 男 | K36: 女
A37: 韓国、朝鮮 | C37: 55 | D37: 27 | E37: 28 | F37: 52 | G37: 27 | H37: 25 | I37: 47 | J37: 24 | K37: 23
A38: 中国 | C38: 139 | D38: 43 | E38: 96 | F38: 120 | G38: 41 | H38: 79 | I38: 135 | J38: 48 | K38: 87
A39: フィリピン | C39: 13 | D39: 3 | E39: 10 | F39: 11 | G39: 2 | H39: 9 | I39: 13 | J39: 2 | K39: 11
A40: アメリカ | C40: 9 | D40: 8 | E40: 1 | F40: 5 | G40: 4 | H40: 1 | I40: 4 | J40: 3 | K40: 1
A41: ロシア | C41: 4 | D41: 3 | E41: 1 | F41: 3 | G41: 2 | H41: 1 | I41: 1 | J41: - | K41: 1
A42: その他 | C42: 29 | D42: 12 | E42: 17 | F42: 29 | G42: 12 | H42: 17 | I42: 35 | J42: 15 | K42: 20
A43: 合計 | C43: 249 | D43: 96 | E43: 153 | F43: 220 | G43: 88 | H43: 132 | I43: 235 | J43: 92 | K43: 143
A45: 区 分 | C45: 平成26年度 | F45: 平成27年度 | I45: 平成28年度
C46: 計 | D46: 男 | E46: 女 | F46: 計 | G46: 男 | H46: 女 | I46: 計 | J46: 男 | K46: 女
A47: 韓国、朝鮮 | C47: 47 | D47: 24 | E47: 23 | F47: 50 | G47: 27 | H47: 23 | I47: =SUM(J47:K47) -> 52 | J47: =6+19 -> 25 | K47: 27
A48: 中国 | C48: 101 | D48: 41 | E48: 60 | F48: 102 | G48: 37 | H48: 65 | I48: =SUM(J48:K48) -> 94 | J48: 30 | K48: 64
A49: フィリピン | C49: 14 | D49: 3 | E49: 11 | F49: 30 | G49: 7 | H49: 23 | I49: =SUM(J49:K49) -> 49 | J49: 19 | K49: 30
A50: アメリカ | C50: 6 | D50: 6 | E50: - | F50: 6 | G50: 6 | H50: - | I50: 6 | J50: 6 | K50: -
A51: ロシア | C51: 1 | D51: - | E51: 1 | F51: 1 | G51: - | H51: 1 | I51: 2 | J51: - | K51: 2
A52: その他 | C52: 38 | D52: 21 | E52: 17 | F52: 54 | G52: 33 | H52: 21 | I52: 74 | J52: =119-J47-J48-J49-J50 -> 39 | K52: =158-K47-K48-K49-K51 -> 35
A53: 合計 | C53: 207 | D53: 95 | E53: 112 | F53: 243 | G53: 110 | H53: 133 | I53: 277 | J53: =SUM(J47:J52) -> 119 | K53: =SUM(K47:K52) -> 158
A54: 〈資料〉生活環境部市民課
A55: 注）平成２４年７月９日から外国人の方も住民基本台帳法の対象となり、 平成２４年７月末からの「町名別人口調べ」が外国人住民を含む集計となりました。
B57: ＊年度末集計に変更

Sheet 社会動態（道内）
A1: ７）社会動態（道内）
L2: （各年中）
A3: 区 分 | C3: 24 年 | E3: 25 年 | G3: 26 年 | I3: 27年 | K3: 28年
C4: 転 入 | D4: 転 出 | E4: 転 入 | F4: 転 出 | G4: 転 入 | H4: 転 出 | I4: 転 入 | J4: 転 出 | K4: 転 入 | L4: 転 出
A5: 全道計 | C5: 2235 | D5: 2083 | E5: 2242 | F5: 2308 | G5: 2536 | H5: 2186 | I5: 2516 | J5: 2138 | K5: 2562 | L5: 2196
A7: 市部計 | C7: 1886 | D7: 1798 | E7: 1900 | F7: 2057 | G7: 2137 | H7: 1897 | I7: 2107 | J7: 1894 | K7: 2166 | L7: 1945
A9: 札幌 | C9: 656 | D9: 856 | E9: 694 | F9: 988 | G9: 804 | H9: 906 | I9: 763 | J9: 908 | K9: 839 | L9: 983
B10: 中央区 | C10: 87 | D10: 102 | E10: 88 | F10: 148 | G10: 79 | H10: 118 | I10: 67 | J10: 147 | K10: 92 | L10: 140
B11: 北区 | C11: 64 | D11: 71 | E11: 60 | F11: 100 | G11: 76 | H11: 89 | I11: 77 | J11: 90 | K11: 93 | L11: 87
B12: 東区 | C12: 66 | D12: 97 | E12: 69 | F12: 114 | G12: 78 | H12: 97 | I12: 73 | J12: 120 | K12: 99 | L12: 103
B13: 白石区 | C13: 88 | D13: 145 | E13: 104 | F13: 144 | G13: 106 | H13: 121 | I13: 115 | J13: 123 | K13: 124 | L13: 164
B14: 豊平区 | C14: 94 | D14: 122 | E14: 96 | F14: 130 | G14: 86 | H14: 116 | I14: 90 | J14: 129 | K14: 98 | L14: 134
B15: 南区 | C15: 64 | D15: 74 | E15: 82 | F15: 77 | G15: 175 | H15: 96 | I15: 108 | J15: 92 | K15: 93 | L15: 87
B16: 西区 | C16: 48 | D16: 46 | E16: 57 | F16: 67 | G16: 45 | H16: 62 | I16: 60 | J16: 45 | K16: 63 | L16: 88
B17: 厚別区 | C17: 47 | D17: 85 | E17: 67 | F17: 92 | G17: 68 | H17: 96 | I17: 81 | J17: 87 | K17: 84 | L17: 80
B18: 手稲区 | C18: 28 | D18: 37 | E18: 18 | F18: 40 | G18: 23 | H18: 43 | I18: 42 | J18: 29 | K18: 30 | L18: 33
B19: 清田区 | C19: 70 | D19: 77 | E19: 53 | F19: 76 | G19: 68 | H19: 68 | I19: 50 | J19: 46 | K19: 63 | L19: 67
A20: 函館 | C20: 43 | D20: 39 | E20: 64 | F20: 62 | G20: 55 | H20: 40 | I20: 57 | J20: 56 | K20: 55 | L20: 33
A21: 小樽 | C21: 23 | D21: 17 | E21: 31 | F21: 25 | G21: 26 | H21: 16 | I21: 30 | J21: 13 | K21: 30 | L21: 26
A22: 旭川 | C22: 88 | D22: 66 | E22: 58 | F22: 62 | G22: 97 | H22: 67 | I22: 107 | J22: 75 | K22: 82 | L22: 62
A23: 室蘭 | C23: 29 | D23: 20 | E23: 28 | F23: 28 | G23: 34 | H23: 19 | I23: 24 | J23: 24 | K23: 13 | L23: 20
A24: 釧路 | C24: 29 | D24: 17 | E24: 46 | F24: 27 | G24: 43 | H24: 21 | I24: 41 | J24: 17 | K24: 30 | L24: 26
A25: 帯広 | C25: 59 | D25: 53 | E25: 55 | F25: 38 | G25: 40 | H25: 41 | I25: 80 | J25: 53 | K25: 47 | L25: 51
A26: 北見 | C26: 27 | D26: 13 | E26: 22 | F26: 29 | G26: 27 | H26: 23 | I26: 20 | J26: 19 | K26: 30 | L26: 10
A27: 夕張 | C27: 11 | D27: 3 | E27: 10 | F27: 0 | G27: 5 | H27: 5 | I27: 17 | J27: - | K27: 9 | L27: 4
A28: 岩見沢 | C28: 27 | D28: 36 | E28: 48 | F28: 26 | G28: 43 | H28: 34 | I28: 38 | J28: 22 | K28: 39 | L28: 22
A29: 網走 | C29: 8 | D29: 10 | E29: 5 | F29: 4 | G29: 19 | H29: 6 | I29: 17 | J29: 6 | K29: 26 | L29: 12
A30: 留萌 | C30: 7 | D30: 10 | E30: 11 | F30: 6 | G30: 26 | H30: 7 | I30: 16 | J30: 5 | K30: 11 | L30: 8
A31: 苫小牧 | C31: 98 | D31: 97 | E31: 94 | F31: 109 | G31: 121 | H31: 87 | I31: 104 | J31: 93 | K31: 123 | L31: 102
A32: 稚内 | C32: 18 | D32: 6 | E32: 15 | F32: 6 | G32: 8 | H32: 8 | I32: 14 | J32: 6 | K32: 22 | L32: 7
A33: 美唄 | C33: 10 | D33: 8 | E33: 14 | F33: 12 | G33: 17 | H33: 12 | I33: 13 | J33: 7 | K33: 10 | L33: 10
A34: 芦別 | C34: 3 | D34: 1 | E34: 6 | F34: 1 | G34: 2 | H34: 0 | I34: 6 | J34: 1 | K34: 3 | L34: 1
A35: 江別 | C35: 63 | D35: 52 | E35: 54 | F35: 28 | G35: 43 | H35: 50 | I35: 57 | J35: 57 | K35: 74 | L35: 68
A36: 赤平 | C36: 2 | D36: 1 | E36: 2 | F36: 0 | G36: 4 | H36: 1 | I36: 3 | J36: 3 | K36: 3 | L36: 3
A37: 紋別 | C37: 7 | D37: 2 | E37: 2 | F37: 3 | G37: 8 | H37: 5 | I37: 10 | J37: 1 | K37: 6 | L37: 4
A38: 士別 | C38: 3 | D38: 5 | E38: 5 | F38: 2 | G38: 8 | H38: 2 | I38: 5 | J38: 3 | K38: 6 | L38: 1
A39: 名寄 | C39: 26 | D39: 30 | E39: 30 | F39: 20 | G39: 31 | H39: 30 | I39: 23 | J39: 14 | K39: 52 | L39: 25
A40: 三笠 | C40: 3 | D40: 3 | E40: 3 | F40: 4 | G40: 1 | H40: 1 | I40: 5 | J40: 3 | K40: 6 | L40: 3
A41: 根室 | C41: 9 | D41: 2 | E41: 3 | F41: 5 | G41: 11 | H41: 4 | I41: 8 | J41: 2 | K41: 7 | L41: 5
A42: 千歳 | C42: 444 | D42: 286 | E42: 419 | F42: 409 | G42: 486 | H42: 362 | I42: 440 | J42: 318 | K42: 406 | L42: 303
A43: 滝川 | C43: 23 | D43: 13 | E43: 10 | F43: 9 | G43: 20 | H43: 12 | I43: 21 | J43: 10 | K43: 15 | L43: 5
A44: 砂川 | C44: 3 | D44: 3 | E44: 5 | F44: 5 | G44: 5 | H44: 2 | I44: 6 | J44: 1 | K44: 5 | L44: 1
A45: 歌志内 | C45: 2 | D45: 1 | E45: 0 | F45: 0 | G45: 1 | H45: 0 | I45: - | J45: 1 | K45: - | L45: -
A46: 深川 | C46: 3 | D46: 1 | E46: 3 | F46: 4 | G46: 5 | H46: 4 | I46: 4 | J46: 7 | K46: 17 | L46: 5
A47: 富良野 | C47: 7 | D47: 7 | E47: 15 | F47: 4 | G47: 2 | H47: 4 | I47: 15 | J47: 15 | K47: 4 | L47: 8
A48: 登別 | C48: 30 | D48: 19 | E48: 32 | F48: 25 | G48: 33 | H48: 24 | I48: 17 | J48: 33 | K48: 50 | L48: 19
A49: 伊達 | C49: 11 | D49: 9 | E49: 14 | F49: 16 | G49: 8 | H49: 12 | I49: 13 | J49: 4 | K49: 18 | L49: 10
A50: 北広島 | C50: 88 | D50: 85 | E50: 74 | F50: 82 | G50: 90 | H50: 75 | I50: 106 | J50: 85 | K50: 105 | L50: 88
A51: 石狩 | C51: 14 | D51: 23 | E51: 15 | F51: 10 | G51: 11 | H51: 8 | I51: 19 | J51: 22 | K51: 18 | L51: 11
A52: 北斗 | C52: 12 | D52: 4 | E52: 13 | F52: 8 | G52: 3 | H52: 9 | I52: 7 | J52: 9 | K52: 5 | L52: 9
A54: 郡部計 | C54: 428 | D54: 273 | E54: 342 | F54: 251 | G54: 399 | H54: 289 | I54: 409 | J54: 244 | K54: 396 | L54: 251
A55: 〈資料〉北海道統計 | K55: （単位：人）
A56: 注）北海道による住民基本台帳移動報告については「外国人住民」を含めていない。

Sheet 社会動態（道外）
A1: ８）社会動態（道外）
J2: （各年中）
A3: 区 分 | B3: 24 年 | D3: 25 年 | F3: 26 年 | H3: 27 年 | J3: 28 年
B4: 転 入 | C4: 転 出 | D4: 転 入 | E4: 転 出 | F4: 転 入 | G4: 転 出 | H4: 転 入 | I4: 転 出 | J4: 転 入 | K4: 転 出
A5: 総数 | B5: 2920 | C5: 2803 | D5: 2872 | E5: 3095 | F5: 3121 | G5: 2946 | H5: 3189 | I5: 2941 | J5: 3308 | K5: 3039
A7: 道内 | B7: 2235 | C7: 2083 | D7: 2242 | E7: 2308 | F7: 2536 | G7: 2186 | H7: 2516 | I7: 2138 | J7: 2562 | K7: 2196
A8: 道外 | B8: 641 | C8: 694 | D8: 579 | E8: 731 | F8: 536 | G8: 701 | H8: 609 | I8: 740 | J8: 684 | K8: 754
A9: 国外 | B9: 44 | C9: 26 | D9: 51 | E9: 56 | F9: 49 | G9: 59 | H9: 64 | I9: 63 | J9: 62 | K9: 89
A11: 東北 | B11: 80 | C11: 86 | D11: 81 | E11: 104 | F11: 90 | G11: 97 | H11: 94 | I11: 79 | J11: 110 | K11: 102
A12: 関東 | B12: 346 | C12: 358 | D12: 260 | E12: 391 | F12: 257 | G12: 346 | H12: 278 | I12: 404 | J12: 299 | K12: 385
A13: （うち東京都） | B13: -103 | C13: -155 | D13: -76 | E13: -132 | F13: -93 | G13: -106 | H13: -90 | I13: -149 | J13: -100 | K13: -158
A14: （うち神奈川県） | B14: -67 | C14: -79 | D14: -58 | E14: -101 | F14: -71 | G14: -100 | H14: -55 | I14: -84 | J14: -66 | K14: -92
A15: 北陸 | B15: 8 | C15: 12 | D15: 13 | E15: 16 | F15: 9 | G15: 8 | H15: 20 | I15: 10 | J15: 6 | K15: 14
A16: 中部 | B16: 77 | C16: 73 | D16: 69 | E16: 73 | F16: 91 | G16: 106 | H16: 81 | I16: 94 | J16: 87 | K16: 91
A17: 近畿 | B17: 71 | C17: 82 | D17: 71 | E17: 73 | F17: 42 | G17: 63 | H17: 66 | I17: 65 | J17: 68 | K17: 85
A18: 中国 | B18: 13 | C18: 10 | D18: 16 | E18: 14 | F18: 9 | G18: 18 | H18: 17 | I18: 30 | J18: 12 | K18: 25
A19: 四国 | B19: 3 | C19: 7 | D19: 9 | E19: 5 | F19: 6 | G19: 8 | H19: 11 | I19: 11 | J19: 16 | K19: 4
A20: 九州 | B20: 34 | C20: 54 | D20: 45 | E20: 45 | F20: 24 | G20: 39 | H20: 41 | I20: 42 | J20: 68 | K20: 44
A21: 沖縄 | B21: 9 | C21: 12 | D21: 15 | E21: 10 | F21: 8 | G21: 16 | H21: 1 | I21: 5 | J21: 18 | K21: 4
A22: 〈資料〉北海道統計 | J22: （単位：人）
A23: 注）住所設定（従前の住所無）により転入したものを除く。
A24: 注）北陸は新潟･富山･石川･福井の４県、中部は山梨･長野･岐阜･静岡･愛知の５県、近畿は滋賀・京都・ 大阪･兵庫･奈良･和歌山･三重の２府５県として集計した｡
A26: 注）北海道による住民基本台帳移動報告については「外国人住民」を含めていない。

Sheet 全道各市の人口
A1: ９）全道各市の人口（人口順）
J3: （各年1月1日）
A4: 順 位 | B4: 区 分 | C4: 平 成 2 8 年 | G4: 区 分 | H4: 平 成 2 9 年 | L4: 総数比較
C5: 人 口 | F5: 世帯数 | H5: 人 口 | K5: 世帯数
C6: 総 数 | D6: 男 | E6: 女 | H6: 総 数 | I6: 男 | J6: 女
B7: 全道 | C7: 5376211 | D7: 2542092 | E7: 2834119 | F7: 2730079 | G7: 全道 | H7: 5342618 | I7: 2525160 | J7: 2817458 | K7: 2742602 | L7: ↘
B8: 市部 | C8: 4381279 | D8: 2063315 | E8: 2317964 | F8: 2259905 | G8: 市部 | H8: 4362549 | I8: 2053295 | J8: 2309254 | K8: 2273330
B9: 郡部 | C9: 994932 | D9: 478777 | E9: 516155 | F9: 470174 | G9: 郡部 | H9: 980069 | I9: 471865 | J9: 508204 | K9: 469272
A11: 1 | B11: 札幌市 | C11: 1931518 | D11: 904474 | E11: 1027044 | F11: 1018860 | G11: 札幌市 | H11: 1936173 | I11: 905718 | J11: 1030455 | K11: 1031023 | L11: ↗
B12: 中央区 | C12: 228172 | D12: 103213 | E12: 124959 | F12: 134787 | G12: 中央区 | H12: 229800 | I12: 103950 | J12: 125850 | K12: 136754
B13: 北区 | C13: 280894 | D13: 133200 | E13: 147694 | F13: 145653 | G13: 北区 | H13: 282050 | I13: 133761 | J13: 148289 | K13: 147421
B14: 東区 | C14: 258469 | D14: 122936 | E14: 135533 | F14: 137444 | G14: 東区 | H14: 259818 | I14: 123367 | J14: 136451 | K14: 139307
B15: 白石区 | C15: 209774 | D15: 100020 | E15: 109754 | F15: 116935 | G15: 白石区 | H15: 210612 | I15: 100445 | J15: 110167 | K15: 118741
B16: 豊平区 | C16: 217810 | D16: 101330 | E16: 116480 | F16: 120788 | G16: 豊平区 | H16: 218426 | I16: 101342 | J16: 117084 | K16: 122229
B17: 南区 | C17: 140312 | D17: 65275 | E17: 75037 | F17: 71713 | G17: 南区 | H17: 139317 | I17: 64715 | J17: 74602 | K17: 72133
B18: 西区 | C18: 211912 | D18: 98084 | E18: 113828 | F18: 109471 | G18: 西区 | H18: 212547 | I18: 98200 | J18: 114347 | K18: 110670
B19: 厚別区 | C19: 128665 | D19: 59247 | E19: 69418 | F19: 63346 | G19: 厚別区 | H19: 127625 | I19: 58753 | J19: 68872 | K19: 63681
B20: 手稲区 | C20: 140896 | D20: 66644 | E20: 74252 | F20: 67055 | G20: 手稲区 | H20: 141162 | I20: 66643 | J20: 74519 | K20: 67697
B21: 清田区 | C21: 114614 | D21: 54525 | E21: 60089 | F21: 51668 | G21: 清田区 | H21: 114816 | I21: 54542 | J21: 60274 | K21: 52390
A22: 2 | B22: 旭川市 | C22: 344500 | D22: 160054 | E22: 184446 | F22: 177265 | G22: 旭川市 | H22: 342036 | I22: 158923 | J22: 183113 | K22: 177155 | L22: ↘
A23: 3 | B23: 函館市 | C23: 267751 | D23: 122063 | E23: 145688 | F23: 143003 | G23: 函館市 | H23: 264592 | I23: 120569 | J23: 144023 | K23: 142922 | L23: ↘
A24: 4 | B24: 釧路市 | C24: 176039 | D24: 83032 | E24: 93007 | F24: 94312 | G24: 釧路市 | H24: 173893 | I24: 81981 | J24: 91912 | K24: 94319 | L24: ↘
A25: 5 | B25: 苫小牧市 | C25: 173317 | D25: 84614 | E25: 88703 | F25: 86489 | G25: 苫小牧市 | H25: 172623 | I25: 84124 | J25: 88499 | K25: 87033 | L25: ↘
A26: 6 | B26: 帯広市 | C26: 167994 | D26: 80116 | E26: 87878 | F26: 85522 | G26: 帯広市 | H26: 167515 | I26: 79878 | J26: 87637 | K26: 86233 | L26: ↘
A27: 7 | B27: 小樽市 | C27: 122438 | D27: 55280 | E27: 67158 | F27: 64924 | G27: 小樽市 | H27: 120220 | I27: 54238 | J27: 65982 | K27: 64500 | L27: ↘
A28: 8 | B28: 北見市 | C28: 120727 | D28: 57348 | E28: 63379 | F28: 61118 | G28: 北見市 | H28: 119617 | I28: 56866 | J28: 62751 | K28: 61276 | L28: ↘
A29: 9 | B29: 江別市 | C29: 119092 | D29: 56604 | E29: 62488 | F29: 55249 | G29: 江別市 | H29: 118748 | I29: 56390 | J29: 62358 | K29: 55794 | L29: ↘
A30: 10 | B30: 千歳市 | C30: 95442 | D30: 48528 | E30: 46914 | F30: 46896 | G30: 千歳市 | H30: 95902 | I30: 48700 | J30: 47202 | K30: 47609 | L30: ↗
A31: 11 | B31: 室蘭市 | C31: 88302 | D31: 42346 | E31: 45956 | F31: 46651 | G31: 室蘭市 | H31: 86821 | I31: 41570 | J31: 45251 | K31: 46374 | L31: ↘
A32: 12 | B32: 岩見沢市 | C32: 84691 | D32: 39644 | E32: 45047 | F32: 41901 | G32: 岩見沢市 | H32: 83817 | I32: 39210 | J32: 44607 | K32: 41913 | L32: ↘
A33: 13 | B33: 恵庭市 | C33: 68834 | D33: 33513 | E33: 35321 | F33: 31599 | G33: 恵庭市 | H33: 68949 | I33: 33498 | J33: 35451 | K33: 32113 | L33: ↗
A34: 14 | B34: 北広島市 | C34: 59194 | D34: 28494 | E34: 30700 | F34: 26791 | G34: 北広島市 | H34: 58953 | I34: 28393 | J34: 30560 | K34: 27010 | L34: ↘
A35: 15 | B35: 石狩市 | C35: 58929 | D35: 28512 | E35: 30417 | F35: 26959 | G35: 石狩市 | H35: 58634 | I35: 28376 | J35: 30258 | K35: 27128 | L35: ↘
A36: 16 | B36: 登別市 | C36: 49983 | D36: 23804 | E36: 26179 | F36: 24932 | G36: 登別市 | H36: 49296 | I36: 23509 | J36: 25787 | K36: 24853 | L36: ↘
A37: 17 | B37: 北斗市 | C37: 47490 | D37: 22378 | E37: 25112 | F37: 21829 | G37: 北斗市 | H37: 47024 | I37: 22148 | J37: 24876 | K37: 21898 | L37: ↘
A38: 18 | B38: 滝川市 | C38: 41487 | D38: 19584 | E38: 21903 | F38: 21388 | G38: 滝川市 | H38: 41163 | I38: 19466 | J38: 21697 | K38: 21492 | L38: ↘
A39: 19 | B39: 網走市 | C39: 37165 | D39: 18302 | E39: 18863 | F39: 18338 | G39: 網走市 | H39: 36710 | I39: 18064 | J39: 18646 | K39: 18305 | L39: ↘
A40: 20 | B40: 稚内市 | C40: 35866 | D40: 17635 | E40: 18231 | F40: 18168 | G40: 稚内市 | H40: 35161 | I40: 17297 | J40: 17864 | K40: 17982 | L40: ↘
A41: 21 | B41: 伊達市 | C41: 35441 | D41: 16547 | E41: 18894 | F41: 17841 | G41: 伊達市 | H41: 34993 | I41: 16332 | J41: 18661 | K41: 17787 | L41: ↘
A42: 22 | B42: 名寄市 | C42: 28568 | D42: 13932 | E42: 14636 | F42: 14246 | G42: 名寄市 | H42: 28216 | I42: 13800 | J42: 14416 | K42: 14250 | L42: ↘
A43: 23 | B43: 根室市 | C43: 27350 | D43: 13167 | E43: 14183 | F43: 12689 | G43: 根室市 | H43: 26750 | I43: 12849 | J43: 13901 | K43: 12575 | L43: ↘
A44: 24 | B44: 美唄市 | C44: 23343 | D44: 11038 | E44: 12305 | F44: 12141 | G44: 美唄市 | H44: 22675 | I44: 10777 | J44: 11898 | K44: 11924 | L44: ↘
A45: 25 | B45: 紋別市 | C45: 22964 | D45: 10904 | E45: 12060 | F45: 11835 | G45: 紋別市 | H45: 22564 | I45: 10707 | J45: 11857 | K45: 11788 | L45: ↘
A46: 26 | B46: 富良野市 | C46: 22834 | D46: 10801 | E46: 12033 | F46: 10872 | G46: 富良野市 | H46: 22420 | I46: 10625 | J46: 11795 | K46: 10854 | L46: ↘
A47: 27 | B47: 留萌市 | C47: 22412 | D47: 10701 | E47: 11711 | F47: 11748 | G47: 留萌市 | H47: 22035 | I47: 10550 | J47: 11485 | K47: 11706 | L47: ↘
A48: 28 | B48: 深川市 | C48: 21847 | D48: 10182 | E48: 11665 | F48: 11025 | G48: 深川市 | H48: 21525 | I48: 10069 | J48: 11456 | K48: 10990 | L48: ↘
A49: 29 | B49: 士別市 | C49: 20166 | D49: 9517 | E49: 10649 | F49: 9638 | G49: 士別市 | H49: 19637 | I49: 9252 | J49: 10385 | K49: 9504 | L49: ↘
A50: 30 | B50: 砂川市 | C50: 17769 | D50: 8235 | E50: 9534 | F50: 8992 | G50: 砂川市 | H50: 17542 | I50: 8139 | J50: 9403 | K50: 8939 | L50: ↘
A51: 31 | B51: 芦別市 | C51: 14940 | D51: 6837 | E51: 8103 | F51: 8076 | G51: 芦別市 | H51: 14472 | I51: 6626 | J51: 7846 | K51: 7897 | L51: ↘
A52: 32 | B52: 赤平市 | C52: 10973 | D52: 5029 | E52: 5944 | F52: 6177 | G52: 赤平市 | H52: 10712 | I52: 4908 | J52: 5804 | K52: 6068 | L52: ↘
A53: 33 | B53: 三笠市 | C53: 9229 | D53: 4164 | E53: 5065 | F53: 5210 | G53: 三笠市 | H53: 8983 | I53: 4065 | J53: 4918 | K53: 5115 | L53: ↘
A54: 34 | B54: 夕張市 | C54: 9024 | D54: 4230 | E54: 4794 | F54: 5151 | G54: 夕張市 | H54: 8659 | I54: 4048 | J54: 4611 | K54: 4988 | L54: ↘
A55: 35 | B55: 歌志内市 | C55: 3660 | D55: 1706 | E55: 1954 | F55: 2070 | G55: 歌志内市 | H55: 3519 | I55: 1630 | J55: 1889 | K55: 2013 | L55: ↘
A56: 〈資料〉北海道統計 | J56: （単位：人）
A57: 注）北海道による住民基本台帳移動報告については「外国人住民」を含めていない。

Sheet 国調人口推移
A1: ２．国勢調査人口
A3: １) 人口の推移（年次別）
F4: （各年10月1日）
A5: 年 | C5: 世帯数 | D5: 人 口 | G5: 前回比
D6: 男 | E6: 女 | F6: 総 数
A7: 大正 | B7: 9年 | C7: 1227 | D7: 3522 | E7: 3443 | F7: 6965 | G7: -
A8: 大正 | B8: 14年 | C8: 1269 | D8: 3711 | E8: 3645 | F8: 7356 | G8: 5.6
A9: 昭和 | B9: 5年 | C9: 1391 | D9: 4203 | E9: 4005 | F9: 8208 | G9: 11.6
B10: 10年 | C10: 1467 | D10: 4329 | E10: 4250 | F10: 8579 | G10: 4.5
B11: 15年 | C11: 1590 | D11: 4806 | E11: 4623 | F11: 9429 | G11: 9.9
B12: 22年 | C12: 2321 | D12: 6717 | E12: 6305 | F12: 13022 | G12: 38.1
B13: 25年 | C13: 2311 | D13: 7923 | E13: 6533 | F13: 14456 | G13: 11
B14: 30年 | C14: 3765 | D14: 13850 | E14: 9530 | F14: 23380 | G14: 61.7
B15: 35年 | C15: 5085 | D15: 15244 | E15: 11398 | F15: 26642 | G15: 14
B16: 40年 | C16: 6863 | D16: 16459 | E16: 13850 | F16: 30309 | G16: 13.8
B17: 45年 | C17: 8710 | D17: 18139 | E17: 16310 | F17: 34449 | G17: 13.7
B18: 50年 | C18: 10806 | D18: 20836 | E18: 19048 | F18: 39884 | G18: 15.8
B19: 55年 | C19: 12321 | D19: 22072 | E19: 20839 | F19: 42911 | G19: 7.6
B20: 60年 | C20: 14220 | D20: 24474 | E20: 23831 | F20: 48305 | G20: 12.6
A21: 平成 | B21: 2年 | C21: 17528 | D21: 27980 | E21: 27635 | F21: 55615 | G21: 15.1
B22: 7年 | C22: 21383 | D22: 31376 | E22: 30975 | F22: 62351 | G22: 12.1
B23: 12年 | C23: 23660 | D23: =32503 -> 32503 | E23: 32736 | F23: =D23+E23 -> 65239 | G23: 4.6
B24: 17年 | C24: 25662 | D24: 33317 | E24: 34297 | F24: 67614 | G24: 3.6
B25: 22年 | C25: 27634 | D25: 33945 | E25: 35439 | F25: 69384 | G25: 2.6
B26: 27年 | C26: 28846 | D26: 33781 | E26: 35921 | F26: 69702 | G26: 0.46
A27: 〈資料〉総務省 国勢調査 | F27: （単位：人）

Sheet 地域の人口①
A1: ２）地域の人口
J2: （各年10月1日）
A3: 町名 | B3: 平成22年国勢調査 | F3: 平成27年国勢調査 | J3: 比較
B4: 世帯数 | C4: 男 | D4: 女 | E4: 計 | F4: 世帯数 | G4: 男 | H4: 女 | I4: 計 | J4: 世帯数 | K4: 人口
A5: 合計 | B5: 27634 | C5: 33945 | D5: 35439 | E5: 69384 | F5: 28846 | G5: 33781 | H5: 35921 | I5: 69702 | J5: =F5-B5 -> 1212 | K5: =I5-E5 -> 318
A6: 漁太 | B6: 54 | C6: 79 | D6: 80 | E6: 159 | F6: 51 | G6: 64 | H6: 72 | I6: 136 | J6: =F6-B6 -> -3 | K6: =I6-E6 -> -23
A7: 林田 | B7: 16 | C7: 25 | D7: 21 | E7: 46 | F7: 16 | G7: 15 | H7: 21 | I7: 36 | J7: =F7-B7 -> 0 | K7: -10
A8: 春日 | B8: 52 | C8: 79 | D8: 69 | E8: 148 | F8: 44 | G8: 65 | H8: 59 | I8: 124 | J8: -8 | K8: -24
A9: 中央 | B9: 60 | C9: 91 | D9: 86 | E9: 177 | F9: 74 | G9: 112 | H9: 105 | I9: 217 | J9: 14 | K9: 40
A10: 上山口 | B10: 67 | C10: 92 | D10: 106 | E10: 198 | F10: 65 | G10: 85 | H10: 99 | I10: 184 | J10: -2 | K10: -14
A11: 戸磯 | B11: 52 | C11: 58 | D11: 81 | E11: 139 | F11: 50 | G11: 57 | H11: 72 | I11: 129 | J11: -2 | K11: -10
A12: 恵南 | B12: 229 | C12: 422 | D12: 296 | E12: 718 | F12: 233 | G12: 483 | H12: 274 | I12: 757 | J12: 4 | K12: 39
A13: 和光町１丁目 | B13: 173 | C13: 200 | D13: 210 | E13: 410 | F13: 197 | G13: 216 | H13: 227 | I13: 443 | J13: 24 | K13: 33
A14: 和光町２丁目 | B14: 209 | C14: 303 | D14: 275 | E14: 578 | F14: 219 | G14: 279 | H14: 282 | I14: 561 | J14: 10 | K14: -17
A15: 和光町３丁目 | B15: 192 | C15: 229 | D15: 249 | E15: 478 | F15: 255 | G15: 303 | H15: 295 | I15: 598 | J15: 63 | K15: 120
A16: 和光町４丁目 | B16: 204 | C16: 231 | D16: 246 | E16: 477 | F16: 186 | G16: 222 | H16: 234 | I16: 456 | J16: -18 | K16: -21
A17: 和光町５丁目 | B17: 321 | C17: 367 | D17: 342 | E17: 709 | F17: 380 | G17: 449 | H17: 403 | I17: 852 | J17: =F17-B17 -> 59 | K17: 143
A18: 駒場町１丁目 | B18: 284 | C18: 315 | D18: 314 | E18: 629 | F18: 314 | G18: 328 | H18: 331 | I18: 659 | J18: 30 | K18: 30
A19: 駒場町２丁目 | B19: 140 | C19: 183 | D19: 189 | E19: 372 | F19: 145 | G19: 181 | H19: 200 | I19: 381 | J19: 5 | K19: 9
A20: 駒場町３丁目 | B20: 94 | C20: 117 | D20: 126 | E20: 243 | F20: 118 | G20: 135 | H20: 150 | I20: 285 | J20: 24 | K20: 42
A21: 駒場町４丁目 | B21: 134 | C21: 178 | D21: 173 | E21: 351 | F21: 144 | G21: 187 | H21: 183 | I21: 370 | J21: 10 | K21: 19
A22: 駒場町５丁目 | B22: 94 | C22: 110 | D22: 104 | E22: 214 | F22: 95 | G22: 111 | H22: 109 | I22: 220 | J22: 1 | K22: 6
A23: 駒場町６丁目 | B23: 112 | C23: 147 | D23: 148 | E23: 295 | F23: 132 | G23: 146 | H23: 155 | I23: 301 | J23: 20 | K23: =I23-E23 -> 6
A24: 白樺町１丁目 | B24: 152 | C24: 191 | D24: 198 | E24: 389 | F24: 153 | G24: 184 | H24: 189 | I24: 373 | J24: 1 | K24: -16
A25: 白樺町２丁目 | B25: 143 | C25: 178 | D25: 152 | E25: 330 | F25: 144 | G25: 177 | H25: 159 | I25: 336 | J25: 1 | K25: 6
A26: 白樺町３丁目 | B26: 220 | C26: 311 | D26: 338 | E26: 649 | F26: 230 | G26: 309 | H26: 337 | I26: 646 | J26: 10 | K26: -3
A27: 白樺町４丁目 | B27: 16 | C27: 40 | D27: 35 | E27: 75 | F27: 16 | G27: 53 | H27: 25 | I27: 78 | J27: 0 | K27: 3
A28: 黄金南１丁目 | B28: 290 | C28: 404 | D28: 427 | E28: 831 | F28: 339 | G28: 452 | H28: 492 | I28: 944 | J28: =F28-B28 -> 49 | K28: 113
A29: 黄金南２丁目 | B29: 241 | C29: 308 | D29: 318 | E29: 626 | F29: 269 | G29: 340 | H29: 367 | I29: 707 | J29: 28 | K29: 81
A30: 黄金南３丁目 | B30: 256 | C30: 353 | D30: 373 | E30: 726 | F30: 295 | G30: 415 | H30: 446 | I30: 861 | J30: 39 | K30: 135
A31: 黄金南４丁目 | B31: 263 | C31: 428 | D31: 400 | E31: 828 | F31: 288 | G31: 454 | H31: 445 | I31: 899 | J31: 25 | K31: 71
A32: 黄金南５丁目 | B32: 85 | C32: 104 | D32: 120 | E32: 224 | F32: 97 | G32: 128 | H32: 139 | I32: 267 | J32: 12 | K32: 43
A33: 黄金南６丁目 | B33: 91 | C33: 148 | D33: 142 | E33: 290 | F33: 100 | G33: 153 | H33: 155 | I33: 308 | J33: 9 | K33: =I33-E33 -> 18
A34: 黄金南７丁目 | B34: 266 | C34: 373 | D34: 390 | E34: 763 | F34: 282 | G34: 401 | H34: 421 | I34: 822 | J34: 16 | K34: 59
A35: 黄金中央１丁目 | B35: 207 | C35: 216 | D35: 207 | E35: 423 | F35: 247 | G35: 215 | H35: 261 | I35: 476 | J35: 40 | K35: 53
A36: 黄金中央２丁目 | B36: 224 | C36: 181 | D36: 203 | E36: 384 | F36: 246 | G36: 154 | H36: 231 | I36: 385 | J36: 22 | K36: 1
A37: 黄金中央３丁目 | B37: 333 | C37: 304 | D37: 310 | E37: 614 | F37: 465 | G37: 356 | H37: 424 | I37: 780 | J37: =F37-B37 -> 132 | K37: 166
A38: 黄金中央４丁目 | B38: 218 | C38: 277 | D38: 250 | E38: 527 | F38: 230 | G38: 272 | H38: 248 | I38: 520 | J38: 12 | K38: -7
A39: 黄金中央５丁目 | B39: - | C39: - | D39: - | E39: - | F39: - | G39: - | H39: - | I39: - | J39: - | K39: -
A40: 黄金北１丁目 | B40: 284 | C40: 313 | D40: 303 | E40: 616 | F40: 302 | G40: 295 | H40: 327 | I40: 622 | J40: 18 | K40: 6
A41: 黄金北２丁目 | B41: 226 | C41: 251 | D41: 285 | E41: 536 | F41: 253 | G41: 259 | H41: 313 | I41: 572 | J41: 27 | K41: 36
A42: 黄金北３丁目 | B42: 320 | C42: 383 | D42: 419 | E42: 802 | F42: 352 | G42: 385 | H42: 421 | I42: 806 | J42: 32 | K42: 4
A43: 黄金北４丁目 | B43: 345 | C43: 368 | D43: 403 | E43: 771 | F43: 343 | G43: 346 | H43: 405 | I43: 751 | J43: -2 | K43: -20
A44: 相生町 | B44: 940 | C44: 895 | D44: 906 | E44: 1801 | F44: 941 | G44: 908 | H44: 954 | I44: 1862 | J44: 1 | K44: 61
A45: 緑町１丁目 | B45: 98 | C45: 96 | D45: 78 | E45: 174 | F45: 111 | G45: 90 | H45: 90 | I45: 180 | J45: 13 | K45: 6
A46: 緑町２丁目 | B46: 319 | C46: 333 | D46: 398 | E46: 731 | F46: 303 | G46: 292 | H46: 378 | I46: 670 | J46: -16 | K46: -61
A47: 住吉町１丁目 | B47: 104 | C47: 118 | D47: 129 | E47: 247 | F47: 105 | G47: 121 | H47: 114 | I47: 235 | J47: 1 | K47: -12
A48: 住吉町２丁目 | B48: 268 | C48: 320 | D48: 336 | E48: 656 | F48: 262 | G48: 280 | H48: 352 | I48: 632 | J48: -6 | K48: -24
A49: 住吉町３丁目 | B49: 232 | C49: 259 | D49: 277 | E49: 536 | F49: 249 | G49: 277 | H49: 281 | I49: 558 | J49: 17 | K49: 22
A50: 住吉町４丁目 | B50: 154 | C50: 182 | D50: 219 | E50: 401 | F50: 170 | G50: 172 | H50: 226 | I50: 398 | J50: 16 | K50: -3
A51: 末広町 | B51: 273 | C51: 269 | D51: 308 | E51: 577 | F51: 299 | G51: 303 | H51: 327 | I51: 630 | J51: 26 | K51: 53
A52: 栄恵町 | B52: 95 | C52: 84 | D52: 85 | E52: 169 | F52: 97 | G52: 80 | H52: 77 | I52: 157 | J52: 2 | K52: -12
A53: 泉町 | B53: 340 | C53: 331 | D53: 290 | E53: 621 | F53: 359 | G53: 335 | H53: 294 | I53: 629 | J53: 19 | K53: 8
A54: 桜町１丁目 | B54: 161 | C54: 200 | D54: 156 | E54: 356 | F54: 137 | G54: 152 | H54: 114 | I54: 266 | J54: -24 | K54: -90
A55: 桜町２丁目 | B55: 374 | C55: 375 | D55: 468 | E55: 843 | F55: 357 | G55: 353 | H55: 429 | I55: 782 | J55: -17 | K55: -61
A56: 桜町３丁目 | B56: 147 | C56: 202 | D56: 178 | E56: 380 | F56: 136 | G56: 172 | H56: 159 | I56: 331 | J56: -11 | K56: -49
A57: 〈資料〉総務省 国勢調査 | J57: （単位：人）

Sheet 地域の人口②
J1: （各年10月1日）
A2: 町名 | B2: 平成22年国勢調査 | F2: 平成27年国勢調査 | J2: 比較
B3: 世帯数 | C3: 男 | D3: 女 | E3: 計 | F3: 世帯数 | G3: 男 | H3: 女 | I3: 計 | J3: 世帯数 | K3: 人口
A4: 桜町４丁目 | B4: - | C4: - | D4: - | E4: - | F4: - | G4: - | H4: - | I4: - | J4: - | K4: -
A5: 京町 | B5: 59 | C5: 56 | D5: 59 | E5: 115 | F5: 82 | G5: 80 | H5: 81 | I5: 161 | J5: =F5-B5 -> 23 | K5: =I5-E5 -> 46
A6: 漁町 | B6: 523 | C6: 519 | D6: 522 | E6: 1041 | F6: 540 | G6: 551 | H6: 515 | I6: 1066 | J6: =F6-B6 -> 17 | K6: =I6-E6 -> 25
A7: 福住町１丁目 | B7: 327 | C7: 398 | D7: 433 | E7: 831 | F7: 327 | G7: 398 | H7: 409 | I7: 807 | J7: 0 | K7: -24
A8: 福住町２丁目 | B8: 162 | C8: 165 | D8: 200 | E8: 365 | F8: 155 | G8: 168 | H8: 188 | I8: 356 | J8: -7 | K8: -9
A9: 福住町３丁目 | B9: 220 | C9: 239 | D9: 274 | E9: 513 | F9: 252 | G9: 257 | H9: 309 | I9: 566 | J9: 32 | K9: 53
A10: 新町 | B10: 55 | C10: 63 | D10: 38 | E10: 101 | F10: 29 | G10: 36 | H10: 38 | I10: 74 | J10: -26 | K10: -27
A11: 本町 | B11: 216 | C11: 257 | D11: 257 | E11: 514 | F11: 225 | G11: 239 | H11: 244 | I11: 483 | J11: 9 | K11: -31
A12: 有明町１丁目 | B12: 230 | C12: 234 | D12: 251 | E12: 485 | F12: 218 | G12: 213 | H12: 221 | I12: 434 | J12: -12 | K12: -51
A13: 有明町２丁目 | B13: 210 | C13: 251 | D13: 271 | E13: 522 | F13: 202 | G13: 250 | H13: 244 | I13: 494 | J13: -8 | K13: -28
A14: 有明町３丁目 | B14: 121 | C14: 129 | D14: 156 | E14: 285 | F14: 125 | G14: 117 | H14: 148 | I14: 265 | J14: 4 | K14: -20
A15: 有明町４丁目 | B15: 123 | C15: 147 | D15: 171 | E15: 318 | F15: 122 | G15: 143 | H15: 144 | I15: 287 | J15: -1 | K15: -31
A16: 有明町５丁目 | B16: 115 | C16: 133 | D16: 132 | E16: 265 | F16: 113 | G16: 137 | H16: 145 | I16: 282 | J16: -2 | K16: 17
A17: 有明町６丁目 | B17: 175 | C17: 207 | D17: 201 | E17: 408 | F17: 182 | G17: 199 | H17: 194 | I17: 393 | J17: 7 | K17: -15
A18: 大町１丁目 | B18: 87 | C18: 102 | D18: 111 | E18: 213 | F18: 83 | G18: 99 | H18: 102 | I18: 201 | J18: -4 | K18: -12
A19: 大町２丁目 | B19: 81 | C19: 85 | D19: 78 | E19: 163 | F19: 80 | G19: 88 | H19: 77 | I19: 165 | J19: -1 | K19: 2
A20: 大町３丁目 | B20: 92 | C20: 121 | D20: 117 | E20: 238 | F20: 101 | G20: 117 | H20: 119 | I20: 236 | J20: =F20-B20 -> 9 | K20: -2
A21: 大町４丁目 | B21: 89 | C21: 105 | D21: 111 | E21: 216 | F21: 77 | G21: 83 | H21: 82 | I21: 165 | J21: -12 | K21: -51
A22: 文京町１丁目 | B22: 217 | C22: 269 | D22: 297 | E22: 566 | F22: 223 | G22: 274 | H22: 299 | I22: 573 | J22: 6 | K22: 7
A23: 文京町２丁目 | B23: 170 | C23: 220 | D23: 255 | E23: 475 | F23: 188 | G23: 229 | H23: 257 | I23: 486 | J23: 18 | K23: 11
A24: 文京町３丁目 | B24: 74 | C24: 87 | D24: 77 | E24: 164 | F24: 79 | G24: 79 | H24: 81 | I24: 160 | J24: 5 | K24: -4
A25: 文京町４丁目 | B25: 212 | C25: 296 | D25: 303 | E25: 599 | F25: 239 | G25: 316 | H25: 318 | I25: 634 | J25: 27 | K25: 35
A26: 牧場 | B26: 100 | C26: 161 | D26: 156 | E26: 317 | F26: 99 | G26: 149 | H26: 149 | I26: 298 | J26: -1 | K26: -19
A27: 美咲野１丁目 | B27: 187 | C27: 296 | D27: 322 | E27: 618 | F27: 191 | G27: 279 | H27: 310 | I27: 589 | J27: 4 | K27: -29
A28: 美咲野２丁目 | B28: 116 | C28: 188 | D28: 201 | E28: 389 | F28: 120 | G28: 182 | H28: 190 | I28: 372 | J28: 4 | K28: -17
A29: 美咲野３丁目 | B29: 129 | C29: 203 | D29: 193 | E29: 396 | F29: 130 | G29: 201 | H29: 173 | I29: 374 | J29: 1 | K29: -22
A30: 美咲野４丁目 | B30: 93 | C30: 158 | D30: 156 | E30: 314 | F30: 93 | G30: 145 | H30: 140 | I30: 285 | J30: 0 | K30: -29
A31: 美咲野５丁目 | B31: 90 | C31: 116 | D31: 131 | E31: 247 | F31: 90 | G31: 114 | H31: 123 | I31: 237 | J31: 0 | K31: -10
A32: 美咲野６丁目 | B32: 120 | C32: 189 | D32: 194 | E32: 383 | F32: 125 | G32: 184 | H32: 201 | I32: 385 | J32: 5 | K32: 2
A33: 盤尻 | B33: 8 | C33: 9 | D33: 8 | E33: 17 | F33: 9 | G33: 9 | H33: 5 | I33: 14 | J33: =F33-B33 -> 1 | K33: -3
A34: 桜森 | B34: - | C34: - | D34: - | E34: - | F34: - | G34: - | H34: - | I34: - | J34: - | K34: -
A35: 中島町１丁目 | B35: 268 | C35: 330 | D35: 331 | E35: 661 | F35: 254 | G35: 309 | H35: 309 | I35: 618 | J35: -14 | K35: -43
A36: 中島町２丁目 | B36: 203 | C36: 286 | D36: 295 | E36: 581 | F36: 223 | G36: 256 | H36: 275 | I36: 531 | J36: 20 | K36: -50
A37: 中島町３丁目 | B37: 70 | C37: 100 | D37: 95 | E37: 195 | F37: 76 | G37: 100 | H37: 104 | I37: 204 | J37: 6 | K37: 9
A38: 中島町４丁目 | B38: 516 | C38: 558 | D38: 566 | E38: 1124 | F38: 523 | G38: 534 | H38: 534 | I38: 1068 | J38: 7 | K38: -56
A39: 中島町５丁目 | B39: 318 | C39: 283 | D39: 238 | E39: 521 | F39: 329 | G39: 289 | H39: 276 | I39: 565 | J39: 11 | K39: 44
A40: 中島町６丁目 | B40: 355 | C40: 353 | D40: 420 | E40: 773 | F40: 381 | G40: 375 | H40: 400 | I40: 775 | J40: 26 | K40: 2
A41: 恵央町 | B41: 321 | C41: 271 | D41: 352 | E41: 623 | F41: 352 | G41: 286 | H41: 411 | I41: 697 | J41: 31 | K41: 74
A42: 幸町１丁目 | B42: 85 | C42: 110 | D42: 108 | E42: 218 | F42: 95 | G42: 114 | H42: 124 | I42: 238 | J42: 10 | K42: 20
A43: 幸町２丁目 | B43: 152 | C43: 208 | D43: 208 | E43: 416 | F43: 147 | G43: 169 | H43: 202 | I43: 371 | J43: -5 | K43: -45
A44: 幸町３丁目 | B44: 177 | C44: 201 | D44: 247 | E44: 448 | F44: 172 | G44: 200 | H44: 217 | I44: 417 | J44: -5 | K44: -31
A45: 幸町４丁目 | B45: - | C45: - | D45: - | E45: - | F45: - | G45: - | H45: - | I45: - | J45: - | K45: -
A46: 柏陽町１丁目 | B46: 334 | C46: 362 | D46: 387 | E46: 749 | F46: 311 | G46: 343 | H46: 370 | I46: 713 | J46: -23 | K46: -36
A47: 柏陽町３丁目 | B47: 513 | C47: 602 | D47: 591 | E47: 1193 | F47: 634 | G47: 810 | H47: 799 | I47: 1609 | J47: 121 | K47: 416
A48: 柏陽町４丁目 | B48: 325 | C48: 298 | D48: 349 | E48: 647 | F48: 294 | G48: 256 | H48: 307 | I48: 563 | J48: -31 | K48: -84
A49: 柏木町 | B49: 997 | C49: 1441 | D49: 1232 | E49: 2673 | F49: 465 | G49: 708 | H49: 597 | I49: 1305 | J49: -532 | K49: -1368
A50: 柏木町１丁目 | B50: - | C50: - | D50: - | E50: - | F50: 181 | G50: 216 | H50: 195 | I50: 411 | J50: =F50 -> 181 | K50: =I50 -> 411
A51: 柏木町２丁目 | B51: - | C51: - | D51: - | E51: - | F51: 115 | G51: 134 | H51: 128 | I51: 262 | J51: =F51 -> 115 | K51: =I51 -> 262
A52: 柏木町３丁目 | B52: - | C52: - | D52: - | E52: - | F52: 252 | G52: 282 | H52: 289 | I52: 571 | J52: 252 | K52: 571
A53: 北柏木町１丁目 | B53: 492 | C53: 646 | D53: 686 | E53: 1332 | F53: 295 | G53: 391 | H53: 408 | I53: 799 | J53: -197 | K53: -533
A54: 北柏木町２丁目 | B54: - | C54: - | D54: - | E54: - | F54: 221 | G54: 269 | H54: 277 | I54: 546 | J54: =F54 -> 221 | K54: =I54 -> 546
K55: （単位：人）
A56: 注）柏木町1～3丁目は柏木町から一部分割した新住居表示、北柏木町2丁目は、北柏木町1丁目から分割した町名

Sheet 地域の人口③
J1: （各年10月1日）
A2: 町名 | B2: 平成22年国勢調査 | F2: 平成27年国勢調査 | J2: 比較
B3: 世帯数 | C3: 男 | D3: 女 | E3: 計 | F3: 世帯数 | G3: 男 | H3: 女 | I3: 計 | J3: 世帯数 | K3: 人口
A4: 北柏木町３丁目 | B4: 10 | C4: 14 | D4: 12 | E4: 26 | F4: 10 | G4: 12 | H4: 12 | I4: 24 | J4: =F4-B4 -> 0 | K4: =I4-E4 -> -2
A5: 北柏木町４丁目 | B5: - | C5: - | D5: - | E5: - | F5: - | G5: - | H5: - | I5: - | J5: - | K5: -
A6: 北柏木町５丁目 | B6: - | C6: - | D6: - | E6: - | F6: - | G6: - | H6: - | I6: - | J6: - | K6: -
A7: 島松沢 | B7: 11 | C7: 12 | D7: 11 | E7: 23 | F7: 7 | G7: 8 | H7: 6 | I7: 14 | J7: =F7-B7 -> -4 | K7: =I7-E7 -> -9
A8: 恵み野東１丁目 | B8: 109 | C8: 133 | D8: 159 | E8: 292 | F8: 117 | G8: 134 | H8: 160 | I8: 294 | J8: 8 | K8: =I8-E8 -> 2
A9: 恵み野東２丁目 | B9: 205 | C9: 272 | D9: 288 | E9: 560 | F9: 198 | G9: 231 | H9: 271 | I9: 502 | J9: -7 | K9: -58
A10: 恵み野東３丁目 | B10: 145 | C10: 182 | D10: 203 | E10: 385 | F10: 151 | G10: 186 | H10: 202 | I10: 388 | J10: 6 | K10: 3
A11: 恵み野東４丁目 | B11: 128 | C11: 182 | D11: 196 | E11: 378 | F11: 228 | G11: 331 | H11: 359 | I11: 690 | J11: 100 | K11: 312
A12: 恵み野東５丁目 | B12: 216 | C12: 297 | D12: 286 | E12: 583 | F12: 212 | G12: 263 | H12: 284 | I12: 547 | J12: -4 | K12: -36
A13: 恵み野東６丁目 | B13: 170 | C13: 235 | D13: 231 | E13: 466 | F13: 170 | G13: 224 | H13: 231 | I13: 455 | J13: 0 | K13: -11
A14: 恵み野東７丁目 | B14: 181 | C14: 281 | D14: 287 | E14: 568 | F14: 183 | G14: 258 | H14: 270 | I14: 528 | J14: 2 | K14: -40
A15: 恵み野西１丁目 | B15: 285 | C15: 303 | D15: 388 | E15: 691 | F15: 286 | G15: 307 | H15: 376 | I15: 683 | J15: 1 | K15: -8
A16: 恵み野西２丁目 | B16: 97 | C16: 116 | D16: 172 | E16: 288 | F16: 94 | G16: 115 | H16: 166 | I16: 281 | J16: -3 | K16: -7
A17: 恵み野西３丁目 | B17: 143 | C17: 168 | D17: 182 | E17: 350 | F17: 138 | G17: 159 | H17: 164 | I17: 323 | J17: -5 | K17: -27
A18: 恵み野西４丁目 | B18: 179 | C18: 206 | D18: 242 | E18: 448 | F18: 185 | G18: 218 | H18: 244 | I18: 462 | J18: 6 | K18: 14
A19: 恵み野西５丁目 | B19: 104 | C19: 157 | D19: 194 | E19: 351 | F19: 103 | G19: 133 | H19: 201 | I19: 334 | J19: -1 | K19: -17
A20: 恵み野西６丁目 | B20: 317 | C20: 472 | D20: 467 | E20: 939 | F20: 322 | G20: 459 | H20: 442 | I20: 901 | J20: 5 | K20: -38
A21: 恵み野南１丁目 | B21: 162 | C21: 190 | D21: 212 | E21: 402 | F21: 121 | G21: 122 | H21: 157 | I21: 279 | J21: -41 | K21: -123
A22: 恵み野南２丁目 | B22: 213 | C22: 261 | D22: 304 | E22: 565 | F22: 222 | G22: 251 | H22: 287 | I22: 538 | J22: 9 | K22: -27
A23: 恵み野南３丁目 | B23: 244 | C23: 300 | D23: 328 | E23: 628 | F23: 247 | G23: 270 | H23: 320 | I23: 590 | J23: 3 | K23: -38
A24: 恵み野南４丁目 | B24: 286 | C24: 332 | D24: 418 | E24: 750 | F24: 291 | G24: 335 | H24: 389 | I24: 724 | J24: 5 | K24: -26
A25: 恵み野北１丁目 | B25: 197 | C25: 239 | D25: 276 | E25: 515 | F25: 197 | G25: 223 | H25: 239 | I25: 462 | J25: 0 | K25: =I25-E25 -> -53
A26: 恵み野北２丁目 | B26: 185 | C26: 227 | D26: 268 | E26: 495 | F26: 199 | G26: 226 | H26: 264 | I26: 490 | J26: 14 | K26: -5
A27: 恵み野北３丁目 | B27: 114 | C27: 124 | D27: 216 | E27: 340 | F27: 116 | G27: 153 | H27: 253 | I27: 406 | J27: 2 | K27: 66
A28: 恵み野北４丁目 | B28: 124 | C28: 151 | D28: 163 | E28: 314 | F28: 135 | G28: 157 | H28: 157 | I28: 314 | J28: 11 | K28: 0
A29: 恵み野北５丁目 | B29: 123 | C29: 165 | D29: 174 | E29: 339 | F29: 131 | G29: 152 | H29: 174 | I29: 326 | J29: 8 | K29: -13
A30: 恵み野北６丁目 | B30: 257 | C30: 322 | D30: 328 | E30: 650 | F30: 275 | G30: 319 | H30: 347 | I30: 666 | J30: 18 | K30: 16
A31: 恵み野北７丁目 | B31: 274 | C31: 415 | D31: 471 | E31: 886 | F31: 272 | G31: 374 | H31: 430 | I31: 804 | J31: -2 | K31: -82
A32: 恵み野里美１丁目 | B32: - | C32: - | D32: - | E32: - | F32: 30 | G32: 20 | H32: 24 | I32: 44 | J32: =F32 -> 30 | K32: =I32 -> 44
A33: 恵み野里美２丁目 | B33: - | C33: - | D33: - | E33: - | F33: 112 | G33: 183 | H33: 184 | I33: 367 | J33: =F33 -> 112 | K33: =I33 -> 367
A34: 島松寿町１丁目 | B34: 289 | C34: 308 | D34: 335 | E34: 643 | F34: 292 | G34: 282 | H34: 335 | I34: 617 | J34: 3 | K34: -26
A35: 島松寿町２丁目 | B35: 443 | C35: 478 | D35: 562 | E35: 1040 | F35: 445 | G35: 462 | H35: 533 | I35: 995 | J35: 2 | K35: -45
A36: 島松仲町１丁目 | B36: 119 | C36: 147 | D36: 161 | E36: 308 | F36: 129 | G36: 142 | H36: 160 | I36: 302 | J36: 10 | K36: -6
A37: 島松仲町２丁目 | B37: 109 | C37: 114 | D37: 125 | E37: 239 | F37: 102 | G37: 101 | H37: 119 | I37: 220 | J37: -7 | K37: -19
A38: 島松仲町３丁目 | B38: 71 | C38: 78 | D38: 86 | E38: 164 | F38: 68 | G38: 69 | H38: 90 | I38: 159 | J38: -3 | K38: -5
A39: 島松東町１丁目 | B39: 96 | C39: 130 | D39: 139 | E39: 269 | F39: 103 | G39: 129 | H39: 144 | I39: 273 | J39: 7 | K39: 4
A40: 島松東町２丁目 | B40: 145 | C40: 164 | D40: 194 | E40: 358 | F40: 143 | G40: 154 | H40: 181 | I40: 335 | J40: -2 | K40: -23
A41: 島松東町３丁目 | B41: 208 | C41: 249 | D41: 218 | E41: 467 | F41: 151 | G41: 176 | H41: 163 | I41: 339 | J41: -57 | K41: -128
A42: 島松東町４丁目 | B42: 78 | C42: 105 | D42: 108 | E42: 213 | F42: 84 | G42: 102 | H42: 103 | I42: 205 | J42: 6 | K42: -8
A43: 島松本町１丁目 | B43: 183 | C43: 233 | D43: 271 | E43: 504 | F43: 178 | G43: 224 | H43: 251 | I43: 475 | J43: -5 | K43: -29
A44: 島松本町２丁目 | B44: 255 | C44: 311 | D44: 332 | E44: 643 | F44: 253 | G44: 289 | H44: 313 | I44: 602 | J44: -2 | K44: =I44-E44 -> -41
A45: 島松本町３丁目 | B45: 286 | C45: 349 | D45: 394 | E45: 743 | F45: 281 | G45: 328 | H45: 374 | I45: 702 | J45: -5 | K45: -41
A46: 島松本町４丁目 | B46: 199 | C46: 265 | D46: 268 | E46: 533 | F46: 196 | G46: 256 | H46: 292 | I46: 548 | J46: -3 | K46: 15
A47: 島松旭町１丁目 | B47: 104 | C47: 151 | D47: 159 | E47: 310 | F47: 114 | G47: 145 | H47: 167 | I47: 312 | J47: 10 | K47: 2
A48: 島松旭町２丁目 | B48: 136 | C48: 173 | D48: 198 | E48: 371 | F48: 123 | G48: 164 | H48: 171 | I48: 335 | J48: -13 | K48: -36
A49: 島松旭町３丁目 | B49: 95 | C49: 152 | D49: 164 | E49: 316 | F49: 101 | G49: 158 | H49: 166 | I49: 324 | J49: 6 | K49: 8
A50: 島松旭町４丁目 | B50: 146 | C50: 185 | D50: 206 | E50: 391 | F50: 149 | G50: 173 | H50: 206 | I50: 379 | J50: 3 | K50: -12
A51: 西島松 | B51: 192 | C51: 561 | D51: 421 | E51: 982 | F51: 192 | G51: 462 | H51: 404 | I51: 866 | J51: 0 | K51: -116
A52: 南島松 | B52: 79 | C52: 137 | D52: 203 | E52: 340 | F52: 73 | G52: 103 | H52: 149 | I52: 252 | J52: -6 | K52: -88
A53: 中島松 | B53: 54 | C53: 92 | D53: 90 | E53: 182 | F53: 50 | G53: 72 | H53: 83 | I53: 155 | J53: -4 | K53: -27
A54: 下島松 | B54: 95 | C54: 229 | D54: 233 | E54: 462 | F54: 86 | G54: 189 | H54: 219 | I54: 408 | J54: -9 | K54: -54
A55: 穂栄 | B55: 42 | C55: 48 | D55: 53 | E55: 101 | F55: 36 | G55: 35 | H55: 46 | I55: 81 | J55: -6 | K55: =I55-E55 -> -20
A56: 北島 | B56: 32 | C56: 57 | D56: 47 | E56: 104 | F56: 31 | G56: 45 | H56: 40 | I56: 85 | J56: -1 | K56: -19
A57: 合計 | B57: 27634 | C57: 33945 | D57: 35439 | E57: 69384 | F57: 28846 | G57: 33781 | H57: 35921 | I57: 69702 | J57: =F57-B57 -> 1212 | K57: =I57-E57 -> 318
I58: （単位：人）

Sheet 国調年齢別
A1: ３）年齢別人口（５歳階級）
H2: （各年10月1日）
A3: 年 齢 （各 歳） | D3: 平成22年 | G3: 平成27年
D4: 総 数 | E4: 男 | F4: 女 | G4: 総 数 | H4: 男 | I4: 女
A5: 総数 | D5: 69384 | E5: 33945 | F5: 35439 | G5: 69702 | H5: 33781 | I5: 35921
B6: 85 以上 | D6: 1613 | E6: 491 | F6: 1122 | G6: 2377 | H6: 819 | I6: 1558
B7: 80～84 | D7: 2108 | E7: 948 | F7: 1160 | G7: 2613 | H7: 1151 | I7: 1462
B8: 75～79 | D8: 3015 | E8: 1427 | F8: 1588 | G8: 3372 | H8: 1488 | I8: 1884
B9: 70～74 | D9: 3612 | E9: 1654 | F9: 1958 | G9: 3869 | H9: 1751 | I9: 2118
B10: 65～69 | D10: 4079 | E10: 1872 | F10: 2207 | G10: 5234 | H10: 2507 | I10: 2727
B11: 60～64 | D11: 5331 | E11: 2581 | F11: 2750 | G11: 4966 | H11: 2396 | I11: 2570
B12: 55～59 | D12: 4957 | E12: 2391 | F12: 2566 | G12: 4166 | H12: 2047 | I12: 2119
B13: 50～54 | D13: 4164 | E13: 2051 | F13: 2113 | G13: 4342 | H13: 2115 | I13: 2227
B14: 45～49 | D14: 4338 | E14: 2131 | F14: 2207 | G14: 4661 | H14: 2312 | I14: 2349
B15: 40～44 | D15: 4626 | E15: 2314 | F15: 2312 | G15: 5139 | H15: 2545 | I15: 2594
B16: 35～39 | D16: 5066 | E16: 2540 | F16: 2526 | G16: 4576 | H16: 2299 | I16: 2277
B17: 30～34 | D17: 4520 | E17: 2299 | F17: 2221 | G17: 3751 | H17: 1833 | I17: 1918
B18: 25～29 | D18: 3699 | E18: 1866 | F18: 1833 | G18: 3240 | H18: 1671 | I18: 1569
B19: 20～24 | D19: 4185 | E19: 2157 | F19: 2028 | G19: 3970 | H19: 2058 | I19: 1912
B20: 15～19 | D20: 4224 | E20: 2216 | F20: 2008 | G20: 4086 | H20: 2090 | I20: 1996
B21: 10～14 | D21: 3498 | E21: 1780 | F21: 1718 | G21: 3365 | H21: 1684 | I21: 1681
B22: 5～9 | D22: 3264 | E22: 1662 | F22: 1602 | G22: 3120 | H22: 1591 | I22: 1529
B23: 0～4 | D23: 2928 | E23: 1467 | F23: 1461 | G23: 2647 | H23: 1296 | I23: 1351
B25: 不詳 | D25: 157 | E25: 98 | F25: 59 | G25: 208 | H25: 128 | I25: 80
A27: （再 掲）
B28: 15歳未満 | D28: 9690 | E28: 4909 | F28: 4781 | G28: 9132 | H28: 4571 | I28: 4561
B29: 15～64歳 | D29: 45110 | E29: 22546 | F29: 22564 | G29: 42897 | H29: 21366 | I29: 21531
B30: 65歳以上 | D30: 14427 | E30: 6392 | F30: 8035 | G30: 17465 | H30: 7716 | I30: 9749
B31: 不詳 | D31: 157 | E31: 98 | F31: 59 | G31: 208 | H31: 128 | I31: 80
A32: 年齢別割合(%)
B33: 15歳未満 | D33: 13.96575579 | E33: 14.46162911 | F33: 13.49078699 | G33: 13.1 | H33: 13.6 | I33: 12.7
B34: 15～64歳 | D34: 65.01498905 | E34: 66.41920754 | F34: 63.66996811 | G34: 61.7 | H34: 63.5 | I34: 60.1
B35: 65歳以上 | D35: 20.79297821 | E35: 18.83046104 | F35: 22.67276165 | G35: 25.1 | H35: 22.9 | I35: 27.2
A36: 平均年齢 | C36: (歳) | D36: 43.5 | E36: 42.3 | F36: 44.6 | G36: 45.4 | H36: 44.2 | I36: 46.6
A37: 年齢中位数 | C37: (歳) | D37: 43.3 | E37: 41.9 | F37: 45 | G37: 45.9 | H37: 44.5 | I37: 47.3
A38: 〈資料〉総務省 国勢調査 （第1次基本集計結果 第3表） | H38: （単位：人）

Sheet 人口集中地区、昼間・夜間人口、産業別就業人口
A1: ４）人口集中地区（ＤＩＤ）人口および面積
F2: （各年10月1日）
A3: 年 次 | B3: 地区 | C3: 人 口 集 中 地 区 | F3: 面 積 | G3: 人口密度 （１K㎡あたり）
C4: 総 数 | D4: 男 | E4: 女
A5: 平成７年 | C5: 52895 | D5: … | E5: … | F5: 11.8 | G5: 4478.8
B6: Ⅰ | C6: 45485 | F6: 10.4 | G6: 4390.4
B7: Ⅱ | C7: 7410 | F7: 1.4 | G7: 5145.8
A8: 平成12年 | C8: 56262 | F8: 12.23 | G8: 4600.3
B9: Ⅰ | C9: 48955 | D9: … | E9: … | F9: 10.8 | G9: 4532.9
B10: Ⅱ | C10: 7307 | F10: 1.43 | G10: 5109.8
A11: 平成17年 | C11: =C12+C13 -> 58772 | F11: =F12+F13 -> 12.78 | G11: 4598.7
B12: Ⅰ | C12: 51337 | D12: … | E12: … | F12: 11.3 | G12: 4543.1
B13: Ⅱ | C13: 7435 | F13: 1.48 | G13: 5023.6
A14: 平成22年 | C14: 62946 | D14: 30742 | E14: 32204 | F14: 13.89 | G14: 4531.7
B15: Ⅰ | C15: 55487 | D15: … | E15: … | F15: 12.38 | G15: 4482
B16: Ⅱ | C16: 7459 | F16: 1.51 | G16: 4939.7
A17: 平成27年 | C17: 63166 | D17: 30577 | E17: 32589 | F17: 13.92 | G17: 4537.8
B18: Ⅰ | C18: 56081 | D18: … | E18: … | F18: 12.4 | G18: 4522.7
B19: Ⅱ | C19: 7085 | D19: … | E19: … | F19: 1.52 | G19: 4661.2
A20: 〈資料〉総務省 国勢調査 | G20: （単位：K㎡）
A21: 注）Ⅰは恵庭･恵み野地区、Ⅱは島松地区をさす。
A22: 〈人口集中地区〉
A23: 国勢調査区を基礎単位地域として用い、人口密度１平方キロメートル当り4,000人以上の調
A24: 査区が市の境域内で互いに隣接して、人口5,000人以上を有する場合、この地域を人口集中
A25: 地区とした。
A27: ５）恵庭市の昼間人口、夜間人口（詳細は30～31頁）
F28: （各年10月1日）
B29: 年次 | C29: 平成７年 | D29: 平成12年 | E29: 平成17年 | F29: 平成22年 | G29: 平成27年
A30: 区分
A31: 昼間人口 | C31: 56822 | D31: 60882 | E31: 63123 | F31: 65782 | G31: 65918
A32: 夜間人口 | C32: 62345 | D32: 65238 | E32: 67614 | F32: 69384 | G32: 69702
A33: 昼間人口率 | C33: 90.9 | D33: 93.3 | E33: 93.4 | F33: 94.8 | G33: 94.6
A34: 〈資料〉総務省 国勢調査 | F34: （単位：人）
A36: ６）産業別就業人口（詳細は32～33頁）
G37: （各年10月1日）
B38: 年次 | C38: 平成7年 | E38: 平成12年 | G38: 平成17年
A39: 産業別 | D39: 構成比 | F39: 構成比 | H39: 構成比
A40: 第１次産業 | C40: 1523 | D40: 4.896948651 | E40: 1387 | F40: 4.484899437 | G40: 1464 | H40: 4.662717371
A41: 第２次産業 | C41: 8411 | D41: 27.04414649 | E41: 7934 | F41: 25.65478885 | G41: 7282 | H41: 23.19256004
A42: 第３次産業 | C42: 21167 | D42: 68.05890486 | E42: 21605 | F42: 69.86031171 | G42: 22652 | H42: 72.14472259
A43: 合 計 | C43: 31101 | D43: 100 | E43: 30926 | F43: 100 | G43: 31398 | H43: 100
B45: 年次 | C45: 平成22年 | E45: 平成27年
A46: 産業別 | D46: 構成比 | F46: 構成比
A47: 第１次産業 | C47: 1151 | D47: 3.747354713 | E47: 1212 | F47: 3.8
A48: 第２次産業 | C48: 6688 | D48: 21.77437734 | E48: 6550 | F48: 20.7
A49: 第３次産業 | C49: 22876 | D49: 74.47826795 | E49: 23884 | F49: 75.5 | G49: （注）分類不能の産業は
A50: 合 計 | C50: 30715 | D50: 100 | E50: 31646 | F50: 100 | G50: 第３次産業に含む
A51: 〈資料〉総務省 国勢調査 | E51: （単位：人）

Sheet 夜間及び昼間人口、通学者数
A1: ７）夜間人口および昼間人口（詳細）
O2: （各年10月1日）
A3: 年 次 | B3: 夜間人口 | C3: 流 出 人 口 | H3: 流 入 人 口 | M3: 昼間人口 | N3: 昼間人口率 | O3: 年 次
B4: （Ａ) | C4: 総 数 | D4: 通 勤 | E4: 通 学 | F4: 不 詳 | G4: 流出率 | H4: 総 数 | I4: 通 勤 | J4: 通 学 | K4: 不 詳 | L4: 流入率 | M4: （Ａ－Ｂ）＋（Ｃ）＝（Ｅ） | N4: （Ｅ）／（Ａ）
C5: （Ｂ） | G5: （Ｂ）／（Ａ） | H5: （Ｃ） | L5: （Ｃ）／（Ａ）
A6: 平成７年 | B6: 62345 | C6: 12239 | D6: 10009 | E6: 2230 | F6: － | G6: 19.6 | H6: 6716 | I6: 5309 | J6: 1407 | K6: － | L6: 10.8 | M6: 56822 | N6: 90.9 | O6: 平成７年
A7: 平成12年 | B7: 65238 | C7: 12703 | D7: 10389 | E7: 2314 | F7: － | G7: 19.5 | H7: 8347 | I7: 6557 | J7: 1790 | K7: － | L7: 12.8 | M7: 60882 | N7: 93.3 | O7: 平成12年
A8: 平成17年 | B8: 67614 | C8: 13701 | D8: 11568 | E8: 2133 | F8: － | G8: 20.3 | H8: 9210 | I8: 7157 | J8: 2053 | K8: － | L8: 13.6 | M8: 63123 | N8: 93.4 | O8: 平成17年
A9: 平成22年 | B9: 69384 | C9: 13477 | D9: 11306 | E9: … | F9: … | G9: =C9/B9*100 -> 19.42378646 | H9: 9875 | I9: 7639 | J9: =H9-I9 -> 2236 | K9: － | L9: =H9/B9*100 -> 14.23238787 | M9: =(B9-C9)+H9 -> 65782 | N9: 94.8 | O9: 平成22年
A10: 平成27年 | B10: 69702 | C10: 14254 | D10: 12272 | E10: 1982 | F10: － | G10: =C10/B10*100 -> 20.44991535 | H10: 10470 | I10: 7984 | J10: 2486 | L10: =H10/B10*100 -> 15.02108978 | M10: 65918 | N10: 94.6 | O10: 平成27年
A11: 〈資料〉総務省 国勢調査 | N11: （単位：人、％）
A12: 注）平成22年国勢調査については「不詳」を含めていない。
A14: ８）恵庭市に常住する就業・通学市町村別１５歳以上就業者および通学者数
O15: （各年10月1日）
A16: 年 次 | B16: 総 数 | C16: 市内で就業・通学する者 | F16: 他の市町村で就業・通学する者 | N16: 不 詳 | O16: 年 次
C17: 小 計 | D17: 自 宅 | E17: 自 宅 外 | F17: 小 計 | G17: 札 幌 市 | H17: 千 歳 市 | I17: 江 別 市 | J17: 苫小牧市 | K17: 北広島市 | L17: その他市町村 | M17: 道 外
A18: 平成７年 | B18: 35704 | C18: 23501 | D18: 2342 | E18: 21159 | F18: 12203 | G18: 4977 | H18: 4367 | I18: 251 | J18: 383 | K18: 1629 | L18: 591 | M18: 5 | N18: － | O18: 平成７年
B19: -31101 | C19: -21092 | D19: -2342 | E19: -18750 | F19: -10009 | G19: -3857 | H19: -4027 | I19: -136 | J19: -336 | K19: -1142 | L19: -506 | M19: -5
A20: 平成12年 | B20: 35736 | C20: 23051 | D20: 2422 | E20: 20629 | F20: 12685 | G20: 4940 | H20: 4762 | I20: 287 | J20: 422 | K20: 1581 | L20: 658 | M20: 35 | N20: － | O20: 平成12年
B21: -30926 | C21: -20516 | D21: -2422 | E21: -18094 | F21: -10410 | G21: -3835 | H21: -4349 | I21: -152 | J21: -343 | K21: -1139 | L21: -559 | M21: -33
A22: 平成17年 | B22: 36133 | C22: 22472 | D22: 2222 | E22: 20250 | F22: 13661 | G22: 4802 | H22: 5609 | I22: 383 | J22: 470 | K22: 1544 | L22: 762 | M22: 91 | N22: － | O22: 平成17年
B23: -31398 | C23: -19830 | D23: -2222 | E23: -17608 | F23: -11568 | G23: -3832 | H23: -5164 | I23: -207 | J23: -413 | K23: -1262 | L23: -604 | M23: -86
A24: 平成22年 | B24: 35636 | C24: 21029 | D24: 1814 | E24: 19215 | F24: 13370 | G24: 4776 | H24: 5552 | I24: 325 | J24: 555 | K24: 1408 | L24: 708 | M24: 64 | N24: － | O24: 平成22年
B25: -30715 | C25: -18458 | D25: -1814 | E25: -16644 | F25: -11248 | G25: -555 | H25: -5085 | I25: -194 | J25: -488 | K25: -1136 | L25: -580 | M25: -58
A26: 平成27年 | B26: 36015 | C26: 20779 | D26: 1965 | E26: 18814 | F26: 14274 | G26: 4897 | H26: 5893 | I26: 355 | J26: 613 | K26: 1482 | L26: 890 | M26: 144 | N26: 962 | O26: 平成27年
B27: -31646 | C27: -18458 | D27: -1965 | E27: -16493 | F27: -12339 | G27: -3885 | H27: -5501 | I27: -222 | J27: -558 | K27: -1281 | L27: -770 | M27: -122 | N27: -849
A28: 〈資料〉総務省 国勢調査 | N28: （単位：人）
A29: 注）（ ）内は就業者数。総数と就業者数の差は通学者数。
A31: ９）恵庭市に就業・通学する常住市町村別１５歳以上就業者および通学者数
M32: （各年10月1日）
A33: 年 次 | B33: 総 数 | C33: 市内に常住する者 | D33: 他 の 市 町 村 に 常 住 す る 者 | L33: 不 詳 | M33: 年 次
D34: 小 計 | E34: 札 幌 市 | F34: 千 歳 市 | G34: 江 別 市 | H34: 苫小牧市 | I34: 北広島市 | J34: その他市町村 | K34: 道 外
A35: 平成７年 | B35: 30207 | C35: 23501 | D35: 6706 | E35: 2555 | F35: 2094 | G35: 249 | H35: 160 | I35: 1170 | J35: 465 | K35: 13 | L35: － | M35: 平成７年
B36: -26401 | C36: -21092 | D36: -5309 | E36: -2006 | F36: -1753 | G36: -209 | H36: -118 | I36: -838 | J36: -372 | K36: -13
A37: 平成12年 | B37: 31417 | C37: 23051 | D37: 8366 | E37: 3201 | F37: 2544 | G37: 359 | H37: 203 | I37: 1466 | J37: 570 | K37: 23 | L37: － | M37: 平成12年
B38: -27096 | C38: -20516 | D38: -6580 | E38: -2529 | F38: -1967 | G38: -308 | H38: -133 | I38: -1177 | J38: -443 | K38: -23
A39: 平成17年 | B39: 31673 | C39: 22472 | D39: 9201 | E39: 3520 | F39: 2520 | G39: 495 | H39: 272 | I39: 1647 | J39: 719 | K39: 28 | L39: － | M39: 平成17年
B40: -26987 | C40: -19830 | D40: -7157 | E40: -2794 | F40: -1959 | G40: -400 | H40: -157 | I40: -1328 | J40: -495 | K40: -24
A41: 平成22年 | B41: 32066 | C41: 21029 | D41: 9864 | E41: 3930 | F41: 2799 | G41: 510 | H41: 288 | I41: 1516 | J41: 750 | K41: 12 | L41: － | M41: 平成22年
B42: -27048 | C42: -18458 | D42: -7639 | E42: -3046 | F42: -2211 | G42: -396 | H42: -173 | I42: -1275 | J42: -498 | K42: -11
A43: 平成27年 | B43: 32268 | C43: 20779 | D43: 10457 | E43: 4066 | F43: 3058 | G43: 525 | H43: 329 | I43: 1468 | J43: 967 | K43: 62 | L43: 1032 | M43: 平成27年
B44: -27358 | C44: -18458 | D44: -7984 | E44: -3130 | F44: -2478 | G44: -409 | H44: -164 | I44: -1253 | J44: -509 | K44: -41 | L44: -916
A45: 〈資料〉総務省 国勢調査 | L45: （単位：人）

Sheet 産業別就業人口
A1: １０）産業別就業人口（男女別１５歳以上就業者）
V2: （各年10月1日）
A3: 産 業 分 類 | D3: 平成7年 | G3: 平成12年 | J3: 平成17年 | M3: 平成22年 | P3: 平成27年 | S3: 産業別割合（％）
D4: 総 数 | E4: 男 | F4: 女 | G4: 総 数 | H4: 男 | I4: 女 | J4: 総 数 | K4: 男 | L4: 女 | M4: 総 数 | N4: 男 | O4: 女 | P4: 総 数 | Q4: 男 | R4: 女 | S4: 平成7年 | T4: 平成12年 | U4: 平成17年 | V4: 平成22年 | W4: 平成27年
A5: 総数 | D5: =SUM(D7+D13+D19+D42) -> 31101 | E5: 19824 | F5: 11277 | G5: 30926 | H5: 19368 | I5: 11558 | J5: 31398 | K5: 19094 | L5: 12304 | M5: 30715 | N5: 18226 | O5: 12489 | P5: 31646 | Q5: 18241 | R5: 13405 | S5: 100 | T5: 100 | U5: 100 | V5: =V7+V13+V19+V42 -> 100 | W5: 100
B7: 第１次産業 | D7: 1523 | E7: 778 | F7: 745 | G7: 1387 | H7: 712 | I7: 675 | J7: 1464 | K7: 778 | L7: 686 | M7: 1151 | N7: 613 | O7: 538 | P7: 1212 | Q7: 614 | R7: 598 | S7: 4.9 | T7: 4.5 | U7: 4.7 | V7: 3.7 | W7: =P7/P5*100 -> 3.829867914
C8: 農業・林業 | D8: 1484 | E8: 753 | F8: 731 | G8: 1341 | H8: 683 | I8: 658 | J8: 1447 | K8: 768 | L8: 679 | M8: 1144 | N8: 609 | O8: 535 | P8: 1207 | Q8: 610 | R8: 597 | S8: 4.8 | T8: 4.3 | U8: 4.6 | V8: 3.7 | W8: 3.8
C9: 農業 | D9: 1401 | E9: 687 | F9: 714 | G9: 1295 | H9: 646 | I9: 649 | J9: 1413 | K9: 737 | L9: 676 | M9: 1111 | N9: 578 | O9: 533 | P9: 1176 | Q9: 582 | R9: 594 | S9: 4.5 | T9: 4.2 | U9: 4.5 | V9: (3.6) | W9: 3.7
C10: 林業 | D10: 83 | E10: 66 | F10: 17 | G10: 46 | H10: 37 | I10: 9 | J10: 34 | K10: 31 | L10: 3 | M10: 33 | N10: 31 | O10: 2 | P10: 31 | Q10: 28 | R10: 3 | S10: 0.3 | T10: 0.1 | U10: 0.1 | V10: (0.1) | W10: 0.1
C11: 漁業 | D11: 39 | E11: 25 | F11: 14 | G11: 46 | H11: 29 | I11: 17 | J11: 17 | K11: 10 | L11: 7 | M11: 7 | N11: 4 | O11: 3 | P11: 5 | Q11: 4 | R11: 1 | S11: 0.1 | T11: 0.1 | U11: 0.1 | V11: 0.01592458118 | W11: =P11/31398*100 -> 0.01592458118
B13: 第２次産業 | D13: 8411 | E13: 5860 | F13: 2551 | G13: 7934 | H13: 5580 | I13: 2354 | J13: 7282 | K13: 5135 | L13: 2147 | M13: 6688 | N13: 4756 | O13: 1932 | P13: 6550 | Q13: 4696 | R13: 1854 | S13: 27 | T13: 25.7 | U13: 23.2 | V13: 21.8 | W13: =P13/P5*100 -> 20.69771851
C14: 鉱業・採石業・砂利採取業 | M14: 6 | N14: 5 | O14: 1 | P14: 11 | Q14: 10 | R14: 1 | S14: … | T14: … | U14: … | V14: 0.03475952727 | W14: =P14/P13*W13 -> 0.03475952727
C15: 鉱業 | D15: 31 | E15: 29 | F15: 2 | G15: 23 | H15: 21 | I15: 2 | J15: 12 | K15: 12 | L15: － | M15: … | N15: … | O15: … | P15: … | Q15: … | R15: … | S15: 0.1 | T15: 0.1 | U15: 0 | V15: … | W15: …
C16: 建設業 | D16: 3118 | E16: 2599 | F16: 519 | G16: 2806 | H16: 2408 | I16: 398 | J16: 2502 | K16: 2150 | L16: 352 | M16: 2051 | N16: 1789 | O16: 262 | P16: 1939 | Q16: 1690 | R16: 249 | S16: 10 | T16: 9.1 | U16: 8 | V16: 6.7 | W16: =P16/P13*W13 -> 6.127156671
C17: 製造業 | D17: 5262 | E17: 3232 | F17: 2030 | G17: 5105 | H17: 3151 | I17: 1954 | J17: 4768 | K17: 2973 | L17: 1795 | M17: 4631 | N17: 2962 | O17: 1669 | P17: 4600 | Q17: 2996 | R17: 1604 | S17: 16.9 | T17: 16.5 | U17: 15.2 | V17: 15.1 | W17: =P17/P13*W13 -> 14.53580231
B19: 第３次産業 | D19: 21123 | E19: 13158 | F19: 7965 | G19: 21369 | H19: 12954 | I19: 8415 | J19: 22091 | K19: 12834 | L19: 9257 | M19: 21548 | N19: 12085 | O19: 9463 | P19: 22605 | Q19: 12181 | R19: 10424 | S19: 67.9 | T19: 69.1 | U19: 70.4 | V19: 70.2 | W19: =P19/P5*100 -> 71.43082854
C20: 電気･ガス・熱供給・水道業 | D20: 137 | E20: 122 | F20: 15 | G20: 140 | H20: 126 | I20: 14 | J20: 134 | K20: 119 | L20: 15 | M20: 155 | N20: 135 | O20: 20 | P20: 147 | Q20: 131 | R20: 16 | S20: 0.4 | T20: 0.5 | U20: 0.4 | V20: 0.4645136826 | W20: =P20/P19*W19 -> 0.4645136826
C21: 情報通信業 | D21: … | E21: … | F21: … | G21: … | H21: … | I21: … | J21: 384 | K21: 310 | L21: 74 | M21: 341 | N21: 239 | O21: 102 | P21: 410 | Q21: 294 | R21: 116 | S21: … | T21: … | U21: 1.2 | V21: 1.1 | W21: =P21/P19*W19 -> 1.29558238
C22: 運輸業･郵便業 | D22: … | E22: … | F22: … | G22: … | H22: … | I22: … | J22: … | K22: … | L22: … | M22: 1913 | N22: 1579 | O22: 334 | P22: 1905 | Q22: 1516 | R22: 389 | S22: … | T22: … | U22: … | V22: 6.2 | W22: =P22/P19*W19 -> 6.019718132
C23: 運輸･通信業 | D23: 1875 | E23: 1563 | F23: 312 | G23: 1963 | H23: 1559 | I23: 404 | J23: … | K23: … | L23: … | M23: … | N23: … | O23: … | P23: … | Q23: … | R23: … | S23: 6 | T23: 6.3 | U23: … | V23: … | W23: …
C24: 運輸業 | D24: … | E24: … | F24: … | G24: … | H24: … | I24: … | J24: 1773 | K24: 1467 | L24: 306 | M24: … | N24: … | O24: … | P24: … | Q24: … | R24: … | S24: … | T24: … | U24: 5.6 | V24: … | W24: …
C25: 卸売･小売業 | D25: … | E25: … | F25: … | G25: … | H25: … | I25: … | J25: 4591 | K25: 2078 | L25: 2513 | M25: 4328 | N25: 1928 | O25: 2400 | P25: 4509 | Q25: 1908 | R25: 2601 | S25: … | T25: … | U25: 14.6 | V25: 14.1 | W25: =P25/P19*W19 -> 14.24824622
C26: 卸売･小売･飲食業 | D26: 5335 | E26: 2461 | F26: 2874 | G26: 5434 | H26: 2370 | I26: 3064 | J26: … | K26: … | L26: … | M26: … | N26: … | O26: … | P26: … | Q26: … | R26: … | S26: 17.2 | T26: 17.6 | U26: … | V26: … | W26: …
C27: 飲食店・宿泊業 | D27: … | E27: … | F27: … | G27: … | H27: … | I27: … | J27: 1374 | K27: 459 | L27: 915 | M27: … | N27: … | O27: … | P27: … | Q27: … | R27: … | S27: … | T27: … | U27: 4.4 | V27: … | W27: …
C28: 金融･保険業 | D28: … | E28: … | F28: … | G28: … | H28: … | I28: … | J28: 506 | K28: 217 | L28: 289 | M28: 422 | N28: 182 | O28: 240 | P28: 420 | Q28: 157 | R28: 263 | S28: … | T28: … | U28: 1.6 | V28: 1.4 | W28: =P28/P19*W19 -> 1.32718195
C29: 不動産業・物品賃貸業 | D29: … | E29: … | F29: … | G29: … | H29: … | I29: … | J29: … | K29: … | L29: … | M29: 453 | N29: 310 | O29: 143 | P29: 516 | Q29: 343 | R29: 173 | S29: … | T29: … | U29: … | V29: 1.5 | W29: =P29/P19*W19 -> 1.630537825
C30: 金融･保険業･不動産業 | D30: 936 | E30: 416 | F30: 520 | G30: 794 | H30: 386 | I30: 408 | J30: … | K30: … | L30: … | M30: … | N30: … | O30: … | P30: … | Q30: … | R30: … | S30: 3 | T30: 2.6 | U30: … | V30: … | W30: …
C31: 不動産業 | D31: … | E31: … | F31: … | G31: … | H31: … | I31: … | J31: 267 | K31: 193 | L31: 74 | M31: … | N31: … | O31: … | P31: … | Q31: … | R31: … | S31: … | T31: … | U31: 0.9 | V31: … | W31: …
C32: 学術研究・専門・技術サービス業 | D32: … | E32: … | F32: … | G32: … | H32: … | I32: … | J32: … | K32: … | L32: … | M32: 549 | N32: 373 | O32: 176 | P32: 623 | Q32: 406 | R32: 217 | S32: … | T32: … | U32: … | V32: 1.8 | W32: =P32/P19*W19 -> 1.968653226
C33: 宿泊業・飲食サービス業 | D33: … | E33: … | F33: … | G33: … | H33: … | I33: … | J33: … | K33: … | L33: … | M33: 1737 | N33: 556 | O33: 1181 | P33: 1772 | Q33: 557 | R33: 1215 | S33: … | T33: … | U33: … | V33: 5.7 | W33: =P33/P19*W19 -> 5.599443848
C34: 生活関連サービス業，娯楽業 | D34: … | E34: … | F34: … | G34: … | H34: … | I34: … | J34: … | K34: … | L34: … | M34: 1589 | N34: 618 | O34: 971 | P34: 1433 | Q34: 544 | R34: 889 | S34: … | T34: … | U34: … | V34: 5.2 | W34: =P34/P19*W19 -> 4.528218416
C35: 教育・学習支援業 | D35: … | E35: … | F35: … | G35: … | H35: … | I35: … | J35: 1349 | K35: 691 | L35: 658 | M35: 1246 | N35: 594 | O35: 652 | P35: 1251 | Q35: 586 | R35: 665 | S35: … | T35: … | U35: 4.3 | V35: 4.1 | W35: =P35/P19*W19 -> 3.953106238
C36: 医療・福祉 | D36: … | E36: … | F36: … | G36: … | H36: … | I36: … | J36: 2411 | K36: 595 | L36: 1816 | M36: 2812 | N36: 677 | O36: 2135 | P36: 3355 | Q36: 820 | R36: 2535 | S36: … | T36: … | U36: 7.7 | V36: 9.2 | W36: =P36/P19*W19 -> 10.60165582
C37: 複合サービス業 | D37: … | E37: … | F37: … | G37: … | H37: … | I37: … | J37: 359 | K37: 229 | L37: 130 | M37: 202 | N37: 116 | O37: 86 | P37: 251 | Q37: 150 | R37: 101 | S37: … | T37: … | U37: 1.1 | V37: 0.7 | W37: =P37/P19*W19 -> 0.7931492132
C38: サービス業 | D38: 7295 | E38: 3518 | F38: 3777 | G38: 7835 | H38: 3745 | I38: 4090 | J38: … | K38: … | L38: … | M38: … | N38: … | O38: … | P38: … | Q38: … | R38: … | S38: 23.5 | T38: 25.3 | U38: … | V38: … | W38: …
C39: サービス業(他に分類されないもの） | D39: … | E39: … | F39: … | G39: … | H39: … | I39: … | J39: 4417 | K39: 2348 | L39: 2069 | M39: 1709 | N39: 1090 | O39: 619 | P39: 2015 | Q39: 1260 | R39: 755 | S39: … | T39: … | U39: 14.1 | V39: 5.6 | W39: =P39/P19*W19 -> 6.367313405
C40: 公務(他に分類されないもの） | D40: 5545 | E40: 5078 | F40: 467 | G40: 5203 | H40: 4768 | I40: 435 | J40: 4526 | K40: 4128 | L40: 398 | M40: 4092 | N40: 3688 | O40: 404 | P40: 3998 | Q40: 3509 | R40: 489 | S40: 17.8 | T40: 16.8 | U40: 14.4 | V40: 13.3 | W40: =P40/P19*W19 -> 12.63350818
A42: 分類不能の産業 | D42: 44 | E42: 28 | F42: 16 | G42: 236 | H42: 122 | I42: 114 | J42: 561 | K42: 347 | L42: 214 | M42: 1328 | N42: 772 | O42: 556 | P42: 1279 | Q42: 750 | R42: 529 | S42: 0.2 | T42: 0.7 | U42: 1.8 | V42: 4.3 | W42: 4.1
A43: 〈資料〉総務省 国勢調査 | V43: （単位：人）
A44: 注) 総数の中に｢不詳｣を含んでいるので合計と総数は一致しない｡

Sheet グラフ（入力シート）追加
B1: 人口 | C1: 割合
A2: 年少人口 | B2: 9132 | C2: 13.1
A3: 生産年齢人口 | B3: 42897 | C3: 61.5
A4: 老齢人口 | B4: 17465 | C4: 25.1
B7: 割合
A8: 年少人口 | B8: 13.1
A9: 生産年齢人口 | B9: 61.5
A10: 老齢人口 | B10: 25.1

Sheet グラフ（入力シート）
A2: 年度 | C2: 道外 | D2: 道内
A3: H24 | B3: 転入 | C3: ='社会動態（道外）'!$B$8+'社会動態（道外）'!$B$9 -> 685 | D3: ='社会動態（道外）'!$B$7 -> 2235 | E3: =C3+D3 -> 2920
B4: 転出 | C4: ='社会動態（道外）'!$C$8+'社会動態（道外）'!$C$9 -> 720 | D4: ='社会動態（道外）'!$C$7 -> 2083 | E4: =C4+D4 -> 2803
A5: H25 | B5: 転入 | C5: ='社会動態（道外）'!$D$8+'社会動態（道外）'!$D$9 -> 630 | D5: ='社会動態（道外）'!$D$7 -> 2242 | E5: 2872
B6: 転出 | C6: ='社会動態（道外）'!$E$8+'社会動態（道外）'!$E$9 -> 787 | D6: ='社会動態（道外）'!$E$7 -> 2308 | E6: =C6+D6 -> 3095
A7: H26 | B7: 転入 | C7: ='社会動態（道外）'!$F$8+'社会動態（道外）'!$F$9 -> 585 | D7: ='社会動態（道外）'!$F$7 -> 2536 | E7: 3121
B8: 転出 | C8: ='社会動態（道外）'!$G$8+'社会動態（道外）'!$G$9 -> 760 | D8: ='社会動態（道外）'!$G$7 -> 2186 | E8: 2946
A9: H27 | B9: 転入 | C9: ='社会動態（道外）'!$H$8+'社会動態（道外）'!$H$9 -> 673 | D9: ='社会動態（道外）'!$H$7 -> 2516 | E9: 3189
B10: 転出 | C10: ='社会動態（道外）'!$I$8+'社会動態（道外）'!$I$9 -> 803 | D10: ='社会動態（道外）'!$I$7 -> 2138 | E10: 2941
A11: H28 | B11: 転入 | C11: ='社会動態（道外）'!$J$8+'社会動態（道外）'!$J$9 -> 746 | D11: ='社会動態（道外）'!$J$7 -> 2562 | E11: 3308
B12: 転出 | C12: ='社会動態（道外）'!$K$8+'社会動態（道外）'!$K$9 -> 843 | D12: ='社会動態（道外）'!$K$7 -> 2196 | E12: 3039

Sheet グラフ（入力シート）②
L2: 平成22年国勢調査データより
L3: 産業別人口（男女別15歳以上就業者）
M4: 第１次産業 | N4: 第２次産業 | O4: 第３次産業 | P4: 分類不能の産業
L5: 割合 | M5: 3.8 | N5: 20.7 | O5: 71.4 | P5: 4.1 | Q5: =SUM(M5:P5) -> 100
L6: 人数 | M6: 1212 | N6: 6550 | O6: 22605 | P6: 1279
M23: H27年 | N23: H22年 | O23: H17年 | P23: H12年 | Q23: H7年
L24: 第1次産業 | M24: 3.8 | N24: 3.7 | O24: 4.662717371 | P24: 4.5 | Q24: 4.9
L25: 第2次産業 | M25: 20.7 | N25: 21.8 | O25: 23.19256004 | P25: 25.7 | Q25: 27
L26: 第3次産業 | M26: 71.4 | N26: 70.2 | O26: 70.35798459 | P26: 69.1 | Q26: 67.9
L27: 不詳 | M27: 4.1 | N27: 4.3 | O27: 1.8 | P27: 0.7 | Q27: 0.2

Sheet グラフ（入力シート）⑤
A1: ３）年齢別人口（５歳階級）
C3: 17年 | D3: 22年 | E3: 27年
B4: 85 以上 | C4: 323 | D4: 491 | E4: 819
B5: 80～84 | C5: 500 | D5: 948 | E5: 1151
B6: 75～79 | C6: 1175 | D6: 1427 | E6: 1488
B7: 70～74 | C7: 1589 | D7: 1654 | E7: 1751
B8: 65～69 | C8: 1786 | D8: 1872 | E8: 2507
B9: 60～64 | C9: 1945 | D9: 2581 | E9: 2396
B10: 55～59 | C10: 2530 | D10: 2391 | E10: 2047
B11: 50～54 | C11: 2401 | D11: 2051 | E11: 2115
B12: 45～49 | C12: 2069 | D12: 2131 | E12: 2312
B13: 40～44 | C13: 2135 | D13: 2314 | E13: 2545
B14: 35～39 | C14: 2235 | D14: 2540 | E14: 2299
B15: 30～34 | C15: 2482 | D15: 2299 | E15: 1833
B16: 25～29 | C16: 2237 | D16: 1866 | E16: 1671
B17: 20～24 | C17: 2430 | D17: 2157 | E17: 2058
B18: 15～19 | C18: 2272 | D18: 2216 | E18: 2090
B19: 10～14 | C19: 1903 | D19: 1780 | E19: 1684
B20: 5～9 | C20: 1742 | D20: 1662 | E20: 1591
B21: 0～4 | C21: 1563 | D21: 1467 | E21: 1296
A22: 〈資料〉国勢調査 （第１次基本集計結果 第3表） | E22: （単位：人）

Sheet グラフ（入力シート）⑥
A1: ３）年齢別人口（５歳階級）
C3: 17年 | D3: 22年 | E3: 27年
B4: 85 以上 | C4: 785 | D4: 1122 | E4: 1558
B5: 80～84 | C5: 798 | D5: 1160 | E5: 1462
B6: 75～79 | C6: 1219 | D6: 1588 | E6: 1884
B7: 70～74 | C7: 1659 | D7: 1958 | E7: 2118
B8: 65～69 | C8: 2013 | D8: 2207 | E8: 2727
B9: 60～64 | C9: 2222 | D9: 2750 | E9: 2570
B10: 55～59 | C10: 2736 | D10: 2566 | E10: 2119
B11: 50～54 | C11: 2545 | D11: 2113 | E11: 2227
B12: 45～49 | C12: 2087 | D12: 2207 | E12: 2349
B13: 40～44 | C13: 2192 | D13: 2312 | E13: 2594
B14: 35～39 | C14: 2253 | D14: 2526 | E14: 2277
B15: 30～34 | C15: 2385 | D15: 2221 | E15: 1918
B16: 25～29 | C16: 2069 | D16: 1833 | E16: 1569
B17: 20～24 | C17: 2156 | D17: 2028 | E17: 1912
B18: 15～19 | C18: 2175 | D18: 2008 | E18: 1996
B19: 10～14 | C19: 1768 | D19: 1718 | E19: 1681
B20: 5～9 | C20: 1701 | D20: 1602 | E20: 1529
B21: 0～4 | C21: 1534 | D21: 1461 | E21: 1351
A22: 〈資料〉国勢調査 （第１次基本集計結果 第3表）

Sheet グラフ（入力シート）⑦
A1: 市民の平均年齢の推移
B3: 総数 | C3: 男 | D3: 女
A4: H12 | B4: 38.8 | C4: 37.3 | D4: 40.3
A5: H17 | B5: 41 | C5: 39.4 | D5: 42.5
A6: H22 | B6: 43.3 | C6: 41.9 | D6: 45
A7: H27 | B7: 45.9 | C7: 44.5 | D7: 47.3
